Workbook

Sheet Cover Sheet
A1: VALVE REGULATED LEAD ACID BATTERIES PRICING SCHEDULE COVERSHEET
B3: ENQUIRY: | C3: E1270DXWC_
B4: COMMODITY: | C4: FLAT PLATE, GEL, VALVE REGULATED LEAD ACID (VRLA) BATTERIES
B5: SUPPLIER:
A8: These VRLA Battery Enquiry Activity Schedules consists of the following worksheets:
A9: Click on the hyperlinks of the worksheets to access them.
B10: Worksheet | C10: Notes
A11: 1 | B11: 01-Instructions | C11: The purpose of this worksheet is to ensure that all suppliers are quoting for all items in a standard format, on a common basis for ease of evaluation.
A12: 2 | B12: 02-Flat Plate, Gel | C12: Prices for required cells and associated equipment
A13: 4 | B13: 03-Labour_Subs_Travel | C13: Costs of labour, subsistence and travelling.
A14: 5 | B14: 04-Transport & Off Loading | C14: Transport to site or regional store and off-loading.
A15: 6 | B15: 05-Accessories | C15: Cost of accessories required.
A16: 7 | B16: 06-Training | C16: Training related costs.
A17: 8 | B17: 07-Other Costs | C17: Any other costs to be priced.
A18: 9 | B18: 08-Flat Plate Gel Full Range | C18: Prices for full range of available LP cells and associated equipment
A19: 11 | B19: Option X3 | C19: Indicate foreign currency to be used in this tender submission.
A20: 12 | B20: Option X1 | C20: Indicate CPA formulae to be used in this tender submission.
A21: 13 | B21: TOTAL PRICE_Flat Plate, Gel | C21: Total prices for Cells, associated equipment and services
A22: 15 | B22: Forecasts Table | C22: Estimated forecasted volumes of cells and battery banks

Sheet 01-Instructions
B3: INSTRUCTIONS FOR COMPLETING THIS PRICING SCHEDULE
B5: THE PURPOSE OF THIS WORKSHEET IS TO ENSURE THAT ALL SUPPLIERS ARE QUOTING FOR ALL ITEMS IN A STANDARD FORMAT, ON A COMMON BASIS FOR EASE OF EVALUATION
C7: GENERAL NOTES
B8: 1 | C8: The supplier must complete the following sheets:-
C9: - All 9 Activity schedules
C10: - Option X3: Rate of Exchange
C11: - Option X1: Price adjustment for inflation
C13: Note 1: If the Activity Schedule is not completed, the tender will be disqualified
C14: Note 2: If the CPA Formulae (Option X1) are not updated, the tendered prices will be taken to be "Firm and Fixed"
B15: 2 | C15: Manual input is required in all cells highlighted light blue. Other cells are protected.
B16: 3 | C16: Requests for clarification in case of uncertainty, or possible conflicting information, may be lodged in terms of the process for clarifications as stipulated in the Invitation to Tender
B17: 4 | C17: All information required in this Pricing Schedule must be provided in a clear and unbiased manner. The Purchaser reserves the right to interpret information as best as possible without recourse thereafter. An offer may be considered unacceptable if there is missing information or provided in such a manner that an objective assessment is impeded
B18: 5 | C18: The price schedules provide the basis of all valuations at delivery/assessment dates, payments in multiple currencies, price adjustment (CPA), etc. Additional items may be added if the pricing schedules is insufficient in this regard but must include all information required as per the stipulated items. However, this information must not be in conflict with specified requirements or instructions in the pricing schedules or elsewhere in the tender documentation. It may not be information which will be to the detriment of the Purchaser or benefit the Tenderer unfairly in the evaluation of the bids. The Purchaser reserves the right to consider such information or ignore it.
B19: 6 | C19: Tenderers are requested to submit a soft copy of the Entire Pricing Schedule
C21: NOTES ON COMPLETING THE VARIOUS WORKSHEETS
B23: A | C23: Cover Sheet:
C24: Input Tendering Company into cell C5
C25: No other input is required - the pricing information reads from the various Activity Schedules
B26: B | C26: Activity Schedules: "Act Sch-..."
C27: Prices can be filled in South African Rands or Foreign currency; choose the applicable currency from the drop down list.
C28: Insert the applicable price (in the applicable currency). The price will be converted into Rands based on the exchange rate you input into the tab called "Option X 3". NB: The applicable Forex rate is to be sourced from the SA Reserve Bank's website as at 12H00 on the date of the advertisement of the tender.
B29: C | C29: Option X 3: Multiple Currency
C30: For each currency used in this submission, Tenderers must update a Forex conversion rate, ie currency 1 = how many ZAR
C31: The tenderer shall use the exchange rate as at 12H00 on the date of the advertisement of the tender. The source of the exchange rates shall be the South African Reserve Bank (www.resbank.co.za). Please note that the tenderer is required to submit proof of the SARB rate/s used.
B32: D | C32: Option X 1: Cost Price Adjustments
C33: Proportions/weightings in CPA Formulae: The fixed portion of each formula, not subject to CPA, must be at least 15% but Tenderers may submit higher fixed portion percentages. The other constituent indices and their proportions in each formula must be realistic and relative to the applicable work. The fixed portion and other proportions must add up to 100%.
C34: Formulae must be linked to independent cost indices or other benchmarks ("reference prices") and must be clearly and completely defined. The source must be a recognised and independent statistical publishing organisation. The Tenderers' in-house indices may not be used.
C35: The Tenderer must submit 5 years' of month by month historical data for all indices used if the complete website/internet address is not provided or this information is not readily available. The Tenderer must ensure that indices are published and recommended by the source thereof as applicable to the work involved and that they are still in force/use and applicable at the date of submission of the tender.
C36: CPA Base Date: The CPA base date for calculating price movements will be the Month before Tender closes. For indices or reference prices published as at certain dates, and where such a date is not the Base Date, the latest date for which it is published before the Base Date will be considered as the Base Date index or reference price. In instances where the figure or value is not as at the Base Date or considered as the Base Date Index or reference price as explained herein, the date, figure or value as well as the reason for the deviation must be clearly separately stated and must be realistic for purposes of CPA.
C37: Eskom requires that the first 12 months of the contract may not have CPA attributed to the prices. CPA can then only be applied after the first 12 months. Exchange rate adjustments cannot be part of any CPA formula. Foreign Indices must be applied only for imported items. Local indices must be applied for local cost drivers.
B38: E | C38: Estimated Volumes
C39: Estimated volumes of battery banks and cells are provided; these volumes are not guaranteed, but merely estimated.

Sheet 02-Flat Plate, Gel
A1: Offered Flat Plate, Gel Type VRLA Cells/Batteries
A3: ENQUIRY NO: | C3: ='Cover Sheet'!C3 -> E1270DXWC_
A4: COMMODITY: | C4: ='Cover Sheet'!C4 -> FLAT PLATE, GEL, VALVE REGULATED LEAD ACID (VRLA) BATTERIES
A5: SUPPLIER: | C5: =IF('Cover Sheet'!C5="","",'Cover Sheet'!C5) -> 
A7: The prices for individual cells include a cell/battery label (number), inter-cell/battery connectors, bolts, nuts, washers, spring washers and corrosion protection..
A8: Linking sets will include interrow connectors, terminating cables and associated accessories.
B10: 1 | C10: 2 | D10: 3 | E10: 4 | F10: 5 | G10: 6 | H10: 7 | I10: 8 | J10: 9 | K10: 10 | L10: 11 | M10: 12 | N10: 13 | O10: 14 | P10: 15 | Q10: 16 | R10: 17 | S10: 18 | T10: 19 | U10: 20 | V10: 21 | W10: 22 | X10: 23 | Y10: 24 | Z10: 25 | AA10: 26 | AB10: 27 | AC10: 28 | AD10: 29 | AE10: 30 | AF10: 31 | AG10: 32 | AH10: 33 | AI10: 34 | AJ10: 35 | AK10: 36 | AL10: 37 | AM10: 38 | AN10: 39 | AO10: 40 | AP10: 41 | AQ10: 42 | AR10: 43 | AS10: 44 | AT10: 45 | AU10: 46 | AV10: 47 | AW10: 48 | AX10: 49 | AY10: 50 | AZ10: 51 | BA10: 52 | BB10: 53 | BC10: 54 | BD10: 55 | BE10: 56 | BF10: 57 | BG10: 58 | BH10: 59 | BI10: 60 | BJ10: 61 | BK10: 62 | BL10: 63 | BM10: 64 | BN10: 65 | BO10: 66 | BP10: 67 | BQ10: 68 | BR10: 69 | BS10: 70 | BT10: 71 | BU10: 72 | BV10: 73 | BW10: 74 | BX10: 75 | BY10: 76 | BZ10: 77 | CA10: 78 | CB10: 79 | CC10: 80 | CD10: 81 | CE10: 82 | CF10: 83 | CG10: 84 | CH10: 85 | CI10: 86 | CJ10: 87 | CK10: 88 | CL10: 89 | CM10: 90 | CN10: 91 | CO10: 92 | CP10: 93 | CQ10: 94 | CR10: 95 | CS10: 96 | CT10: 97 | CU10: 98 | CV10: 99 | CW10: 100 | CX10: 101 | CY10: 102 | CZ10: 103
J11: USD | U11: USD | AF11: USD | AQ11: USD | BB11: USD | BM11: USD | BX11: USD | CI11: USD | CT11: USD
A12: Item # | B12: Required Capacity [Ah] | C12: Offered Capacity [Ah] | D12: Model No. | E12: Wet Weight/unit [kg] | F12: Wet Cells | Q12: 30V Linking Sets (Not Applicable) | AB12: 48V Linking Sets | AM12: 110V Linking Sets | AX12: 220V Linking Sets | BI12: 30V Battery Cabinet | BT12: 48V Battery Cabinet | CE12: 110V Battery Cabinet | CP12: 220V Battery Cabinet
F13: (1) | G13: (2) | H13: (3)=(1)x(2) | I13: (4) | J13: (5) | K13: (6)=(1)x(4) | L13: (7)=(5)x(6) | M13: (8)=(3)+(7) | N13: (9)=0.15x(8) | O13: (10)=(8)+(9) | P13: CPA Formula | Q13: (1) | R13: (2) | S13: (3)=(1)x(2) | T13: (4) | U13: (5) | V13: (6)=(1)x(4) | W13: (7)=(5)x(6) | X13: (8)=(3)+(7) | Y13: (9)=0.15x(8) | Z13: (10)=(8)+(9) | AA13: CPA Formula | AB13: (1) | AC13: (2) | AD13: (3)=(1)x(2) | AE13: (4) | AF13: (5) | AG13: (6)=(1)x(4) | AH13: (7)=(5)x(6) | AI13: (8)=(3)+(7) | AJ13: (9)=0.15x(8) | AK13: (10)=(8)+(9) | AL13: CPA Formula | AM13: (1) | AN13: (2) | AO13: (3)=(1)x(2) | AP13: (4) | AQ13: (5) | AR13: (6)=(1)x(4) | AS13: (7)=(5)x(6) | AT13: (8)=(3)+(7) | AU13: (9)=0.15x(8) | AV13: (10)=(8)+(9) | AW13: CPA Formula | AX13: (1) | AY13: (2) | AZ13: (3)=(1)x(2) | BA13: (4) | BB13: (5) | BC13: (6)=(1)x(4) | BD13: (7)=(5)x(6) | BE13: (8)=(3)+(7) | BF13: (9)=0.15x(8) | BG13: (10)=(8)+(9) | BH13: CPA Formula | BI13: (1) | BJ13: (2) | BK13: (3)=(1)x(2) | BL13: (4) | BM13: (5) | BN13: (6)=(1)x(4) | BO13: (7)=(5)x(6) | BP13: (8)=(3)+(7) | BQ13: (9)=0.15x(8) | BR13: (10)=(8)+(9) | BS13: CPA Formula | BT13: (1) | BU13: (2) | BV13: (3)=(1)x(2) | BW13: (4) | BX13: (5) | BY13: (6)=(1)x(4) | BZ13: (7)=(5)x(6) | CA13: (8)=(3)+(7) | CB13: (9)=0.15x(8) | CC13: (10)=(8)+(9) | CD13: CPA Formula | CE13: (1) | CF13: (2) | CG13: (3)=(1)x(2) | CH13: (4) | CI13: (5) | CJ13: (6)=(1)x(4) | CK13: (7)=(5)x(6) | CL13: (8)=(3)+(7) | CM13: (9)=0.15x(8) | CN13: (10)=(8)+(9) | CO13: CPA Formula | CP13: (1) | CQ13: (2) | CR13: (3)=(1)x(2) | CS13: (4) | CT13: (5) | CU13: (6)=(1)x(4) | CV13: (7)=(5)x(6) | CW13: (8)=(3)+(7) | CX13: (9)=0.15x(8) | CY13: (10)=(8)+(9) | CZ13: CPA Formula
F14: Estimated Qty | G14: Local Currency | I14: Foreign Currency | M14: Local + Foreign Currency | Q14: Estimated Qty | R14: Local Currency | T14: Foreign Currency | X14: Local + Foreign Currency | AB14: Estimated Qty | AC14: Local Currency | AE14: Foreign Currency | AI14: Local + Foreign Currency | AM14: Estimated Qty | AN14: Local Currency | AP14: Foreign Currency | AT14: Local + Foreign Currency | AX14: Estimated Qty | AY14: Local Currency | BA14: Foreign Currency | BE14: Local + Foreign Currency | BI14: Estimated Qty | BJ14: Local Currency | BL14: Foreign Currency | BP14: Local + Foreign Currency | BT14: Estimated Qty | BU14: Local Currency | BW14: Foreign Currency | CA14: Local + Foreign Currency | CE14: Estimated Qty | CF14: Local Currency | CH14: Foreign Currency | CL14: Local + Foreign Currency | CP14: Estimated Qty | CQ14: Local Currency | CS14: Foreign Currency | CW14: Local + Foreign Currency
G15: Rate/unit (ZAR) | H15: Local Portion (ZAR) | I15: Rate/unit (Foreign) | J15: ROE | K15: ="Foreign Portion ("&J11&")" -> Foreign Portion (USD) | L15: Foreign Portion (ZAR) | M15: Total Price excl. VAT (ZAR) | N15: VAT (ZAR) | O15: Total Price incl. VAT (ZAR) | R15: Rate/unit (ZAR) | S15: Local Portion (ZAR) | T15: Rate/unit (Foreign) | U15: ROE | V15: ="Foreign Portion ("&U11&")" -> Foreign Portion (USD) | W15: Foreign Portion (ZAR) | X15: Total Price excl. VAT (ZAR) | Y15: VAT (ZAR) | Z15: Total Price incl. VAT (ZAR) | AC15: Rate/unit (ZAR) | AD15: Local Portion (ZAR) | AE15: Rate/unit (Foreign) | AF15: ROE | AG15: ="Foreign Portion ("&AF11&")" -> Foreign Portion (USD) | AH15: Foreign Portion (ZAR) | AI15: Total Price excl. VAT (ZAR) | AJ15: VAT (ZAR) | AK15: Total Price incl. VAT (ZAR) | AN15: Rate/unit (ZAR) | AO15: Local Portion (ZAR) | AP15: Rate/unit (Foreign) | AQ15: ROE | AR15: ="Foreign Portion ("&AQ11&")" -> Foreign Portion (USD) | AS15: Foreign Portion (ZAR) | AT15: Total Price excl. VAT (ZAR) | AU15: VAT (ZAR) | AV15: Total Price incl. VAT (ZAR) | AY15: Rate/unit (ZAR) | AZ15: Local Portion (ZAR) | BA15: Rate/unit (Foreign) | BB15: ROE | BC15: ="Foreign Portion ("&BB11&")" -> Foreign Portion (USD) | BD15: Foreign Portion (ZAR) | BE15: Total Price excl. VAT (ZAR) | BF15: VAT (ZAR) | BG15: Total Price incl. VAT (ZAR) | BJ15: Rate/unit (ZAR) | BK15: Local Portion (ZAR) | BL15: Rate/unit (Foreign) | BM15: ROE | BN15: ="Foreign Portion ("&BM11&")" -> Foreign Portion (USD) | BO15: Foreign Portion (ZAR) | BP15: Total Price excl. VAT (ZAR) | BQ15: VAT (ZAR) | BR15: Total Price incl. VAT (ZAR) | BU15: Rate/unit (ZAR) | BV15: Local Portion (ZAR) | BW15: Rate/unit (Foreign) | BX15: ROE | BY15: ="Foreign Portion ("&BX11&")" -> Foreign Portion (USD) | BZ15: Foreign Portion (ZAR) | CA15: Total Price excl. VAT (ZAR) | CB15: VAT (ZAR) | CC15: Total Price incl. VAT (ZAR) | CF15: Rate/unit (ZAR) | CG15: Local Portion (ZAR) | CH15: Rate/unit (Foreign) | CI15: ROE | CJ15: ="Foreign Portion ("&CI11&")" -> Foreign Portion (USD) | CK15: Foreign Portion (ZAR) | CL15: Total Price excl. VAT (ZAR) | CM15: VAT (ZAR) | CN15: Total Price incl. VAT (ZAR) | CQ15: Rate/unit (ZAR) | CR15: Local Portion (ZAR) | CS15: Rate/unit (Foreign) | CT15: ROE | CU15: ="Foreign Portion ("&CT11&")" -> Foreign Portion (USD) | CV15: Foreign Portion (ZAR) | CW15: Total Price excl. VAT (ZAR) | CX15: VAT (ZAR) | CY15: Total Price incl. VAT (ZAR)
A16: 1 | B16: 12V/7.8Ah | F16: =Forecasts!C16 -> 2760 | H16: =F16*G16 -> 0 | J16: =VLOOKUP(J$11,'Option X3'!$D$6:$E$20,2,0) -> 0 | K16: =F16*I16 -> 0 | L16: =J16*K16 -> 0 | M16: =H16+L16 -> R 0.00 | N16: =0.15*M16 -> R 0.00 | O16: =SUM(M16:N16) -> R 0.00 | Q16: 0 | S16: =Q16*R16 -> 0 | U16: =VLOOKUP(U$11,'Option X3'!$D$6:$E$20,2,0) -> 0 | V16: =Q16*T16 -> 0 | W16: =U16*V16 -> 0 | X16: =S16+W16 -> R 0.00 | Y16: =0.15*X16 -> R 0.00 | Z16: =SUM(X16:Y16) -> R 0.00 | AB16: 0 | AD16: =AB16*AC16 -> 0 | AF16: =VLOOKUP(AF$11,'Option X3'!$D$6:$E$20,2,0) -> 0 | AG16: =AB16*AE16 -> 0 | AH16: =AF16*AG16 -> 0 | AI16: =AD16+AH16 -> R 0.00 | AJ16: =0.15*AI16 -> R 0.00 | AK16: =SUM(AI16:AJ16) -> R 0.00 | AM16: 0 | AO16: =AM16*AN16 -> 0 | AQ16: =VLOOKUP(AQ$11,'Option X3'!$D$6:$E$20,2,0) -> 0 | AR16: =AM16*AP16 -> 0 | AS16: =AQ16*AR16 -> 0 | AT16: =AO16+AS16 -> R 0.00 | AU16: =0.15*AT16 -> R 0.00 | AV16: =SUM(AT16:AU16) -> R 0.00 | AX16: 0 | AZ16: =AX16*AY16 -> 0 | BB16: =VLOOKUP(BB$11,'Option X3'!$D$6:$E$20,2,0) -> 0 | BC16: =AX16*BA16 -> 0 | BD16: =BB16*BC16 -> 0 | BE16: =AZ16+BD16 -> R 0.00 | BF16: =0.15*BE16 -> R 0.00 | BG16: =SUM(BE16:BF16) -> R 0.00 | BI16: =Q16 -> 0 | BK16: =BI16*BJ16 -> 0 | BM16: =VLOOKUP(BM$11,'Option X3'!$D$6:$E$20,2,0) -> 0 | BN16: =BI16*BL16 -> 0 | BO16: =BM16*BN16 -> 0 | BP16: =BK16+BO16 -> R 0.00 | BQ16: =0.15*BP16 -> R 0.00 | BR16: =SUM(BP16:BQ16) -> R 0.00 | BT16: =AB16 -> 0 | BV16: =BT16*BU16 -> 0 | BX16: =VLOOKUP(BX$11,'Option X3'!$D$6:$E$20,2,0) -> 0 | BY16: =BT16*BW16 -> 0 | BZ16: =BX16*BY16 -> 0 | CA16: =BV16+BZ16 -> R 0.00 | CB16: =0.15*CA16 -> R 0.00 | CC16: =SUM(CA16:CB16) -> R 0.00 | CE16: =AM16 -> 0 | CG16: =CE16*CF16 -> 0 | CI16: =VLOOKUP(CI$11,'Option X3'!$D$6:$E$20,2,0) -> 0 | CJ16: =CE16*CH16 -> 0 | CK16: =CI16*CJ16 -> 0 | CL16: =CG16+CK16 -> R 0.00 | CM16: =0.15*CL16 -> R 0.00 | CN16: =SUM(CL16:CM16) -> R 0.00 | CP16: =AX16 -> 0 | CR16: =CP16*CQ16 -> 0 | CT16: =VLOOKUP(CT$11,'Option X3'!$D$6:$E$20,2,0) -> 0 | CU16: =CP16*CS16 -> 0 | CV16: =CT16*CU16 -> 0 | CW16: =CR16+CV16 -> R 0.00 | CX16: =0.15*CW16 -> R 0.00 | CY16: =SUM(CW16:CX16) -> R 0.00
A17: 2 | B17: 24V/7.8Ah | F17: =Forecasts!C17 -> 11928 | H17: 0 | J17: =VLOOKUP(J$11,'Option X3'!$D$6:$E$20,2,0) -> 0 | K17: 0 | L17: 0 | M17: R 0.00 | N17: R 0.00 | O17: R 0.00 | Q17: 0 | S17: 0 | U17: =VLOOKUP(U$11,'Option X3'!$D$6:$E$20,2,0) -> 0 | V17: 0 | W17: 0 | X17: R 0.00 | Y17: R 0.00 | Z17: R 0.00 | AB17: 0 | AD17: 0 | AF17: =VLOOKUP(AF$11,'Option X3'!$D$6:$E$20,2,0) -> 0 | AG17: 0 | AH17: 0 | AI17: R 0.00 | AJ17: R 0.00 | AK17: R 0.00 | AM17: 0 | AO17: 0 | AQ17: =VLOOKUP(AQ$11,'Option X3'!$D$6:$E$20,2,0) -> 0 | AR17: 0 | AS17: 0 | AT17: R 0.00 | AU17: R 0.00 | AV17: R 0.00 | AX17: 0 | AZ17: 0 | BB17: =VLOOKUP(BB$11,'Option X3'!$D$6:$E$20,2,0) -> 0 | BC17: 0 | BD17: 0 | BE17: R 0.00 | BF17: R 0.00 | BG17: R 0.00 | BI17: 0 | BK17: 0 | BM17: =VLOOKUP(BM$11,'Option X3'!$D$6:$E$20,2,0) -> 0 | BN17: 0 | BO17: 0 | BP17: R 0.00 | BQ17: R 0.00 | BR17: R 0.00 | BT17: 0 | BV17: 0 | BX17: =VLOOKUP(BX$11,'Option X3'!$D$6:$E$20,2,0) -> 0 | BY17: 0 | BZ17: 0 | CA17: R 0.00 | CB17: R 0.00 | CC17: R 0.00 | CE17: 0 | CG17: 0 | CI17: =VLOOKUP(CI$11,'Option X3'!$D$6:$E$20,2,0) -> 0 | CJ17: 0 | CK17: 0 | CL17: R 0.00 | CM17: R 0.00 | CN17: R 0.00 | CP17: 0 | CR17: 0 | CT17: =VLOOKUP(CT$11,'Option X3'!$D$6:$E$20,2,0) -> 0 | CU17: 0 | CV17: 0 | CW17: R 0.00 | CX17: R 0.00 | CY17: R 0.00
A18: 3 | B18: 12V/12Ah | F18: =Forecasts!C18 -> 1920 | H18: 0 | J18: =VLOOKUP(J$11,'Option X3'!$D$6:$E$20,2,0) -> 0 | K18: 0 | L18: 0 | M18: R 0.00 | N18: R 0.00 | O18: R 0.00 | Q18: 0 | S18: 0 | U18: =VLOOKUP(U$11,'Option X3'!$D$6:$E$20,2,0) -> 0 | V18: 0 | W18: 0 | X18: R 0.00 | Y18: R 0.00 | Z18: R 0.00 | AB18: 0 | AD18: 0 | AF18: =VLOOKUP(AF$11,'Option X3'!$D$6:$E$20,2,0) -> 0 | AG18: 0 | AH18: 0 | AI18: R 0.00 | AJ18: R 0.00 | AK18: R 0.00 | AM18: 0 | AO18: 0 | AQ18: =VLOOKUP(AQ$11,'Option X3'!$D$6:$E$20,2,0) -> 0 | AR18: 0 | AS18: 0 | AT18: R 0.00 | AU18: R 0.00 | AV18: R 0.00 | AX18: 0 | AZ18: 0 | BB18: =VLOOKUP(BB$11,'Option X3'!$D$6:$E$20,2,0) -> 0 | BC18: 0 | BD18: 0 | BE18: R 0.00 | BF18: R 0.00 | BG18: R 0.00 | BI18: 0 | BK18: 0 | BM18: =VLOOKUP(BM$11,'Option X3'!$D$6:$E$20,2,0) -> 0 | BN18: 0 | BO18: 0 | BP18: R 0.00 | BQ18: R 0.00 | BR18: R 0.00 | BT18: 0 | BV18: 0 | BX18: =VLOOKUP(BX$11,'Option X3'!$D$6:$E$20,2,0) -> 0 | BY18: 0 | BZ18: 0 | CA18: R 0.00 | CB18: R 0.00 | CC18: R 0.00 | CE18: 0 | CG18: 0 | CI18: =VLOOKUP(CI$11,'Option X3'!$D$6:$E$20,2,0) -> 0 | CJ18: 0 | CK18: 0 | CL18: R 0.00 | CM18: R 0.00 | CN18: R 0.00 | CP18: 0 | CR18: 0 | CT18: =VLOOKUP(CT$11,'Option X3'!$D$6:$E$20,2,0) -> 0 | CU18: 0 | CV18: 0 | CW18: R 0.00 | CX18: R 0.00 | CY18: R 0.00
A19: 4 | B19: 24V/13.2Ah | F19: =Forecasts!C19 -> 3725 | H19: 0 | J19: =VLOOKUP(J$11,'Option X3'!$D$6:$E$20,2,0) -> 0 | K19: 0 | L19: 0 | M19: R 0.00 | N19: R 0.00 | O19: R 0.00 | Q19: 0 | S19: 0 | U19: =VLOOKUP(U$11,'Option X3'!$D$6:$E$20,2,0) -> 0 | V19: 0 | W19: 0 | X19: R 0.00 | Y19: R 0.00 | Z19: R 0.00 | AB19: 0 | AD19: 0 | AF19: =VLOOKUP(AF$11,'Option X3'!$D$6:$E$20,2,0) -> 0 | AG19: 0 | AH19: 0 | AI19: R 0.00 | AJ19: R 0.00 | AK19: R 0.00 | AM19: 0 | AO19: 0 | AQ19: =VLOOKUP(AQ$11,'Option X3'!$D$6:$E$20,2,0) -> 0 | AR19: 0 | AS19: 0 | AT19: R 0.00 | AU19: R 0.00 | AV19: R 0.00 | AX19: 0 | AZ19: 0 | BB19: =VLOOKUP(BB$11,'Option X3'!$D$6:$E$20,2,0) -> 0 | BC19: 0 | BD19: 0 | BE19: R 0.00 | BF19: R 0.00 | BG19: R 0.00 | BI19: 0 | BK19: 0 | BM19: =VLOOKUP(BM$11,'Option X3'!$D$6:$E$20,2,0) -> 0 | BN19: 0 | BO19: 0 | BP19: R 0.00 | BQ19: R 0.00 | BR19: R 0.00 | BT19: 0 | BV19: 0 | BX19: =VLOOKUP(BX$11,'Option X3'!$D$6:$E$20,2,0) -> 0 | BY19: 0 | BZ19: 0 | CA19: R 0.00 | CB19: R 0.00 | CC19: R 0.00 | CE19: 0 | CG19: 0 | CI19: =VLOOKUP(CI$11,'Option X3'!$D$6:$E$20,2,0) -> 0 | CJ19: 0 | CK19: 0 | CL19: R 0.00 | CM19: R 0.00 | CN19: R 0.00 | CP19: 0 | CR19: 0 | CT19: =VLOOKUP(CT$11,'Option X3'!$D$6:$E$20,2,0) -> 0 | CU19: 0 | CV19: 0 | CW19: R 0.00 | CX19: R 0.00 | CY19: R 0.00
A20: 5 | B20: 12V/18Ah | F20: =Forecasts!C20 -> 3532 | H20: 0 | J20: =VLOOKUP(J$11,'Option X3'!$D$6:$E$20,2,0) -> 0 | K20: 0 | L20: 0 | M20: R 0.00 | N20: R 0.00 | O20: R 0.00 | Q20: 0 | S20: 0 | U20: =VLOOKUP(U$11,'Option X3'!$D$6:$E$20,2,0) -> 0 | V20: 0 | W20: 0 | X20: R 0.00 | Y20: R 0.00 | Z20: R 0.00 | AB20: 0 | AD20: 0 | AF20: =VLOOKUP(AF$11,'Option X3'!$D$6:$E$20,2,0) -> 0 | AG20: 0 | AH20: 0 | AI20: R 0.00 | AJ20: R 0.00 | AK20: R 0.00 | AM20: 0 | AO20: 0 | AQ20: =VLOOKUP(AQ$11,'Option X3'!$D$6:$E$20,2,0) -> 0 | AR20: 0 | AS20: 0 | AT20: R 0.00 | AU20: R 0.00 | AV20: R 0.00 | AX20: 0 | AZ20: 0 | BB20: =VLOOKUP(BB$11,'Option X3'!$D$6:$E$20,2,0) -> 0 | BC20: 0 | BD20: 0 | BE20: R 0.00 | BF20: R 0.00 | BG20: R 0.00 | BI20: 0 | BK20: 0 | BM20: =VLOOKUP(BM$11,'Option X3'!$D$6:$E$20,2,0) -> 0 | BN20: 0 | BO20: 0 | BP20: R 0.00 | BQ20: R 0.00 | BR20: R 0.00 | BT20: 0 | BV20: 0 | BX20: =VLOOKUP(BX$11,'Option X3'!$D$6:$E$20,2,0) -> 0 | BY20: 0 | BZ20: 0 | CA20: R 0.00 | CB20: R 0.00 | CC20: R 0.00 | CE20: 0 | CG20: 0 | CI20: =VLOOKUP(CI$11,'Option X3'!$D$6:$E$20,2,0) -> 0 | CJ20: 0 | CK20: 0 | CL20: R 0.00 | CM20: R 0.00 | CN20: R 0.00 | CP20: 0 | CR20: 0 | CT20: =VLOOKUP(CT$11,'Option X3'!$D$6:$E$20,2,0) -> 0 | CU20: 0 | CV20: 0 | CW20: R 0.00 | CX20: R 0.00 | CY20: R 0.00
A21: 6 | B21: 24V/18Ah | F21: =Forecasts!C21 -> 1338 | H21: 0 | J21: =VLOOKUP(J$11,'Option X3'!$D$6:$E$20,2,0) -> 0 | K21: 0 | L21: 0 | M21: R 0.00 | N21: R 0.00 | O21: R 0.00 | Q21: 0 | S21: 0 | U21: =VLOOKUP(U$11,'Option X3'!$D$6:$E$20,2,0) -> 0 | V21: 0 | W21: 0 | X21: R 0.00 | Y21: R 0.00 | Z21: R 0.00 | AB21: 0 | AD21: 0 | AF21: =VLOOKUP(AF$11,'Option X3'!$D$6:$E$20,2,0) -> 0 | AG21: 0 | AH21: 0 | AI21: R 0.00 | AJ21: R 0.00 | AK21: R 0.00 | AM21: 0 | AO21: 0 | AQ21: =VLOOKUP(AQ$11,'Option X3'!$D$6:$E$20,2,0) -> 0 | AR21: 0 | AS21: 0 | AT21: R 0.00 | AU21: R 0.00 | AV21: R 0.00 | AX21: 0 | AZ21: 0 | BB21: =VLOOKUP(BB$11,'Option X3'!$D$6:$E$20,2,0) -> 0 | BC21: 0 | BD21: 0 | BE21: R 0.00 | BF21: R 0.00 | BG21: R 0.00 | BI21: 0 | BK21: 0 | BM21: =VLOOKUP(BM$11,'Option X3'!$D$6:$E$20,2,0) -> 0 | BN21: 0 | BO21: 0 | BP21: R 0.00 | BQ21: R 0.00 | BR21: R 0.00 | BT21: 0 | BV21: 0 | BX21: =VLOOKUP(BX$11,'Option X3'!$D$6:$E$20,2,0) -> 0 | BY21: 0 | BZ21: 0 | CA21: R 0.00 | CB21: R 0.00 | CC21: R 0.00 | CE21: 0 | CG21: 0 | CI21: =VLOOKUP(CI$11,'Option X3'!$D$6:$E$20,2,0) -> 0 | CJ21: 0 | CK21: 0 | CL21: R 0.00 | CM21: R 0.00 | CN21: R 0.00 | CP21: 0 | CR21: 0 | CT21: =VLOOKUP(CT$11,'Option X3'!$D$6:$E$20,2,0) -> 0 | CU21: 0 | CV21: 0 | CW21: R 0.00 | CX21: R 0.00 | CY21: R 0.00
A22: 7 | B22: 12V/26Ah | F22: =Forecasts!C22 -> 2072 | H22: 0 | J22: =VLOOKUP(J$11,'Option X3'!$D$6:$E$20,2,0) -> 0 | K22: 0 | L22: 0 | M22: R 0.00 | N22: R 0.00 | O22: R 0.00 | Q22: 0 | S22: 0 | U22: =VLOOKUP(U$11,'Option X3'!$D$6:$E$20,2,0) -> 0 | V22: 0 | W22: 0 | X22: R 0.00 | Y22: R 0.00 | Z22: R 0.00 | AB22: 0 | AD22: 0 | AF22: =VLOOKUP(AF$11,'Option X3'!$D$6:$E$20,2,0) -> 0 | AG22: 0 | AH22: 0 | AI22: R 0.00 | AJ22: R 0.00 | AK22: R 0.00 | AM22: 0 | AO22: 0 | AQ22: =VLOOKUP(AQ$11,'Option X3'!$D$6:$E$20,2,0) -> 0 | AR22: 0 | AS22: 0 | AT22: R 0.00 | AU22: R 0.00 | AV22: R 0.00 | AX22: 0 | AZ22: 0 | BB22: =VLOOKUP(BB$11,'Option X3'!$D$6:$E$20,2,0) -> 0 | BC22: 0 | BD22: 0 | BE22: R 0.00 | BF22: R 0.00 | BG22: R 0.00 | BI22: 0 | BK22: 0 | BM22: =VLOOKUP(BM$11,'Option X3'!$D$6:$E$20,2,0) -> 0 | BN22: 0 | BO22: 0 | BP22: R 0.00 | BQ22: R 0.00 | BR22: R 0.00 | BT22: 0 | BV22: 0 | BX22: =VLOOKUP(BX$11,'Option X3'!$D$6:$E$20,2,0) -> 0 | BY22: 0 | BZ22: 0 | CA22: R 0.00 | CB22: R 0.00 | CC22: R 0.00 | CE22: 0 | CG22: 0 | CI22: =VLOOKUP(CI$11,'Option X3'!$D$6:$E$20,2,0) -> 0 | CJ22: 0 | CK22: 0 | CL22: R 0.00 | CM22: R 0.00 | CN22: R 0.00 | CP22: 0 | CR22: 0 | CT22: =VLOOKUP(CT$11,'Option X3'!$D$6:$E$20,2,0) -> 0 | CU22: 0 | CV22: 0 | CW22: R 0.00 | CX22: R 0.00 | CY22: R 0.00
A23: 8 | B23: 50 | F23: =SUM(Forecasts!E4:M4) -> 600 | H23: 0 | J23: =VLOOKUP(J$11,'Option X3'!$D$6:$E$20,2,0) -> 0 | K23: 0 | L23: 0 | M23: R 0.00 | N23: R 0.00 | O23: R 0.00 | Q23: 0 | S23: 0 | U23: =VLOOKUP(U$11,'Option X3'!$D$6:$E$20,2,0) -> 0 | V23: 0 | W23: 0 | X23: R 0.00 | Y23: R 0.00 | Z23: R 0.00 | AB23: =Forecasts!N4 -> 25 | AD23: 0 | AF23: =VLOOKUP(AF$11,'Option X3'!$D$6:$E$20,2,0) -> 0 | AG23: 0 | AH23: 0 | AI23: R 0.00 | AJ23: R 0.00 | AK23: R 0.00 | AM23: =Forecasts!O4 -> 0 | AO23: 0 | AQ23: =VLOOKUP(AQ$11,'Option X3'!$D$6:$E$20,2,0) -> 0 | AR23: 0 | AS23: 0 | AT23: R 0.00 | AU23: R 0.00 | AV23: R 0.00 | AX23: 0 | AZ23: 0 | BB23: =VLOOKUP(BB$11,'Option X3'!$D$6:$E$20,2,0) -> 0 | BC23: 0 | BD23: 0 | BE23: R 0.00 | BF23: R 0.00 | BG23: R 0.00 | BI23: 0 | BK23: 0 | BM23: =VLOOKUP(BM$11,'Option X3'!$D$6:$E$20,2,0) -> 0 | BN23: 0 | BO23: 0 | BP23: R 0.00 | BQ23: R 0.00 | BR23: R 0.00 | BT23: 25 | BV23: 0 | BX23: =VLOOKUP(BX$11,'Option X3'!$D$6:$E$20,2,0) -> 0 | BY23: 0 | BZ23: 0 | CA23: R 0.00 | CB23: R 0.00 | CC23: R 0.00 | CE23: 0 | CG23: 0 | CI23: =VLOOKUP(CI$11,'Option X3'!$D$6:$E$20,2,0) -> 0 | CJ23: 0 | CK23: 0 | CL23: R 0.00 | CM23: R 0.00 | CN23: R 0.00 | CP23: 0 | CR23: 0 | CT23: =VLOOKUP(CT$11,'Option X3'!$D$6:$E$20,2,0) -> 0 | CU23: 0 | CV23: 0 | CW23: R 0.00 | CX23: R 0.00 | CY23: R 0.00
A24: 9 | B24: 100 | F24: =SUM(Forecasts!E5:M5) -> 513 | H24: 0 | J24: =VLOOKUP(J$11,'Option X3'!$D$6:$E$20,2,0) -> 0 | K24: 0 | L24: 0 | M24: R 0.00 | N24: R 0.00 | O24: R 0.00 | Q24: 0 | S24: 0 | U24: =VLOOKUP(U$11,'Option X3'!$D$6:$E$20,2,0) -> 0 | V24: 0 | W24: 0 | X24: R 0.00 | Y24: R 0.00 | Z24: R 0.00 | AB24: =Forecasts!N5 -> 0 | AD24: 0 | AF24: =VLOOKUP(AF$11,'Option X3'!$D$6:$E$20,2,0) -> 0 | AG24: 0 | AH24: 0 | AI24: R 0.00 | AJ24: R 0.00 | AK24: R 0.00 | AM24: =Forecasts!O5 -> 8.55 | AO24: 0 | AQ24: =VLOOKUP(AQ$11,'Option X3'!$D$6:$E$20,2,0) -> 0 | AR24: 0 | AS24: 0 | AT24: R 0.00 | AU24: R 0.00 | AV24: R 0.00 | AX24: 0 | AZ24: 0 | BB24: =VLOOKUP(BB$11,'Option X3'!$D$6:$E$20,2,0) -> 0 | BC24: 0 | BD24: 0 | BE24: R 0.00 | BF24: R 0.00 | BG24: R 0.00 | BI24: 0 | BK24: 0 | BM24: =VLOOKUP(BM$11,'Option X3'!$D$6:$E$20,2,0) -> 0 | BN24: 0 | BO24: 0 | BP24: R 0.00 | BQ24: R 0.00 | BR24: R 0.00 | BT24: 0 | BV24: 0 | BX24: =VLOOKUP(BX$11,'Option X3'!$D$6:$E$20,2,0) -> 0 | BY24: 0 | BZ24: 0 | CA24: R 0.00 | CB24: R 0.00 | CC24: R 0.00 | CE24: 8.55 | CG24: 0 | CI24: =VLOOKUP(CI$11,'Option X3'!$D$6:$E$20,2,0) -> 0 | CJ24: 0 | CK24: 0 | CL24: R 0.00 | CM24: R 0.00 | CN24: R 0.00 | CP24: 0 | CR24: 0 | CT24: =VLOOKUP(CT$11,'Option X3'!$D$6:$E$20,2,0) -> 0 | CU24: 0 | CV24: 0 | CW24: R 0.00 | CX24: R 0.00 | CY24: R 0.00
A25: 10 | B25: 150 | F25: =SUM(Forecasts!E6:M6) -> 961 | H25: 0 | J25: =VLOOKUP(J$11,'Option X3'!$D$6:$E$20,2,0) -> 0 | K25: 0 | L25: 0 | M25: R 0.00 | N25: R 0.00 | O25: R 0.00 | Q25: 0 | S25: 0 | U25: =VLOOKUP(U$11,'Option X3'!$D$6:$E$20,2,0) -> 0 | V25: 0 | W25: 0 | X25: R 0.00 | Y25: R 0.00 | Z25: R 0.00 | AB25: =Forecasts!N6 -> 16 | AD25: 0 | AF25: =VLOOKUP(AF$11,'Option X3'!$D$6:$E$20,2,0) -> 0 | AG25: 0 | AH25: 0 | AI25: R 0.00 | AJ25: R 0.00 | AK25: R 0.00 | AM25: =Forecasts!O6 -> 8.55 | AO25: 0 | AQ25: =VLOOKUP(AQ$11,'Option X3'!$D$6:$E$20,2,0) -> 0 | AR25: 0 | AS25: 0 | AT25: R 0.00 | AU25: R 0.00 | AV25: R 0.00 | AX25: 0 | AZ25: 0 | BB25: =VLOOKUP(BB$11,'Option X3'!$D$6:$E$20,2,0) -> 0 | BC25: 0 | BD25: 0 | BE25: R 0.00 | BF25: R 0.00 | BG25: R 0.00 | BI25: 0 | BK25: 0 | BM25: =VLOOKUP(BM$11,'Option X3'!$D$6:$E$20,2,0) -> 0 | BN25: 0 | BO25: 0 | BP25: R 0.00 | BQ25: R 0.00 | BR25: R 0.00 | BT25: 16 | BV25: 0 | BX25: =VLOOKUP(BX$11,'Option X3'!$D$6:$E$20,2,0) -> 0 | BY25: 0 | BZ25: 0 | CA25: R 0.00 | CB25: R 0.00 | CC25: R 0.00 | CE25: 8.55 | CG25: 0 | CI25: =VLOOKUP(CI$11,'Option X3'!$D$6:$E$20,2,0) -> 0 | CJ25: 0 | CK25: 0 | CL25: R 0.00 | CM25: R 0.00 | CN25: R 0.00 | CP25: 0 | CR25: 0 | CT25: =VLOOKUP(CT$11,'Option X3'!$D$6:$E$20,2,0) -> 0 | CU25: 0 | CV25: 0 | CW25: R 0.00 | CX25: R 0.00 | CY25: R 0.00
A26: 11 | B26: 200 | F26: =SUM(Forecasts!E7:M7) -> 12 | H26: 0 | J26: =VLOOKUP(J$11,'Option X3'!$D$6:$E$20,2,0) -> 0 | K26: 0 | L26: 0 | M26: R 0.00 | N26: R 0.00 | O26: R 0.00 | Q26: 0 | S26: 0 | U26: =VLOOKUP(U$11,'Option X3'!$D$6:$E$20,2,0) -> 0 | V26: 0 | W26: 0 | X26: R 0.00 | Y26: R 0.00 | Z26: R 0.00 | AB26: =Forecasts!N7 -> 3 | AD26: 0 | AF26: =VLOOKUP(AF$11,'Option X3'!$D$6:$E$20,2,0) -> 0 | AG26: 0 | AH26: 0 | AI26: R 0.00 | AJ26: R 0.00 | AK26: R 0.00 | AM26: =Forecasts!O7 -> 0 | AO26: 0 | AQ26: =VLOOKUP(AQ$11,'Option X3'!$D$6:$E$20,2,0) -> 0 | AR26: 0 | AS26: 0 | AT26: R 0.00 | AU26: R 0.00 | AV26: R 0.00 | AX26: 0 | AZ26: 0 | BB26: =VLOOKUP(BB$11,'Option X3'!$D$6:$E$20,2,0) -> 0 | BC26: 0 | BD26: 0 | BE26: R 0.00 | BF26: R 0.00 | BG26: R 0.00 | BI26: 0 | BK26: 0 | BM26: =VLOOKUP(BM$11,'Option X3'!$D$6:$E$20,2,0) -> 0 | BN26: 0 | BO26: 0 | BP26: R 0.00 | BQ26: R 0.00 | BR26: R 0.00 | BT26: 3 | BV26: 0 | BX26: =VLOOKUP(BX$11,'Option X3'!$D$6:$E$20,2,0) -> 0 | BY26: 0 | BZ26: 0 | CA26: R 0.00 | CB26: R 0.00 | CC26: R 0.00 | CE26: 0 | CG26: 0 | CI26: =VLOOKUP(CI$11,'Option X3'!$D$6:$E$20,2,0) -> 0 | CJ26: 0 | CK26: 0 | CL26: R 0.00 | CM26: R 0.00 | CN26: R 0.00 | CP26: 0 | CR26: 0 | CT26: =VLOOKUP(CT$11,'Option X3'!$D$6:$E$20,2,0) -> 0 | CU26: 0 | CV26: 0 | CW26: R 0.00 | CX26: R 0.00 | CY26: R 0.00
A27: 12 | B27: 250 | F27: =SUM(Forecasts!E8:M8) -> 24 | H27: 0 | J27: =VLOOKUP(J$11,'Option X3'!$D$6:$E$20,2,0) -> 0 | K27: 0 | L27: 0 | M27: R 0.00 | N27: R 0.00 | O27: R 0.00 | Q27: 0 | S27: 0 | U27: =VLOOKUP(U$11,'Option X3'!$D$6:$E$20,2,0) -> 0 | V27: 0 | W27: 0 | X27: R 0.00 | Y27: R 0.00 | Z27: R 0.00 | AB27: =Forecasts!N8 -> 1 | AD27: 0 | AF27: =VLOOKUP(AF$11,'Option X3'!$D$6:$E$20,2,0) -> 0 | AG27: 0 | AH27: 0 | AI27: R 0.00 | AJ27: R 0.00 | AK27: R 0.00 | AM27: =Forecasts!O8 -> 0 | AO27: 0 | AQ27: =VLOOKUP(AQ$11,'Option X3'!$D$6:$E$20,2,0) -> 0 | AR27: 0 | AS27: 0 | AT27: R 0.00 | AU27: R 0.00 | AV27: R 0.00 | AX27: 0 | AZ27: 0 | BB27: =VLOOKUP(BB$11,'Option X3'!$D$6:$E$20,2,0) -> 0 | BC27: 0 | BD27: 0 | BE27: R 0.00 | BF27: R 0.00 | BG27: R 0.00 | BI27: 0 | BK27: 0 | BM27: =VLOOKUP(BM$11,'Option X3'!$D$6:$E$20,2,0) -> 0 | BN27: 0 | BO27: 0 | BP27: R 0.00 | BQ27: R 0.00 | BR27: R 0.00 | BT27: 1 | BV27: 0 | BX27: =VLOOKUP(BX$11,'Option X3'!$D$6:$E$20,2,0) -> 0 | BY27: 0 | BZ27: 0 | CA27: R 0.00 | CB27: R 0.00 | CC27: R 0.00 | CE27: 0 | CG27: 0 | CI27: =VLOOKUP(CI$11,'Option X3'!$D$6:$E$20,2,0) -> 0 | CJ27: 0 | CK27: 0 | CL27: R 0.00 | CM27: R 0.00 | CN27: R 0.00 | CP27: 0 | CR27: 0 | CT27: =VLOOKUP(CT$11,'Option X3'!$D$6:$E$20,2,0) -> 0 | CU27: 0 | CV27: 0 | CW27: R 0.00 | CX27: R 0.00 | CY27: R 0.00
A28: 13 | B28: 300 | F28: =SUM(Forecasts!E9:M9) -> 1290 | H28: 0 | J28: =VLOOKUP(J$11,'Option X3'!$D$6:$E$20,2,0) -> 0 | K28: 0 | L28: 0 | M28: R 0.00 | N28: R 0.00 | O28: R 0.00 | Q28: 0 | S28: 0 | U28: =VLOOKUP(U$11,'Option X3'!$D$6:$E$20,2,0) -> 0 | V28: 0 | W28: 0 | X28: R 0.00 | Y28: R 0.00 | Z28: R 0.00 | AB28: =Forecasts!N9 -> 262 | AD28: 0 | AF28: =VLOOKUP(AF$11,'Option X3'!$D$6:$E$20,2,0) -> 0 | AG28: 0 | AH28: 0 | AI28: R 0.00 | AJ28: R 0.00 | AK28: R 0.00 | AM28: =Forecasts!O9 -> 0 | AO28: 0 | AQ28: =VLOOKUP(AQ$11,'Option X3'!$D$6:$E$20,2,0) -> 0 | AR28: 0 | AS28: 0 | AT28: R 0.00 | AU28: R 0.00 | AV28: R 0.00 | AX28: 0 | AZ28: 0 | BB28: =VLOOKUP(BB$11,'Option X3'!$D$6:$E$20,2,0) -> 0 | BC28: 0 | BD28: 0 | BE28: R 0.00 | BF28: R 0.00 | BG28: R 0.00 | BI28: 0 | BK28: 0 | BM28: =VLOOKUP(BM$11,'Option X3'!$D$6:$E$20,2,0) -> 0 | BN28: 0 | BO28: 0 | BP28: R 0.00 | BQ28: R 0.00 | BR28: R 0.00 | BT28: 262 | BV28: 0 | BX28: =VLOOKUP(BX$11,'Option X3'!$D$6:$E$20,2,0) -> 0 | BY28: 0 | BZ28: 0 | CA28: R 0.00 | CB28: R 0.00 | CC28: R 0.00 | CE28: 0 | CG28: 0 | CI28: =VLOOKUP(CI$11,'Option X3'!$D$6:$E$20,2,0) -> 0 | CJ28: 0 | CK28: 0 | CL28: R 0.00 | CM28: R 0.00 | CN28: R 0.00 | CP28: 0 | CR28: 0 | CT28: =VLOOKUP(CT$11,'Option X3'!$D$6:$E$20,2,0) -> 0 | CU28: 0 | CV28: 0 | CW28: R 0.00 | CX28: R 0.00 | CY28: R 0.00
A29: 14 | B29: 350 | F29: =SUM(Forecasts!E10:M10) -> 24 | H29: 0 | J29: =VLOOKUP(J$11,'Option X3'!$D$6:$E$20,2,0) -> 0 | K29: 0 | L29: 0 | M29: R 0.00 | N29: R 0.00 | O29: R 0.00 | Q29: 0 | S29: 0 | U29: =VLOOKUP(U$11,'Option X3'!$D$6:$E$20,2,0) -> 0 | V29: 0 | W29: 0 | X29: R 0.00 | Y29: R 0.00 | Z29: R 0.00 | AB29: =Forecasts!N10 -> 1 | AD29: 0 | AF29: =VLOOKUP(AF$11,'Option X3'!$D$6:$E$20,2,0) -> 0 | AG29: 0 | AH29: 0 | AI29: R 0.00 | AJ29: R 0.00 | AK29: R 0.00 | AM29: =Forecasts!O10 -> 0 | AO29: 0 | AQ29: =VLOOKUP(AQ$11,'Option X3'!$D$6:$E$20,2,0) -> 0 | AR29: 0 | AS29: 0 | AT29: R 0.00 | AU29: R 0.00 | AV29: R 0.00 | AX29: 0 | AZ29: 0 | BB29: =VLOOKUP(BB$11,'Option X3'!$D$6:$E$20,2,0) -> 0 | BC29: 0 | BD29: 0 | BE29: R 0.00 | BF29: R 0.00 | BG29: R 0.00 | BI29: 0 | BK29: 0 | BM29: =VLOOKUP(BM$11,'Option X3'!$D$6:$E$20,2,0) -> 0 | BN29: 0 | BO29: 0 | BP29: R 0.00 | BQ29: R 0.00 | BR29: R 0.00 | BT29: 1 | BV29: 0 | BX29: =VLOOKUP(BX$11,'Option X3'!$D$6:$E$20,2,0) -> 0 | BY29: 0 | BZ29: 0 | CA29: R 0.00 | CB29: R 0.00 | CC29: R 0.00 | CE29: 0 | CG29: 0 | CI29: =VLOOKUP(CI$11,'Option X3'!$D$6:$E$20,2,0) -> 0 | CJ29: 0 | CK29: 0 | CL29: R 0.00 | CM29: R 0.00 | CN29: R 0.00 | CP29: 0 | CR29: 0 | CT29: =VLOOKUP(CT$11,'Option X3'!$D$6:$E$20,2,0) -> 0 | CU29: 0 | CV29: 0 | CW29: R 0.00 | CX29: R 0.00 | CY29: R 0.00
A30: 15 | B30: 400 | F30: =SUM(Forecasts!E11:M11) -> 24 | H30: 0 | J30: =VLOOKUP(J$11,'Option X3'!$D$6:$E$20,2,0) -> 0 | K30: 0 | L30: 0 | M30: R 0.00 | N30: R 0.00 | O30: R 0.00 | Q30: 0 | S30: 0 | U30: =VLOOKUP(U$11,'Option X3'!$D$6:$E$20,2,0) -> 0 | V30: 0 | W30: 0 | X30: R 0.00 | Y30: R 0.00 | Z30: R 0.00 | AB30: =Forecasts!N11 -> 1 | AD30: 0 | AF30: =VLOOKUP(AF$11,'Option X3'!$D$6:$E$20,2,0) -> 0 | AG30: 0 | AH30: 0 | AI30: R 0.00 | AJ30: R 0.00 | AK30: R 0.00 | AM30: =Forecasts!O11 -> 0 | AO30: 0 | AQ30: =VLOOKUP(AQ$11,'Option X3'!$D$6:$E$20,2,0) -> 0 | AR30: 0 | AS30: 0 | AT30: R 0.00 | AU30: R 0.00 | AV30: R 0.00 | AX30: 0 | AZ30: 0 | BB30: =VLOOKUP(BB$11,'Option X3'!$D$6:$E$20,2,0) -> 0 | BC30: 0 | BD30: 0 | BE30: R 0.00 | BF30: R 0.00 | BG30: R 0.00 | BI30: 0 | BK30: 0 | BM30: =VLOOKUP(BM$11,'Option X3'!$D$6:$E$20,2,0) -> 0 | BN30: 0 | BO30: 0 | BP30: R 0.00 | BQ30: R 0.00 | BR30: R 0.00 | BT30: 1 | BV30: 0 | BX30: =VLOOKUP(BX$11,'Option X3'!$D$6:$E$20,2,0) -> 0 | BY30: 0 | BZ30: 0 | CA30: R 0.00 | CB30: R 0.00 | CC30: R 0.00 | CE30: 0 | CG30: 0 | CI30: =VLOOKUP(CI$11,'Option X3'!$D$6:$E$20,2,0) -> 0 | CJ30: 0 | CK30: 0 | CL30: R 0.00 | CM30: R 0.00 | CN30: R 0.00 | CP30: 0 | CR30: 0 | CT30: =VLOOKUP(CT$11,'Option X3'!$D$6:$E$20,2,0) -> 0 | CU30: 0 | CV30: 0 | CW30: R 0.00 | CX30: R 0.00 | CY30: R 0.00
A31: 16 | B31: 450 | F31: =SUM(Forecasts!E12:M12) -> 24 | H31: 0 | J31: =VLOOKUP(J$11,'Option X3'!$D$6:$E$20,2,0) -> 0 | K31: 0 | L31: 0 | M31: R 0.00 | N31: R 0.00 | O31: R 0.00 | Q31: 0 | S31: 0 | U31: =VLOOKUP(U$11,'Option X3'!$D$6:$E$20,2,0) -> 0 | V31: 0 | W31: 0 | X31: R 0.00 | Y31: R 0.00 | Z31: R 0.00 | AB31: =Forecasts!N12 -> 1 | AD31: 0 | AF31: =VLOOKUP(AF$11,'Option X3'!$D$6:$E$20,2,0) -> 0 | AG31: 0 | AH31: 0 | AI31: R 0.00 | AJ31: R 0.00 | AK31: R 0.00 | AM31: =Forecasts!O12 -> 0 | AO31: 0 | AQ31: =VLOOKUP(AQ$11,'Option X3'!$D$6:$E$20,2,0) -> 0 | AR31: 0 | AS31: 0 | AT31: R 0.00 | AU31: R 0.00 | AV31: R 0.00 | AX31: 0 | AZ31: 0 | BB31: =VLOOKUP(BB$11,'Option X3'!$D$6:$E$20,2,0) -> 0 | BC31: 0 | BD31: 0 | BE31: R 0.00 | BF31: R 0.00 | BG31: R 0.00 | BI31: 0 | BK31: 0 | BM31: =VLOOKUP(BM$11,'Option X3'!$D$6:$E$20,2,0) -> 0 | BN31: 0 | BO31: 0 | BP31: R 0.00 | BQ31: R 0.00 | BR31: R 0.00 | BT31: 1 | BV31: 0 | BX31: =VLOOKUP(BX$11,'Option X3'!$D$6:$E$20,2,0) -> 0 | BY31: 0 | BZ31: 0 | CA31: R 0.00 | CB31: R 0.00 | CC31: R 0.00 | CE31: 0 | CG31: 0 | CI31: =VLOOKUP(CI$11,'Option X3'!$D$6:$E$20,2,0) -> 0 | CJ31: 0 | CK31: 0 | CL31: R 0.00 | CM31: R 0.00 | CN31: R 0.00 | CP31: 0 | CR31: 0 | CT31: =VLOOKUP(CT$11,'Option X3'!$D$6:$E$20,2,0) -> 0 | CU31: 0 | CV31: 0 | CW31: R 0.00 | CX31: R 0.00 | CY31: R 0.00
A32: 17 | B32: 500 | F32: =SUM(Forecasts!E13:M13) -> 24 | H32: 0 | J32: =VLOOKUP(J$11,'Option X3'!$D$6:$E$20,2,0) -> 0 | K32: 0 | L32: 0 | M32: R 0.00 | N32: R 0.00 | O32: R 0.00 | Q32: 0 | S32: 0 | U32: =VLOOKUP(U$11,'Option X3'!$D$6:$E$20,2,0) -> 0 | V32: 0 | W32: 0 | X32: R 0.00 | Y32: R 0.00 | Z32: R 0.00 | AB32: =Forecasts!N13 -> 1 | AD32: 0 | AF32: =VLOOKUP(AF$11,'Option X3'!$D$6:$E$20,2,0) -> 0 | AG32: 0 | AH32: 0 | AI32: R 0.00 | AJ32: R 0.00 | AK32: R 0.00 | AM32: =Forecasts!O13 -> 0 | AO32: 0 | AQ32: =VLOOKUP(AQ$11,'Option X3'!$D$6:$E$20,2,0) -> 0 | AR32: 0 | AS32: 0 | AT32: R 0.00 | AU32: R 0.00 | AV32: R 0.00 | AX32: 0 | AZ32: 0 | BB32: =VLOOKUP(BB$11,'Option X3'!$D$6:$E$20,2,0) -> 0 | BC32: 0 | BD32: 0 | BE32: R 0.00 | BF32: R 0.00 | BG32: R 0.00 | BI32: 0 | BK32: 0 | BM32: =VLOOKUP(BM$11,'Option X3'!$D$6:$E$20,2,0) -> 0 | BN32: 0 | BO32: 0 | BP32: R 0.00 | BQ32: R 0.00 | BR32: R 0.00 | BT32: 1 | BV32: 0 | BX32: =VLOOKUP(BX$11,'Option X3'!$D$6:$E$20,2,0) -> 0 | BY32: 0 | BZ32: 0 | CA32: R 0.00 | CB32: R 0.00 | CC32: R 0.00 | CE32: 0 | CG32: 0 | CI32: =VLOOKUP(CI$11,'Option X3'!$D$6:$E$20,2,0) -> 0 | CJ32: 0 | CK32: 0 | CL32: R 0.00 | CM32: R 0.00 | CN32: R 0.00 | CP32: 0 | CR32: 0 | CT32: =VLOOKUP(CT$11,'Option X3'!$D$6:$E$20,2,0) -> 0 | CU32: 0 | CV32: 0 | CW32: R 0.00 | CX32: R 0.00 | CY32: R 0.00
A34: Notes:
A35: The estimated quantities for cells and number of battery banks are imported from the Forecast worksheet.

Sheet 03-Labour_Subs_Travel
A1: COSTS FOR LABOUR, SUBSISTENCE AND TRAVELLING
D3: Prices in South African Currency (Excluding VAT)
D4: Activities shall be quoted as PER UNIT and as being at the same site at the same time
A6: ENQUIRY NO | D6: ='Cover Sheet'!C3 -> E1270DXWC_
A7: COMMODITY | D7: ='Cover Sheet'!C4 -> FLAT PLATE, GEL, VALVE REGULATED LEAD ACID (VRLA) BATTERIES
A8: SUPPLIER | D8: =IF('Cover Sheet'!C5="","",'Cover Sheet'!C5) -> 
A10: Notes:
A11: Decommissioning - the removal of wet charged cells (and associated stand/cabinet where applicable) and disposal in line with Eskom procedures.
A12: Installation - the construction, placing of the battery stand/cabinet, packing and linking of cells.
A13: Commissioning - the connection of the battery to the charger and ensuring that the charger settings are correct for the battery. The relevant documentation shall be supplied to Eskom.
A14: The tenderer shall indicate the maximum Ah for the Small - Medium Ah range in Column C for Item 1. These values will be copied to the other cells automatically.
A15: Minimum discharge duration to be quoted on shall be 5 hours.
E17: Tenderer to indicate the Number of Labour Hours per Battery Bank
A18: Item | B18: Item Description | C18: Capacity Range [Ah] | D18: Bank Voltage [V] | E18: Decommissioning | F18: Installation | G18: Commissioning without Discharge Test | H18: Commissioning with Discharge Test
A20: 1 | B20: Small - Medium Ah | D20: 12
A21: 2 | B21: Large Ah | C21: =MAX('02-Flat Plate, Gel'!B23:B32) -> 500 | D21: 12
A22: 3 | B22: Small - Medium Ah | C22: =IF(C20="","",C20) ->  | D22: 24 - 32
A23: 4 | B23: Large Ah | C23: =IF(C21="","",C21) -> 500 | D23: 24 - 32
A24: 5 | B24: Small - Medium Ah | D24: 48
A25: 6 | B25: Large Ah | C25: 500 | D25: 48
A26: 7 | B26: Small - Medium Ah | D26: 110
A27: 8 | B27: Large Ah | C27: 500 | D27: 110
A28: 9 | B28: Small - Medium Ah | D28: 220
A29: 10 | B29: Large Ah | C29: 500 | D29: 220
A31: Item | B31: Item Description | C31: Cost | D31: Comment
A33: 11 | B33: Labour Rate | D33: Cost per hour
A34: 12 | B34: Subsistence Rate | D34: Cost per Team per Day (8 hrs)
A35: 13 | B35: Travelling Rate | D35: Cost per kilometer
A37: Labour Charges | I37: S&T Costs
A38: Item | B38: Item Description | C38: Capacity Range [Ah] | D38: Bank Voltage [V] | E38: Decommissioning | F38: Installation | G38: Commissioning without Discharge Test | H38: Commissioning with Discharge Test | I38: S&T without Discharge | J38: S&T with Discharge
A40: 1 | B40: Small - Medium Ah | C40: =IF(C20="","",C20) ->  | D40: 12 | E40: =$C$33*E20 -> R 0.00 | F40: =$C$33*F20 -> R 0.00 | G40: =$C$33*G20 -> R 0.00 | H40: R 0.00 | I40: =ROUNDUP(SUM(E20:G20)/8,0)*$C$34 -> 0 | J40: =ROUNDUP((SUM(E20:F20)+H20)/8,0)*$C$34 -> 0
A41: 2 | B41: Large Ah | C41: =IF(C21="","",C21) -> 500 | D41: 12 | E41: =$C$33*E21 -> R 0.00 | F41: R 0.00 | G41: R 0.00 | H41: R 0.00 | I41: =ROUNDUP(SUM(E21:G21)/8,0)*$C$34 -> 0 | J41: =ROUNDUP((SUM(E21:F21)+H21)/8,0)*$C$34 -> 0
A42: 3 | B42: Small - Medium Ah | C42: =IF(C40="","",C40) ->  | D42: 24 - 32 | E42: R 0.00 | F42: R 0.00 | G42: R 0.00 | H42: R 0.00 | I42: 0 | J42: 0
A43: 4 | B43: Large Ah | C43: =IF(C41="","",C41) -> 500 | D43: 24 - 32 | E43: R 0.00 | F43: R 0.00 | G43: R 0.00 | H43: R 0.00 | I43: 0 | J43: 0
A44: 5 | B44: Small - Medium Ah | D44: 48 | E44: R 0.00 | F44: R 0.00 | G44: R 0.00 | H44: R 0.00 | I44: 0 | J44: 0
A45: 6 | B45: Large Ah | C45: 500 | D45: 48 | E45: R 0.00 | F45: R 0.00 | G45: R 0.00 | H45: R 0.00 | I45: 0 | J45: 0
A46: 7 | B46: Small - Medium Ah | D46: 110 | E46: R 0.00 | F46: R 0.00 | G46: R 0.00 | H46: R 0.00 | I46: 0 | J46: 0
A47: 8 | B47: Large Ah | C47: 500 | D47: 110 | E47: R 0.00 | F47: R 0.00 | G47: R 0.00 | H47: R 0.00 | I47: 0 | J47: 0
A48: 9 | B48: Small - Medium Ah | D48: 220 | E48: R 0.00 | F48: R 0.00 | G48: R 0.00 | H48: R 0.00 | I48: 0 | J48: 0
A49: 10 | B49: Large Ah | C49: 500 | D49: 220 | E49: R 0.00 | F49: R 0.00 | G49: R 0.00 | H49: R 0.00 | I49: 0 | J49: 0

Sheet 04-Transport & Off Loading
A1: TRANSPORT AND OFF LOADING COSTS (Applicable to crated orders. Small items shall be couriered at the cheapest cost)
A2: Transport Costs on the same order, going to the same location shall be optimised and NOT treated as individual consignments.
A3: ENQUIRY NO | G3: ='Cover Sheet'!C3 -> E1270DXWC_
A4: COMMODITY | G4: ='Cover Sheet'!C4 -> FLAT PLATE, GEL, VALVE REGULATED LEAD ACID (VRLA) BATTERIES
A5: SUPPLIER | G5: =IF('Cover Sheet'!C5="","",'Cover Sheet'!C5) -> 
A6: Item | B6: Distance to site [km] | D6: Prices in South African Currency (Excluding VAT)
D7: Transport to site or regional store and off-loading
D8: Total Mass [kg]
D9: 0-1000 | E9: 1001 - 2000 | F9: 2001 - 3000 | G9: 3001 - 4000 | H9: 4001 - 6000 | I9: 6001 - 8000 | J9: 8001 - 10000 | K9: 10001 - 14000 | L9: 14001 - 18000 | M9: 18000 +
D10: 1000 | E10: 2000 | F10: 3000 | G10: 4000 | H10: 6000 | I10: 8000 | J10: 10000 | K10: 14000 | L10: 18000 | M10: 22000
A11: 1 | B11: 0 - 100 | C11: 100
A12: 2 | B12: 101 - 200 | C12: 200
A13: 3 | B13: 201 - 300 | C13: 300
A14: 4 | B14: 301 - 400 | C14: 400
A15: 5 | B15: 401 - 500 | C15: 500
A16: 6 | B16: 501 - 600 | C16: 600
A17: 7 | B17: 601 - 700 | C17: 700
A18: 8 | B18: 701 - 800 | C18: 800
A19: 9 | B19: 801 - 900 | C19: 900
A20: 10 | B20: 901 - 1000 | C20: 1000
A21: 11 | B21: 1001 - 1100 | C21: 1100
A22: 12 | B22: 1101 - 1200 | C22: 1200
A23: 13 | B23: 1201 - 1300 | C23: 1300
A24: 14 | B24: 1301 - 1400 | C24: 1400
A25: 15 | B25: 1401 - 1500 | C25: 1500
C26: 1 | D26: 2 | E26: 3 | F26: 4 | G26: 5 | H26: 6 | I26: 7 | J26: 8 | K26: 9 | L26: 10 | M26: 11
A27: COMMENTS:

Sheet 05-Accessories
A2: ENQUIRY NO | D2: ='Cover Sheet'!C3 -> E1270DXWC_
A3: COMMODITY | D3: ='Cover Sheet'!C4 -> FLAT PLATE, GEL, VALVE REGULATED LEAD ACID (VRLA) BATTERIES
A4: SUPPLIER | D4: =IF('Cover Sheet'!C5="","",'Cover Sheet'!C5) -> 
A6: List of Accessories (All amounts in ZAR excluding VAT.)
A7: Item | B7: SAP Number | C7: Short Description | D7: Price | E7: Comments
A8: 1 | B8: TBA | C8: Anti-corrosion lubricant (at least 250ml)
A9: 2 | B9: TBA | C9: VRLA battery cell logbook 1)
A10: 3 | B10: TBA | C10: Battery cabinet identification label
A11: 4 | B11: TBA | C11: Battery cabinet safety sign
A12: 5 | B12: TBA | C12: Non-intrusive (laser) thermometer
A13: 6 | B13: TBA | C13: 25 mm Paint Brush
A14: 7 | C14: Safety File
A15: 8
A16: 9
A17: 10
A18: 11
A19: 12
A20: 13
A21: 14
A22: 15
A23: 16
A24: 17
B26: Notes:
B27: 1) Shall comply with 240-118705836, Maintenance of Batteries.
B28: 2) Shall comply with 240-56362221, Standard for safety signs used in DC applications
B29: 3) Shall comply with 240-44175132, Eskom Personal Protective Equipment (PPE)

Sheet 06-Training
A2: TRAINING
A4: Prices in South African Currency (Excluding VAT)
A6: ENQUIRY NO | C6: ='Cover Sheet'!C3 -> E1270DXWC_
A7: COMMODITY | C7: ='Cover Sheet'!C4 -> FLAT PLATE, GEL, VALVE REGULATED LEAD ACID (VRLA) BATTERIES
A8: SUPPLIER | C8: =IF('Cover Sheet'!C5="","",'Cover Sheet'!C5) -> 
A9: Item | B9: Options | C9: Cost / Session / Student | D9: Min no. of students | E9: Max no. of students | F9: Duration [days]
A10: 1 | B10: At Eskom Premises
A11: 2 | B11: At Suppliers Works
A12: NOTE: The supplier shall ensure that all training material and equipment are available.
A14: COMMENTS:

Sheet 07-Other Costs
B2: ENQUIRY NO | C2: ='Cover Sheet'!C3 -> E1270DXWC_
B3: COMMODITY | C3: ='Cover Sheet'!C4 -> FLAT PLATE, GEL, VALVE REGULATED LEAD ACID (VRLA) BATTERIES
B4: SUPPLIER | C4: =IF('Cover Sheet'!C5="","",'Cover Sheet'!C5) -> 
B5: The supplier shall state the terms and conditions related to other costs that were not explicitly stated (requested) as part of the enquiry. These could include costs related to storage on behalf of Eskom where the site is not yet ready; cancellation fees - where an order was placed and needs to be amended / changed for other equipment, etc.
B7: Item | C7: Proposal with terms and conditions

Sheet 08-Flat Plate Gel Full Range
A1: ='02-Flat Plate, Gel'!A1 -> Offered Flat Plate, Gel Type VRLA Cells/Batteries
A3: ENQUIRY NO: | C3: ='Cover Sheet'!C3 -> E1270DXWC_
A4: COMMODITY: | C4: ='Cover Sheet'!C4 -> FLAT PLATE, GEL, VALVE REGULATED LEAD ACID (VRLA) BATTERIES
A5: SUPPLIER: | C5: =IF('Cover Sheet'!C5="","",'Cover Sheet'!C5) -> 
A7: Price Schedule for Tripper Pack and Individual Cells - All amounts in ZAR excluding VAT.
A8: The prices for individual cells include a cell label (number), inter-cell connectors, bolts, nuts, washers, spring washers, corrosion protection and electrolyte.
A9: Tripper Pack is sealed, cylindrical, D size Nickel Cadmium cells consisiting of 20 cells (4x5 cell configuration) shall be wrapped (PVC shrink-wrapping, or plastic casings) as a unit. Comply with IEC 61951-1, Secondary cells and batteries containing alkaline or other non-acid electrolytes – Portable sealed rechargeable single cells – Part 1: Nickel-Cadmium.
A10: Linking sets will include interrow connectors, terminating cables and associated accessories.
B12: 1 | C12: 2 | D12: 3 | E12: 4 | F12: 5 | G12: 6 | H12: 7 | I12: 8 | J12: 9 | K12: 10 | L12: 11 | M12: 12 | N12: 13 | O12: 14 | P12: 15 | Q12: 16 | R12: 17 | S12: 18 | T12: 19 | U12: 20 | V12: 21 | W12: 22 | X12: 23 | Y12: 24 | Z12: 25 | AA12: 26 | AB12: 27 | AC12: 28 | AD12: 29 | AE12: 30 | AF12: 31 | AG12: 32 | AH12: 33 | AI12: 34 | AJ12: 35 | AK12: 36 | AL12: 37 | AM12: 38 | AN12: 39 | AO12: 40 | AP12: 41 | AQ12: 42 | AR12: 43 | AS12: 44 | AT12: 45 | AU12: 46 | AV12: 47 | AW12: 48 | AX12: 49 | AY12: 50 | AZ12: 51 | BA12: 52 | BB12: 53 | BC12: 54 | BD12: 55 | BE12: 56 | BF12: 57 | BG12: 58 | BH12: 59 | BI12: 60 | BJ12: 61 | BK12: 62 | BL12: 63 | BM12: 64 | BN12: 65 | BO12: 66 | BP12: 67 | BQ12: 68 | BR12: 69 | BS12: 70 | BT12: 71 | BU12: 72 | BV12: 73 | BW12: 74 | BX12: 75 | BY12: 76 | BZ12: 77 | CA12: 78 | CB12: 79 | CC12: 80 | CD12: 81 | CE12: 82 | CF12: 83 | CG12: 84 | CH12: 85 | CI12: 86 | CJ12: 87 | CK12: 88 | CL12: 89 | CM12: 90 | CN12: 91 | CO12: 92 | CP12: 93 | CQ12: 94 | CR12: 95 | CS12: 96 | CT12: 97 | CU12: 98 | CV12: 99 | CW12: 100 | CX12: 101 | CY12: 102 | CZ12: 103
J13: USD | U13: USD | AF13: USD | AQ13: USD | BB13: USD | BM13: USD | BX13: USD | CI13: USD | CT13: USD
A14: Item # | B14: Required Capacity [Ah] | C14: Offered Capacity [Ah] | D14: Model No. | E14: Wet Weight/unit [kg] | F14: Wet Cells | Q14: 30V Linking Sets | AB14: 48V Linking Sets | AM14: 110V Linking Sets | AX14: 220V Linking Sets | BI14: 30V Battery Cabinet | BT14: 48V Battery Cabinet | CE14: 110V Battery Cabinet | CP14: 220V Battery Cabinet
F15: (1) | G15: (2) | H15: (3)=(1)x(2) | I15: (4) | J15: (5) | K15: (6)=(1)x(4) | L15: (7)=(5)x(6) | M15: (8)=(3)+(7) | N15: (9)=0.15x(8) | O15: (10)=(8)+(9) | P15: CPA Formula | Q15: (1) | R15: (2) | S15: (3)=(1)x(2) | T15: (4) | U15: (5) | V15: (6)=(1)x(4) | W15: (7)=(5)x(6) | X15: (8)=(3)+(7) | Y15: (9)=0.15x(8) | Z15: (10)=(8)+(9) | AA15: CPA Formula | AB15: (1) | AC15: (2) | AD15: (3)=(1)x(2) | AE15: (4) | AF15: (5) | AG15: (6)=(1)x(4) | AH15: (7)=(5)x(6) | AI15: (8)=(3)+(7) | AJ15: (9)=0.15x(8) | AK15: (10)=(8)+(9) | AL15: CPA Formula | AM15: (1) | AN15: (2) | AO15: (3)=(1)x(2) | AP15: (4) | AQ15: (5) | AR15: (6)=(1)x(4) | AS15: (7)=(5)x(6) | AT15: (8)=(3)+(7) | AU15: (9)=0.15x(8) | AV15: (10)=(8)+(9) | AW15: CPA Formula | AX15: (1) | AY15: (2) | AZ15: (3)=(1)x(2) | BA15: (4) | BB15: (5) | BC15: (6)=(1)x(4) | BD15: (7)=(5)x(6) | BE15: (8)=(3)+(7) | BF15: (9)=0.15x(8) | BG15: (10)=(8)+(9) | BH15: CPA Formula | BI15: (1) | BJ15: (2) | BK15: (3)=(1)x(2) | BL15: (4) | BM15: (5) | BN15: (6)=(1)x(4) | BO15: (7)=(5)x(6) | BP15: (8)=(3)+(7) | BQ15: (9)=0.15x(8) | BR15: (10)=(8)+(9) | BS15: CPA Formula | BT15: (1) | BU15: (2) | BV15: (3)=(1)x(2) | BW15: (4) | BX15: (5) | BY15: (6)=(1)x(4) | BZ15: (7)=(5)x(6) | CA15: (8)=(3)+(7) | CB15: (9)=0.15x(8) | CC15: (10)=(8)+(9) | CD15: CPA Formula | CE15: (1) | CF15: (2) | CG15: (3)=(1)x(2) | CH15: (4) | CI15: (5) | CJ15: (6)=(1)x(4) | CK15: (7)=(5)x(6) | CL15: (8)=(3)+(7) | CM15: (9)=0.15x(8) | CN15: (10)=(8)+(9) | CO15: CPA Formula | CP15: (1) | CQ15: (2) | CR15: (3)=(1)x(2) | CS15: (4) | CT15: (5) | CU15: (6)=(1)x(4) | CV15: (7)=(5)x(6) | CW15: (8)=(3)+(7) | CX15: (9)=0.15x(8) | CY15: (10)=(8)+(9) | CZ15: CPA Formula
F16: Estimated Qty | G16: Local Currency | I16: Foreign Currency | M16: Local + Foreign Currency | Q16: Estimated Qty | R16: Local Currency | T16: Foreign Currency | X16: Local + Foreign Currency | AB16: Estimated Qty | AC16: Local Currency | AE16: Foreign Currency | AI16: Local + Foreign Currency | AM16: Estimated Qty | AN16: Local Currency | AP16: Foreign Currency | AT16: Local + Foreign Currency | AX16: Estimated Qty | AY16: Local Currency | BA16: Foreign Currency | BE16: Local + Foreign Currency | BI16: Estimated Qty | BJ16: Local Currency | BL16: Foreign Currency | BP16: Local + Foreign Currency | BT16: Estimated Qty | BU16: Local Currency | BW16: Foreign Currency | CA16: Local + Foreign Currency | CE16: Estimated Qty | CF16: Local Currency | CH16: Foreign Currency | CL16: Local + Foreign Currency | CP16: Estimated Qty | CQ16: Local Currency | CS16: Foreign Currency | CW16: Local + Foreign Currency
G17: Rate/unit (ZAR) | H17: Local Portion (ZAR) | I17: Rate/unit (Foreign) | J17: ROE | K17: ="Foreign Portion ("&J13&")" -> Foreign Portion (USD) | L17: Foreign Portion (ZAR) | M17: Total Price excl. VAT (ZAR) | N17: VAT (ZAR) | O17: Total Price incl. VAT (ZAR) | R17: Rate/unit (ZAR) | S17: Local Portion (ZAR) | T17: Rate/unit (Foreign) | U17: ROE | V17: ="Foreign Portion ("&U13&")" -> Foreign Portion (USD) | W17: Foreign Portion (ZAR) | X17: Total Price excl. VAT (ZAR) | Y17: VAT (ZAR) | Z17: Total Price incl. VAT (ZAR) | AC17: Rate/unit (ZAR) | AD17: Local Portion (ZAR) | AE17: Rate/unit (Foreign) | AF17: ROE | AG17: ="Foreign Portion ("&AF13&")" -> Foreign Portion (USD) | AH17: Foreign Portion (ZAR) | AI17: Total Price excl. VAT (ZAR) | AJ17: VAT (ZAR) | AK17: Total Price incl. VAT (ZAR) | AN17: Rate/unit (ZAR) | AO17: Local Portion (ZAR) | AP17: Rate/unit (Foreign) | AQ17: ROE | AR17: ="Foreign Portion ("&AQ13&")" -> Foreign Portion (USD) | AS17: Foreign Portion (ZAR) | AT17: Total Price excl. VAT (ZAR) | AU17: VAT (ZAR) | AV17: Total Price incl. VAT (ZAR) | AY17: Rate/unit (ZAR) | AZ17: Local Portion (ZAR) | BA17: Rate/unit (Foreign) | BB17: ROE | BC17: ="Foreign Portion ("&BB13&")" -> Foreign Portion (USD) | BD17: Foreign Portion (ZAR) | BE17: Total Price excl. VAT (ZAR) | BF17: VAT (ZAR) | BG17: Total Price incl. VAT (ZAR) | BJ17: Rate/unit (ZAR) | BK17: Local Portion (ZAR) | BL17: Rate/unit (Foreign) | BM17: ROE | BN17: ="Foreign Portion ("&BM13&")" -> Foreign Portion (USD) | BO17: Foreign Portion (ZAR) | BP17: Total Price excl. VAT (ZAR) | BQ17: VAT (ZAR) | BR17: Total Price incl. VAT (ZAR) | BU17: Rate/unit (ZAR) | BV17: Local Portion (ZAR) | BW17: Rate/unit (Foreign) | BX17: ROE | BY17: ="Foreign Portion ("&BX13&")" -> Foreign Portion (USD) | BZ17: Foreign Portion (ZAR) | CA17: Total Price excl. VAT (ZAR) | CB17: VAT (ZAR) | CC17: Total Price incl. VAT (ZAR) | CF17: Rate/unit (ZAR) | CG17: Local Portion (ZAR) | CH17: Rate/unit (Foreign) | CI17: ROE | CJ17: ="Foreign Portion ("&CI13&")" -> Foreign Portion (USD) | CK17: Foreign Portion (ZAR) | CL17: Total Price excl. VAT (ZAR) | CM17: VAT (ZAR) | CN17: Total Price incl. VAT (ZAR) | CQ17: Rate/unit (ZAR) | CR17: Local Portion (ZAR) | CS17: Rate/unit (Foreign) | CT17: ROE | CU17: ="Foreign Portion ("&CT13&")" -> Foreign Portion (USD) | CV17: Foreign Portion (ZAR) | CW17: Total Price excl. VAT (ZAR) | CX17: VAT (ZAR) | CY17: Total Price incl. VAT (ZAR)
A18: 1 | B18: Not Applicable Not Applicable | F18: 1 | H18: =F18*G18 -> 0 | J18: =VLOOKUP(J$13,'Option X3'!$D$6:$E$20,2,0) -> 0 | K18: =F18*I18 -> 0 | L18: =J18*K18 -> 0 | M18: =H18+L18 -> R 0.00 | N18: =0.15*M18 -> R 0.00 | O18: =SUM(M18:N18) -> R 0.00 | Q18: 1 | S18: =Q18*R18 -> 0 | U18: =VLOOKUP(U$13,'Option X3'!$D$6:$E$20,2,0) -> 0 | V18: =Q18*T18 -> 0 | W18: =U18*V18 -> 0 | X18: =S18+W18 -> R 0.00 | Y18: =0.15*X18 -> R 0.00 | Z18: =SUM(X18:Y18) -> R 0.00 | AB18: 1 | AD18: =AB18*AC18 -> 0 | AF18: =VLOOKUP(AF$13,'Option X3'!$D$6:$E$20,2,0) -> 0 | AG18: =AB18*AE18 -> 0 | AH18: =AF18*AG18 -> 0 | AI18: =AD18+AH18 -> R 0.00 | AJ18: =0.15*AI18 -> R 0.00 | AK18: =SUM(AI18:AJ18) -> R 0.00 | AM18: 1 | AO18: =AM18*AN18 -> 0 | AQ18: =VLOOKUP(AQ$13,'Option X3'!$D$6:$E$20,2,0) -> 0 | AR18: =AM18*AP18 -> 0 | AS18: =AQ18*AR18 -> 0 | AT18: =AO18+AS18 -> R 0.00 | AU18: =0.15*AT18 -> R 0.00 | AV18: =SUM(AT18:AU18) -> R 0.00 | AX18: 1 | AZ18: =AX18*AY18 -> 0 | BB18: =VLOOKUP(BB$13,'Option X3'!$D$6:$E$20,2,0) -> 0 | BC18: =AX18*BA18 -> 0 | BD18: =BB18*BC18 -> 0 | BE18: =AZ18+BD18 -> R 0.00 | BF18: =0.15*BE18 -> R 0.00 | BG18: =SUM(BE18:BF18) -> R 0.00 | BI18: =Q18 -> 1 | BK18: =BI18*BJ18 -> 0 | BM18: =VLOOKUP(BM$13,'Option X3'!$D$6:$E$20,2,0) -> 0 | BN18: =BI18*BL18 -> 0 | BO18: =BM18*BN18 -> 0 | BP18: =BK18+BO18 -> R 0.00 | BQ18: =0.15*BP18 -> R 0.00 | BR18: =SUM(BP18:BQ18) -> R 0.00 | BT18: =AB18 -> 1 | BV18: =BT18*BU18 -> 0 | BX18: =VLOOKUP(BX$13,'Option X3'!$D$6:$E$20,2,0) -> 0 | BY18: =BT18*BW18 -> 0 | BZ18: =BX18*BY18 -> 0 | CA18: =BV18+BZ18 -> R 0.00 | CB18: =0.15*CA18 -> R 0.00 | CC18: =SUM(CA18:CB18) -> R 0.00 | CE18: =AM18 -> 1 | CG18: =CE18*CF18 -> 0 | CI18: =VLOOKUP(CI$13,'Option X3'!$D$6:$E$20,2,0) -> 0 | CJ18: =CE18*CH18 -> 0 | CK18: =CI18*CJ18 -> 0 | CL18: =CG18+CK18 -> R 0.00 | CM18: =0.15*CL18 -> R 0.00 | CN18: =SUM(CL18:CM18) -> R 0.00 | CP18: =AX18 -> 1 | CR18: =CP18*CQ18 -> 0 | CT18: =VLOOKUP(CT$13,'Option X3'!$D$6:$E$20,2,0) -> 0 | CU18: =CP18*CS18 -> 0 | CV18: =CT18*CU18 -> 0 | CW18: =CR18+CV18 -> R 0.00 | CX18: =0.15*CW18 -> R 0.00 | CY18: =SUM(CW18:CX18) -> R 0.00
A19: 2 | F19: 1 | H19: =F19*G19 -> 0 | J19: =VLOOKUP(J$13,'Option X3'!$D$6:$E$20,2,0) -> 0 | K19: =F19*I19 -> 0 | L19: =J19*K19 -> 0 | M19: =H19+L19 -> R 0.00 | N19: =0.15*M19 -> R 0.00 | O19: =SUM(M19:N19) -> R 0.00 | Q19: 1 | S19: =Q19*R19 -> 0 | U19: =VLOOKUP(U$13,'Option X3'!$D$6:$E$20,2,0) -> 0 | V19: =Q19*T19 -> 0 | W19: =U19*V19 -> 0 | X19: =S19+W19 -> R 0.00 | Y19: =0.15*X19 -> R 0.00 | Z19: =SUM(X19:Y19) -> R 0.00 | AB19: 1 | AD19: =AB19*AC19 -> 0 | AF19: =VLOOKUP(AF$13,'Option X3'!$D$6:$E$20,2,0) -> 0 | AG19: =AB19*AE19 -> 0 | AH19: =AF19*AG19 -> 0 | AI19: =AD19+AH19 -> R 0.00 | AJ19: =0.15*AI19 -> R 0.00 | AK19: =SUM(AI19:AJ19) -> R 0.00 | AM19: 1 | AO19: =AM19*AN19 -> 0 | AQ19: =VLOOKUP(AQ$13,'Option X3'!$D$6:$E$20,2,0) -> 0 | AR19: =AM19*AP19 -> 0 | AS19: =AQ19*AR19 -> 0 | AT19: =AO19+AS19 -> R 0.00 | AU19: =0.15*AT19 -> R 0.00 | AV19: =SUM(AT19:AU19) -> R 0.00 | AX19: 1 | AZ19: =AX19*AY19 -> 0 | BB19: =VLOOKUP(BB$13,'Option X3'!$D$6:$E$20,2,0) -> 0 | BC19: =AX19*BA19 -> 0 | BD19: =BB19*BC19 -> 0 | BE19: =AZ19+BD19 -> R 0.00 | BF19: =0.15*BE19 -> R 0.00 | BG19: =SUM(BE19:BF19) -> R 0.00 | BI19: =Q19 -> 1 | BK19: =BI19*BJ19 -> 0 | BL19: 0 | BM19: =VLOOKUP(BM$13,'Option X3'!$D$6:$E$20,2,0) -> 0 | BN19: =BI19*BL19 -> 0 | BO19: =BM19*BN19 -> 0 | BP19: =BK19+BO19 -> R 0.00 | BQ19: =0.15*BP19 -> R 0.00 | BR19: =SUM(BP19:BQ19) -> R 0.00 | BT19: =AB19 -> 1 | BV19: =BT19*BU19 -> 0 | BX19: =VLOOKUP(BX$13,'Option X3'!$D$6:$E$20,2,0) -> 0 | BY19: =BT19*BW19 -> 0 | BZ19: =BX19*BY19 -> 0 | CA19: =BV19+BZ19 -> R 0.00 | CB19: =0.15*CA19 -> R 0.00 | CC19: =SUM(CA19:CB19) -> R 0.00 | CE19: =AM19 -> 1 | CG19: =CE19*CF19 -> 0 | CI19: =VLOOKUP(CI$13,'Option X3'!$D$6:$E$20,2,0) -> 0 | CJ19: =CE19*CH19 -> 0 | CK19: =CI19*CJ19 -> 0 | CL19: =CG19+CK19 -> R 0.00 | CM19: =0.15*CL19 -> R 0.00 | CN19: =SUM(CL19:CM19) -> R 0.00 | CP19: =AX19 -> 1 | CR19: =CP19*CQ19 -> 0 | CT19: =VLOOKUP(CT$13,'Option X3'!$D$6:$E$20,2,0) -> 0 | CU19: =CP19*CS19 -> 0 | CV19: =CT19*CU19 -> 0 | CW19: =CR19+CV19 -> R 0.00 | CX19: =0.15*CW19 -> R 0.00 | CY19: =SUM(CW19:CX19) -> R 0.00
A20: 3 | F20: 1 | H20: 0 | J20: =VLOOKUP(J$13,'Option X3'!$D$6:$E$20,2,0) -> 0 | K20: 0 | L20: 0 | M20: R 0.00 | N20: R 0.00 | O20: R 0.00 | Q20: 1 | S20: 0 | U20: =VLOOKUP(U$13,'Option X3'!$D$6:$E$20,2,0) -> 0 | V20: 0 | W20: 0 | X20: R 0.00 | Y20: R 0.00 | Z20: R 0.00 | AB20: 1 | AD20: 0 | AF20: =VLOOKUP(AF$13,'Option X3'!$D$6:$E$20,2,0) -> 0 | AG20: 0 | AH20: 0 | AI20: R 0.00 | AJ20: R 0.00 | AK20: R 0.00 | AM20: 1 | AO20: 0 | AQ20: =VLOOKUP(AQ$13,'Option X3'!$D$6:$E$20,2,0) -> 0 | AR20: 0 | AS20: 0 | AT20: R 0.00 | AU20: R 0.00 | AV20: R 0.00 | AX20: 1 | AZ20: 0 | BB20: =VLOOKUP(BB$13,'Option X3'!$D$6:$E$20,2,0) -> 0 | BC20: 0 | BD20: 0 | BE20: R 0.00 | BF20: R 0.00 | BG20: R 0.00 | BI20: 1 | BK20: 0 | BM20: =VLOOKUP(BM$13,'Option X3'!$D$6:$E$20,2,0) -> 0 | BN20: 0 | BO20: 0 | BP20: R 0.00 | BQ20: R 0.00 | BR20: R 0.00 | BT20: 1 | BV20: 0 | BX20: =VLOOKUP(BX$13,'Option X3'!$D$6:$E$20,2,0) -> 0 | BY20: 0 | BZ20: 0 | CA20: R 0.00 | CB20: R 0.00 | CC20: R 0.00 | CE20: 1 | CG20: 0 | CI20: =VLOOKUP(CI$13,'Option X3'!$D$6:$E$20,2,0) -> 0 | CJ20: 0 | CK20: 0 | CL20: R 0.00 | CM20: R 0.00 | CN20: R 0.00 | CP20: 1 | CR20: 0 | CT20: =VLOOKUP(CT$13,'Option X3'!$D$6:$E$20,2,0) -> 0 | CU20: 0 | CV20: 0 | CW20: R 0.00 | CX20: R 0.00 | CY20: R 0.00
A21: 4 | F21: 1 | H21: 0 | J21: =VLOOKUP(J$13,'Option X3'!$D$6:$E$20,2,0) -> 0 | K21: 0 | L21: 0 | M21: R 0.00 | N21: R 0.00 | O21: R 0.00 | Q21: 1 | S21: 0 | U21: =VLOOKUP(U$13,'Option X3'!$D$6:$E$20,2,0) -> 0 | V21: 0 | W21: 0 | X21: R 0.00 | Y21: R 0.00 | Z21: R 0.00 | AB21: 1 | AD21: 0 | AF21: =VLOOKUP(AF$13,'Option X3'!$D$6:$E$20,2,0) -> 0 | AG21: 0 | AH21: 0 | AI21: R 0.00 | AJ21: R 0.00 | AK21: R 0.00 | AM21: 1 | AO21: 0 | AQ21: =VLOOKUP(AQ$13,'Option X3'!$D$6:$E$20,2,0) -> 0 | AR21: 0 | AS21: 0 | AT21: R 0.00 | AU21: R 0.00 | AV21: R 0.00 | AX21: 1 | AZ21: 0 | BB21: =VLOOKUP(BB$13,'Option X3'!$D$6:$E$20,2,0) -> 0 | BC21: 0 | BD21: 0 | BE21: R 0.00 | BF21: R 0.00 | BG21: R 0.00 | BI21: 1 | BK21: 0 | BM21: =VLOOKUP(BM$13,'Option X3'!$D$6:$E$20,2,0) -> 0 | BN21: 0 | BO21: 0 | BP21: R 0.00 | BQ21: R 0.00 | BR21: R 0.00 | BT21: 1 | BV21: 0 | BX21: =VLOOKUP(BX$13,'Option X3'!$D$6:$E$20,2,0) -> 0 | BY21: 0 | BZ21: 0 | CA21: R 0.00 | CB21: R 0.00 | CC21: R 0.00 | CE21: 1 | CG21: 0 | CI21: =VLOOKUP(CI$13,'Option X3'!$D$6:$E$20,2,0) -> 0 | CJ21: 0 | CK21: 0 | CL21: R 0.00 | CM21: R 0.00 | CN21: R 0.00 | CP21: 1 | CR21: 0 | CT21: =VLOOKUP(CT$13,'Option X3'!$D$6:$E$20,2,0) -> 0 | CU21: 0 | CV21: 0 | CW21: R 0.00 | CX21: R 0.00 | CY21: R 0.00
A22: 5 | F22: 1 | H22: 0 | J22: =VLOOKUP(J$13,'Option X3'!$D$6:$E$20,2,0) -> 0 | K22: 0 | L22: 0 | M22: R 0.00 | N22: R 0.00 | O22: R 0.00 | Q22: 1 | S22: 0 | U22: =VLOOKUP(U$13,'Option X3'!$D$6:$E$20,2,0) -> 0 | V22: 0 | W22: 0 | X22: R 0.00 | Y22: R 0.00 | Z22: R 0.00 | AB22: 1 | AD22: 0 | AF22: =VLOOKUP(AF$13,'Option X3'!$D$6:$E$20,2,0) -> 0 | AG22: 0 | AH22: 0 | AI22: R 0.00 | AJ22: R 0.00 | AK22: R 0.00 | AM22: 1 | AO22: 0 | AQ22: =VLOOKUP(AQ$13,'Option X3'!$D$6:$E$20,2,0) -> 0 | AR22: 0 | AS22: 0 | AT22: R 0.00 | AU22: R 0.00 | AV22: R 0.00 | AX22: 1 | AZ22: 0 | BB22: =VLOOKUP(BB$13,'Option X3'!$D$6:$E$20,2,0) -> 0 | BC22: 0 | BD22: 0 | BE22: R 0.00 | BF22: R 0.00 | BG22: R 0.00 | BI22: 1 | BK22: 0 | BM22: =VLOOKUP(BM$13,'Option X3'!$D$6:$E$20,2,0) -> 0 | BN22: 0 | BO22: 0 | BP22: R 0.00 | BQ22: R 0.00 | BR22: R 0.00 | BT22: 1 | BV22: 0 | BX22: =VLOOKUP(BX$13,'Option X3'!$D$6:$E$20,2,0) -> 0 | BY22: 0 | BZ22: 0 | CA22: R 0.00 | CB22: R 0.00 | CC22: R 0.00 | CE22: 1 | CG22: 0 | CI22: =VLOOKUP(CI$13,'Option X3'!$D$6:$E$20,2,0) -> 0 | CJ22: 0 | CK22: 0 | CL22: R 0.00 | CM22: R 0.00 | CN22: R 0.00 | CP22: 1 | CR22: 0 | CT22: =VLOOKUP(CT$13,'Option X3'!$D$6:$E$20,2,0) -> 0 | CU22: 0 | CV22: 0 | CW22: R 0.00 | CX22: R 0.00 | CY22: R 0.00
A23: 6 | F23: 1 | H23: 0 | J23: =VLOOKUP(J$13,'Option X3'!$D$6:$E$20,2,0) -> 0 | K23: 0 | L23: 0 | M23: R 0.00 | N23: R 0.00 | O23: R 0.00 | Q23: 1 | S23: 0 | U23: =VLOOKUP(U$13,'Option X3'!$D$6:$E$20,2,0) -> 0 | V23: 0 | W23: 0 | X23: R 0.00 | Y23: R 0.00 | Z23: R 0.00 | AB23: 1 | AD23: 0 | AF23: =VLOOKUP(AF$13,'Option X3'!$D$6:$E$20,2,0) -> 0 | AG23: 0 | AH23: 0 | AI23: R 0.00 | AJ23: R 0.00 | AK23: R 0.00 | AM23: 1 | AO23: 0 | AQ23: =VLOOKUP(AQ$13,'Option X3'!$D$6:$E$20,2,0) -> 0 | AR23: 0 | AS23: 0 | AT23: R 0.00 | AU23: R 0.00 | AV23: R 0.00 | AX23: 1 | AZ23: 0 | BB23: =VLOOKUP(BB$13,'Option X3'!$D$6:$E$20,2,0) -> 0 | BC23: 0 | BD23: 0 | BE23: R 0.00 | BF23: R 0.00 | BG23: R 0.00 | BI23: 1 | BK23: 0 | BM23: =VLOOKUP(BM$13,'Option X3'!$D$6:$E$20,2,0) -> 0 | BN23: 0 | BO23: 0 | BP23: R 0.00 | BQ23: R 0.00 | BR23: R 0.00 | BT23: 1 | BV23: 0 | BX23: =VLOOKUP(BX$13,'Option X3'!$D$6:$E$20,2,0) -> 0 | BY23: 0 | BZ23: 0 | CA23: R 0.00 | CB23: R 0.00 | CC23: R 0.00 | CE23: 1 | CG23: 0 | CI23: =VLOOKUP(CI$13,'Option X3'!$D$6:$E$20,2,0) -> 0 | CJ23: 0 | CK23: 0 | CL23: R 0.00 | CM23: R 0.00 | CN23: R 0.00 | CP23: 1 | CR23: 0 | CT23: =VLOOKUP(CT$13,'Option X3'!$D$6:$E$20,2,0) -> 0 | CU23: 0 | CV23: 0 | CW23: R 0.00 | CX23: R 0.00 | CY23: R 0.00
A24: 7 | F24: 1 | H24: 0 | J24: =VLOOKUP(J$13,'Option X3'!$D$6:$E$20,2,0) -> 0 | K24: 0 | L24: 0 | M24: R 0.00 | N24: R 0.00 | O24: R 0.00 | Q24: 1 | S24: 0 | U24: =VLOOKUP(U$13,'Option X3'!$D$6:$E$20,2,0) -> 0 | V24: 0 | W24: 0 | X24: R 0.00 | Y24: R 0.00 | Z24: R 0.00 | AB24: 1 | AD24: 0 | AF24: =VLOOKUP(AF$13,'Option X3'!$D$6:$E$20,2,0) -> 0 | AG24: 0 | AH24: 0 | AI24: R 0.00 | AJ24: R 0.00 | AK24: R 0.00 | AM24: 1 | AO24: 0 | AQ24: =VLOOKUP(AQ$13,'Option X3'!$D$6:$E$20,2,0) -> 0 | AR24: 0 | AS24: 0 | AT24: R 0.00 | AU24: R 0.00 | AV24: R 0.00 | AX24: 1 | AZ24: 0 | BB24: =VLOOKUP(BB$13,'Option X3'!$D$6:$E$20,2,0) -> 0 | BC24: 0 | BD24: 0 | BE24: R 0.00 | BF24: R 0.00 | BG24: R 0.00 | BI24: 1 | BK24: 0 | BM24: =VLOOKUP(BM$13,'Option X3'!$D$6:$E$20,2,0) -> 0 | BN24: 0 | BO24: 0 | BP24: R 0.00 | BQ24: R 0.00 | BR24: R 0.00 | BT24: 1 | BV24: 0 | BX24: =VLOOKUP(BX$13,'Option X3'!$D$6:$E$20,2,0) -> 0 | BY24: 0 | BZ24: 0 | CA24: R 0.00 | CB24: R 0.00 | CC24: R 0.00 | CE24: 1 | CG24: 0 | CI24: =VLOOKUP(CI$13,'Option X3'!$D$6:$E$20,2,0) -> 0 | CJ24: 0 | CK24: 0 | CL24: R 0.00 | CM24: R 0.00 | CN24: R 0.00 | CP24: 1 | CR24: 0 | CT24: =VLOOKUP(CT$13,'Option X3'!$D$6:$E$20,2,0) -> 0 | CU24: 0 | CV24: 0 | CW24: R 0.00 | CX24: R 0.00 | CY24: R 0.00
A25: 8 | F25: 1 | H25: 0 | J25: =VLOOKUP(J$13,'Option X3'!$D$6:$E$20,2,0) -> 0 | K25: 0 | L25: 0 | M25: R 0.00 | N25: R 0.00 | O25: R 0.00 | Q25: 1 | S25: 0 | U25: =VLOOKUP(U$13,'Option X3'!$D$6:$E$20,2,0) -> 0 | V25: 0 | W25: 0 | X25: R 0.00 | Y25: R 0.00 | Z25: R 0.00 | AB25: 1 | AD25: 0 | AF25: =VLOOKUP(AF$13,'Option X3'!$D$6:$E$20,2,0) -> 0 | AG25: 0 | AH25: 0 | AI25: R 0.00 | AJ25: R 0.00 | AK25: R 0.00 | AM25: 1 | AO25: 0 | AQ25: =VLOOKUP(AQ$13,'Option X3'!$D$6:$E$20,2,0) -> 0 | AR25: 0 | AS25: 0 | AT25: R 0.00 | AU25: R 0.00 | AV25: R 0.00 | AX25: 1 | AZ25: 0 | BB25: =VLOOKUP(BB$13,'Option X3'!$D$6:$E$20,2,0) -> 0 | BC25: 0 | BD25: 0 | BE25: R 0.00 | BF25: R 0.00 | BG25: R 0.00 | BI25: 1 | BK25: 0 | BM25: =VLOOKUP(BM$13,'Option X3'!$D$6:$E$20,2,0) -> 0 | BN25: 0 | BO25: 0 | BP25: R 0.00 | BQ25: R 0.00 | BR25: R 0.00 | BT25: 1 | BV25: 0 | BX25: =VLOOKUP(BX$13,'Option X3'!$D$6:$E$20,2,0) -> 0 | BY25: 0 | BZ25: 0 | CA25: R 0.00 | CB25: R 0.00 | CC25: R 0.00 | CE25: 1 | CG25: 0 | CI25: =VLOOKUP(CI$13,'Option X3'!$D$6:$E$20,2,0) -> 0 | CJ25: 0 | CK25: 0 | CL25: R 0.00 | CM25: R 0.00 | CN25: R 0.00 | CP25: 1 | CR25: 0 | CT25: =VLOOKUP(CT$13,'Option X3'!$D$6:$E$20,2,0) -> 0 | CU25: 0 | CV25: 0 | CW25: R 0.00 | CX25: R 0.00 | CY25: R 0.00
A26: 9 | F26: 1 | H26: 0 | J26: =VLOOKUP(J$13,'Option X3'!$D$6:$E$20,2,0) -> 0 | K26: 0 | L26: 0 | M26: R 0.00 | N26: R 0.00 | O26: R 0.00 | Q26: 1 | S26: 0 | U26: =VLOOKUP(U$13,'Option X3'!$D$6:$E$20,2,0) -> 0 | V26: 0 | W26: 0 | X26: R 0.00 | Y26: R 0.00 | Z26: R 0.00 | AB26: 1 | AD26: 0 | AF26: =VLOOKUP(AF$13,'Option X3'!$D$6:$E$20,2,0) -> 0 | AG26: 0 | AH26: 0 | AI26: R 0.00 | AJ26: R 0.00 | AK26: R 0.00 | AM26: 1 | AO26: 0 | AQ26: =VLOOKUP(AQ$13,'Option X3'!$D$6:$E$20,2,0) -> 0 | AR26: 0 | AS26: 0 | AT26: R 0.00 | AU26: R 0.00 | AV26: R 0.00 | AX26: 1 | AZ26: 0 | BB26: =VLOOKUP(BB$13,'Option X3'!$D$6:$E$20,2,0) -> 0 | BC26: 0 | BD26: 0 | BE26: R 0.00 | BF26: R 0.00 | BG26: R 0.00 | BI26: 1 | BK26: 0 | BM26: =VLOOKUP(BM$13,'Option X3'!$D$6:$E$20,2,0) -> 0 | BN26: 0 | BO26: 0 | BP26: R 0.00 | BQ26: R 0.00 | BR26: R 0.00 | BT26: 1 | BV26: 0 | BX26: =VLOOKUP(BX$13,'Option X3'!$D$6:$E$20,2,0) -> 0 | BY26: 0 | BZ26: 0 | CA26: R 0.00 | CB26: R 0.00 | CC26: R 0.00 | CE26: 1 | CG26: 0 | CI26: =VLOOKUP(CI$13,'Option X3'!$D$6:$E$20,2,0) -> 0 | CJ26: 0 | CK26: 0 | CL26: R 0.00 | CM26: R 0.00 | CN26: R 0.00 | CP26: 1 | CR26: 0 | CT26: =VLOOKUP(CT$13,'Option X3'!$D$6:$E$20,2,0) -> 0 | CU26: 0 | CV26: 0 | CW26: R 0.00 | CX26: R 0.00 | CY26: R 0.00
A27: 10 | F27: 1 | H27: 0 | J27: =VLOOKUP(J$13,'Option X3'!$D$6:$E$20,2,0) -> 0 | K27: 0 | L27: 0 | M27: R 0.00 | N27: R 0.00 | O27: R 0.00 | Q27: 1 | S27: 0 | U27: =VLOOKUP(U$13,'Option X3'!$D$6:$E$20,2,0) -> 0 | V27: 0 | W27: 0 | X27: R 0.00 | Y27: R 0.00 | Z27: R 0.00 | AB27: 1 | AD27: 0 | AF27: =VLOOKUP(AF$13,'Option X3'!$D$6:$E$20,2,0) -> 0 | AG27: 0 | AH27: 0 | AI27: R 0.00 | AJ27: R 0.00 | AK27: R 0.00 | AM27: 1 | AO27: 0 | AQ27: =VLOOKUP(AQ$13,'Option X3'!$D$6:$E$20,2,0) -> 0 | AR27: 0 | AS27: 0 | AT27: R 0.00 | AU27: R 0.00 | AV27: R 0.00 | AX27: 1 | AZ27: 0 | BB27: =VLOOKUP(BB$13,'Option X3'!$D$6:$E$20,2,0) -> 0 | BC27: 0 | BD27: 0 | BE27: R 0.00 | BF27: R 0.00 | BG27: R 0.00 | BI27: 1 | BK27: 0 | BM27: =VLOOKUP(BM$13,'Option X3'!$D$6:$E$20,2,0) -> 0 | BN27: 0 | BO27: 0 | BP27: R 0.00 | BQ27: R 0.00 | BR27: R 0.00 | BT27: 1 | BV27: 0 | BX27: =VLOOKUP(BX$13,'Option X3'!$D$6:$E$20,2,0) -> 0 | BY27: 0 | BZ27: 0 | CA27: R 0.00 | CB27: R 0.00 | CC27: R 0.00 | CE27: 1 | CG27: 0 | CI27: =VLOOKUP(CI$13,'Option X3'!$D$6:$E$20,2,0) -> 0 | CJ27: 0 | CK27: 0 | CL27: R 0.00 | CM27: R 0.00 | CN27: R 0.00 | CP27: 1 | CR27: 0 | CT27: =VLOOKUP(CT$13,'Option X3'!$D$6:$E$20,2,0) -> 0 | CU27: 0 | CV27: 0 | CW27: R 0.00 | CX27: R 0.00 | CY27: R 0.00
A28: 11 | F28: 1 | H28: 0 | J28: =VLOOKUP(J$13,'Option X3'!$D$6:$E$20,2,0) -> 0 | K28: 0 | L28: 0 | M28: R 0.00 | N28: R 0.00 | O28: R 0.00 | Q28: 1 | S28: 0 | U28: =VLOOKUP(U$13,'Option X3'!$D$6:$E$20,2,0) -> 0 | V28: 0 | W28: 0 | X28: R 0.00 | Y28: R 0.00 | Z28: R 0.00 | AB28: 1 | AD28: 0 | AF28: =VLOOKUP(AF$13,'Option X3'!$D$6:$E$20,2,0) -> 0 | AG28: 0 | AH28: 0 | AI28: R 0.00 | AJ28: R 0.00 | AK28: R 0.00 | AM28: 1 | AO28: 0 | AQ28: =VLOOKUP(AQ$13,'Option X3'!$D$6:$E$20,2,0) -> 0 | AR28: 0 | AS28: 0 | AT28: R 0.00 | AU28: R 0.00 | AV28: R 0.00 | AX28: 1 | AZ28: 0 | BB28: =VLOOKUP(BB$13,'Option X3'!$D$6:$E$20,2,0) -> 0 | BC28: 0 | BD28: 0 | BE28: R 0.00 | BF28: R 0.00 | BG28: R 0.00 | BI28: 1 | BK28: 0 | BM28: =VLOOKUP(BM$13,'Option X3'!$D$6:$E$20,2,0) -> 0 | BN28: 0 | BO28: 0 | BP28: R 0.00 | BQ28: R 0.00 | BR28: R 0.00 | BT28: 1 | BV28: 0 | BX28: =VLOOKUP(BX$13,'Option X3'!$D$6:$E$20,2,0) -> 0 | BY28: 0 | BZ28: 0 | CA28: R 0.00 | CB28: R 0.00 | CC28: R 0.00 | CE28: 1 | CG28: 0 | CI28: =VLOOKUP(CI$13,'Option X3'!$D$6:$E$20,2,0) -> 0 | CJ28: 0 | CK28: 0 | CL28: R 0.00 | CM28: R 0.00 | CN28: R 0.00 | CP28: 1 | CR28: 0 | CT28: =VLOOKUP(CT$13,'Option X3'!$D$6:$E$20,2,0) -> 0 | CU28: 0 | CV28: 0 | CW28: R 0.00 | CX28: R 0.00 | CY28: R 0.00
A29: 12 | F29: 1 | H29: 0 | J29: =VLOOKUP(J$13,'Option X3'!$D$6:$E$20,2,0) -> 0 | K29: 0 | L29: 0 | M29: R 0.00 | N29: R 0.00 | O29: R 0.00 | Q29: 1 | S29: 0 | U29: =VLOOKUP(U$13,'Option X3'!$D$6:$E$20,2,0) -> 0 | V29: 0 | W29: 0 | X29: R 0.00 | Y29: R 0.00 | Z29: R 0.00 | AB29: 1 | AD29: 0 | AF29: =VLOOKUP(AF$13,'Option X3'!$D$6:$E$20,2,0) -> 0 | AG29: 0 | AH29: 0 | AI29: R 0.00 | AJ29: R 0.00 | AK29: R 0.00 | AM29: 1 | AO29: 0 | AQ29: =VLOOKUP(AQ$13,'Option X3'!$D$6:$E$20,2,0) -> 0 | AR29: 0 | AS29: 0 | AT29: R 0.00 | AU29: R 0.00 | AV29: R 0.00 | AX29: 1 | AZ29: 0 | BB29: =VLOOKUP(BB$13,'Option X3'!$D$6:$E$20,2,0) -> 0 | BC29: 0 | BD29: 0 | BE29: R 0.00 | BF29: R 0.00 | BG29: R 0.00 | BI29: 1 | BK29: 0 | BM29: =VLOOKUP(BM$13,'Option X3'!$D$6:$E$20,2,0) -> 0 | BN29: 0 | BO29: 0 | BP29: R 0.00 | BQ29: R 0.00 | BR29: R 0.00 | BT29: 1 | BV29: 0 | BX29: =VLOOKUP(BX$13,'Option X3'!$D$6:$E$20,2,0) -> 0 | BY29: 0 | BZ29: 0 | CA29: R 0.00 | CB29: R 0.00 | CC29: R 0.00 | CE29: 1 | CG29: 0 | CI29: =VLOOKUP(CI$13,'Option X3'!$D$6:$E$20,2,0) -> 0 | CJ29: 0 | CK29: 0 | CL29: R 0.00 | CM29: R 0.00 | CN29: R 0.00 | CP29: 1 | CR29: 0 | CT29: =VLOOKUP(CT$13,'Option X3'!$D$6:$E$20,2,0) -> 0 | CU29: 0 | CV29: 0 | CW29: R 0.00 | CX29: R 0.00 | CY29: R 0.00
A30: 13 | F30: 1 | H30: 0 | J30: =VLOOKUP(J$13,'Option X3'!$D$6:$E$20,2,0) -> 0 | K30: 0 | L30: 0 | M30: R 0.00 | N30: R 0.00 | O30: R 0.00 | Q30: 1 | S30: 0 | U30: =VLOOKUP(U$13,'Option X3'!$D$6:$E$20,2,0) -> 0 | V30: 0 | W30: 0 | X30: R 0.00 | Y30: R 0.00 | Z30: R 0.00 | AB30: 1 | AD30: 0 | AF30: =VLOOKUP(AF$13,'Option X3'!$D$6:$E$20,2,0) -> 0 | AG30: 0 | AH30: 0 | AI30: R 0.00 | AJ30: R 0.00 | AK30: R 0.00 | AM30: 1 | AO30: 0 | AQ30: =VLOOKUP(AQ$13,'Option X3'!$D$6:$E$20,2,0) -> 0 | AR30: 0 | AS30: 0 | AT30: R 0.00 | AU30: R 0.00 | AV30: R 0.00 | AX30: 1 | AZ30: 0 | BB30: =VLOOKUP(BB$13,'Option X3'!$D$6:$E$20,2,0) -> 0 | BC30: 0 | BD30: 0 | BE30: R 0.00 | BF30: R 0.00 | BG30: R 0.00 | BI30: 1 | BK30: 0 | BM30: =VLOOKUP(BM$13,'Option X3'!$D$6:$E$20,2,0) -> 0 | BN30: 0 | BO30: 0 | BP30: R 0.00 | BQ30: R 0.00 | BR30: R 0.00 | BT30: 1 | BV30: 0 | BX30: =VLOOKUP(BX$13,'Option X3'!$D$6:$E$20,2,0) -> 0 | BY30: 0 | BZ30: 0 | CA30: R 0.00 | CB30: R 0.00 | CC30: R 0.00 | CE30: 1 | CG30: 0 | CI30: =VLOOKUP(CI$13,'Option X3'!$D$6:$E$20,2,0) -> 0 | CJ30: 0 | CK30: 0 | CL30: R 0.00 | CM30: R 0.00 | CN30: R 0.00 | CP30: 1 | CR30: 0 | CT30: =VLOOKUP(CT$13,'Option X3'!$D$6:$E$20,2,0) -> 0 | CU30: 0 | CV30: 0 | CW30: R 0.00 | CX30: R 0.00 | CY30: R 0.00
A31: 14 | F31: 1 | H31: 0 | J31: =VLOOKUP(J$13,'Option X3'!$D$6:$E$20,2,0) -> 0 | K31: 0 | L31: 0 | M31: R 0.00 | N31: R 0.00 | O31: R 0.00 | Q31: 1 | S31: 0 | U31: =VLOOKUP(U$13,'Option X3'!$D$6:$E$20,2,0) -> 0 | V31: 0 | W31: 0 | X31: R 0.00 | Y31: R 0.00 | Z31: R 0.00 | AB31: 1 | AD31: 0 | AF31: =VLOOKUP(AF$13,'Option X3'!$D$6:$E$20,2,0) -> 0 | AG31: 0 | AH31: 0 | AI31: R 0.00 | AJ31: R 0.00 | AK31: R 0.00 | AM31: 1 | AO31: 0 | AQ31: =VLOOKUP(AQ$13,'Option X3'!$D$6:$E$20,2,0) -> 0 | AR31: 0 | AS31: 0 | AT31: R 0.00 | AU31: R 0.00 | AV31: R 0.00 | AX31: 1 | AZ31: 0 | BB31: =VLOOKUP(BB$13,'Option X3'!$D$6:$E$20,2,0) -> 0 | BC31: 0 | BD31: 0 | BE31: R 0.00 | BF31: R 0.00 | BG31: R 0.00 | BI31: 1 | BK31: 0 | BM31: =VLOOKUP(BM$13,'Option X3'!$D$6:$E$20,2,0) -> 0 | BN31: 0 | BO31: 0 | BP31: R 0.00 | BQ31: R 0.00 | BR31: R 0.00 | BT31: 1 | BV31: 0 | BX31: =VLOOKUP(BX$13,'Option X3'!$D$6:$E$20,2,0) -> 0 | BY31: 0 | BZ31: 0 | CA31: R 0.00 | CB31: R 0.00 | CC31: R 0.00 | CE31: 1 | CG31: 0 | CI31: =VLOOKUP(CI$13,'Option X3'!$D$6:$E$20,2,0) -> 0 | CJ31: 0 | CK31: 0 | CL31: R 0.00 | CM31: R 0.00 | CN31: R 0.00 | CP31: 1 | CR31: 0 | CT31: =VLOOKUP(CT$13,'Option X3'!$D$6:$E$20,2,0) -> 0 | CU31: 0 | CV31: 0 | CW31: R 0.00 | CX31: R 0.00 | CY31: R 0.00
A32: 15 | F32: 1 | H32: 0 | J32: =VLOOKUP(J$13,'Option X3'!$D$6:$E$20,2,0) -> 0 | K32: 0 | L32: 0 | M32: R 0.00 | N32: R 0.00 | O32: R 0.00 | Q32: 1 | S32: 0 | U32: =VLOOKUP(U$13,'Option X3'!$D$6:$E$20,2,0) -> 0 | V32: 0 | W32: 0 | X32: R 0.00 | Y32: R 0.00 | Z32: R 0.00 | AB32: 1 | AD32: 0 | AF32: =VLOOKUP(AF$13,'Option X3'!$D$6:$E$20,2,0) -> 0 | AG32: 0 | AH32: 0 | AI32: R 0.00 | AJ32: R 0.00 | AK32: R 0.00 | AM32: 1 | AO32: 0 | AQ32: =VLOOKUP(AQ$13,'Option X3'!$D$6:$E$20,2,0) -> 0 | AR32: 0 | AS32: 0 | AT32: R 0.00 | AU32: R 0.00 | AV32: R 0.00 | AX32: 1 | AZ32: 0 | BB32: =VLOOKUP(BB$13,'Option X3'!$D$6:$E$20,2,0) -> 0 | BC32: 0 | BD32: 0 | BE32: R 0.00 | BF32: R 0.00 | BG32: R 0.00 | BI32: 1 | BK32: 0 | BM32: =VLOOKUP(BM$13,'Option X3'!$D$6:$E$20,2,0) -> 0 | BN32: 0 | BO32: 0 | BP32: R 0.00 | BQ32: R 0.00 | BR32: R 0.00 | BT32: 1 | BV32: 0 | BX32: =VLOOKUP(BX$13,'Option X3'!$D$6:$E$20,2,0) -> 0 | BY32: 0 | BZ32: 0 | CA32: R 0.00 | CB32: R 0.00 | CC32: R 0.00 | CE32: 1 | CG32: 0 | CI32: =VLOOKUP(CI$13,'Option X3'!$D$6:$E$20,2,0) -> 0 | CJ32: 0 | CK32: 0 | CL32: R 0.00 | CM32: R 0.00 | CN32: R 0.00 | CP32: 1 | CR32: 0 | CT32: =VLOOKUP(CT$13,'Option X3'!$D$6:$E$20,2,0) -> 0 | CU32: 0 | CV32: 0 | CW32: R 0.00 | CX32: R 0.00 | CY32: R 0.00
A33: 16 | F33: 1 | H33: 0 | J33: =VLOOKUP(J$13,'Option X3'!$D$6:$E$20,2,0) -> 0 | K33: 0 | L33: 0 | M33: R 0.00 | N33: R 0.00 | O33: R 0.00 | Q33: 1 | S33: 0 | U33: =VLOOKUP(U$13,'Option X3'!$D$6:$E$20,2,0) -> 0 | V33: 0 | W33: 0 | X33: R 0.00 | Y33: R 0.00 | Z33: R 0.00 | AB33: 1 | AD33: 0 | AF33: =VLOOKUP(AF$13,'Option X3'!$D$6:$E$20,2,0) -> 0 | AG33: 0 | AH33: 0 | AI33: R 0.00 | AJ33: R 0.00 | AK33: R 0.00 | AM33: 1 | AO33: 0 | AQ33: =VLOOKUP(AQ$13,'Option X3'!$D$6:$E$20,2,0) -> 0 | AR33: 0 | AS33: 0 | AT33: R 0.00 | AU33: R 0.00 | AV33: R 0.00 | AX33: 1 | AZ33: 0 | BB33: =VLOOKUP(BB$13,'Option X3'!$D$6:$E$20,2,0) -> 0 | BC33: 0 | BD33: 0 | BE33: R 0.00 | BF33: R 0.00 | BG33: R 0.00 | BI33: 1 | BK33: 0 | BM33: =VLOOKUP(BM$13,'Option X3'!$D$6:$E$20,2,0) -> 0 | BN33: 0 | BO33: 0 | BP33: R 0.00 | BQ33: R 0.00 | BR33: R 0.00 | BT33: 1 | BV33: 0 | BX33: =VLOOKUP(BX$13,'Option X3'!$D$6:$E$20,2,0) -> 0 | BY33: 0 | BZ33: 0 | CA33: R 0.00 | CB33: R 0.00 | CC33: R 0.00 | CE33: 1 | CG33: 0 | CI33: =VLOOKUP(CI$13,'Option X3'!$D$6:$E$20,2,0) -> 0 | CJ33: 0 | CK33: 0 | CL33: R 0.00 | CM33: R 0.00 | CN33: R 0.00 | CP33: 1 | CR33: 0 | CT33: =VLOOKUP(CT$13,'Option X3'!$D$6:$E$20,2,0) -> 0 | CU33: 0 | CV33: 0 | CW33: R 0.00 | CX33: R 0.00 | CY33: R 0.00
A34: 17 | F34: 1 | H34: 0 | J34: =VLOOKUP(J$13,'Option X3'!$D$6:$E$20,2,0) -> 0 | K34: 0 | L34: 0 | M34: R 0.00 | N34: R 0.00 | O34: R 0.00 | Q34: 1 | S34: 0 | U34: =VLOOKUP(U$13,'Option X3'!$D$6:$E$20,2,0) -> 0 | V34: 0 | W34: 0 | X34: R 0.00 | Y34: R 0.00 | Z34: R 0.00 | AB34: 1 | AD34: 0 | AF34: =VLOOKUP(AF$13,'Option X3'!$D$6:$E$20,2,0) -> 0 | AG34: 0 | AH34: 0 | AI34: R 0.00 | AJ34: R 0.00 | AK34: R 0.00 | AM34: 1 | AO34: 0 | AQ34: =VLOOKUP(AQ$13,'Option X3'!$D$6:$E$20,2,0) -> 0 | AR34: 0 | AS34: 0 | AT34: R 0.00 | AU34: R 0.00 | AV34: R 0.00 | AX34: 1 | AZ34: 0 | BB34: =VLOOKUP(BB$13,'Option X3'!$D$6:$E$20,2,0) -> 0 | BC34: 0 | BD34: 0 | BE34: R 0.00 | BF34: R 0.00 | BG34: R 0.00 | BI34: 1 | BK34: 0 | BM34: =VLOOKUP(BM$13,'Option X3'!$D$6:$E$20,2,0) -> 0 | BN34: 0 | BO34: 0 | BP34: R 0.00 | BQ34: R 0.00 | BR34: R 0.00 | BT34: 1 | BV34: 0 | BX34: =VLOOKUP(BX$13,'Option X3'!$D$6:$E$20,2,0) -> 0 | BY34: 0 | BZ34: 0 | CA34: R 0.00 | CB34: R 0.00 | CC34: R 0.00 | CE34: 1 | CG34: 0 | CI34: =VLOOKUP(CI$13,'Option X3'!$D$6:$E$20,2,0) -> 0 | CJ34: 0 | CK34: 0 | CL34: R 0.00 | CM34: R 0.00 | CN34: R 0.00 | CP34: 1 | CR34: 0 | CT34: =VLOOKUP(CT$13,'Option X3'!$D$6:$E$20,2,0) -> 0 | CU34: 0 | CV34: 0 | CW34: R 0.00 | CX34: R 0.00 | CY34: R 0.00
A35: 18 | F35: 1 | H35: 0 | J35: =VLOOKUP(J$13,'Option X3'!$D$6:$E$20,2,0) -> 0 | K35: 0 | L35: 0 | M35: R 0.00 | N35: R 0.00 | O35: R 0.00 | Q35: 1 | S35: 0 | U35: =VLOOKUP(U$13,'Option X3'!$D$6:$E$20,2,0) -> 0 | V35: 0 | W35: 0 | X35: R 0.00 | Y35: R 0.00 | Z35: R 0.00 | AB35: 1 | AD35: 0 | AF35: =VLOOKUP(AF$13,'Option X3'!$D$6:$E$20,2,0) -> 0 | AG35: 0 | AH35: 0 | AI35: R 0.00 | AJ35: R 0.00 | AK35: R 0.00 | AM35: 1 | AO35: 0 | AQ35: =VLOOKUP(AQ$13,'Option X3'!$D$6:$E$20,2,0) -> 0 | AR35: 0 | AS35: 0 | AT35: R 0.00 | AU35: R 0.00 | AV35: R 0.00 | AX35: 1 | AZ35: 0 | BB35: =VLOOKUP(BB$13,'Option X3'!$D$6:$E$20,2,0) -> 0 | BC35: 0 | BD35: 0 | BE35: R 0.00 | BF35: R 0.00 | BG35: R 0.00 | BI35: 1 | BK35: 0 | BM35: =VLOOKUP(BM$13,'Option X3'!$D$6:$E$20,2,0) -> 0 | BN35: 0 | BO35: 0 | BP35: R 0.00 | BQ35: R 0.00 | BR35: R 0.00 | BT35: 1 | BV35: 0 | BX35: =VLOOKUP(BX$13,'Option X3'!$D$6:$E$20,2,0) -> 0 | BY35: 0 | BZ35: 0 | CA35: R 0.00 | CB35: R 0.00 | CC35: R 0.00 | CE35: 1 | CG35: 0 | CI35: =VLOOKUP(CI$13,'Option X3'!$D$6:$E$20,2,0) -> 0 | CJ35: 0 | CK35: 0 | CL35: R 0.00 | CM35: R 0.00 | CN35: R 0.00 | CP35: 1 | CR35: 0 | CT35: =VLOOKUP(CT$13,'Option X3'!$D$6:$E$20,2,0) -> 0 | CU35: 0 | CV35: 0 | CW35: R 0.00 | CX35: R 0.00 | CY35: R 0.00
A36: 19 | F36: 1 | H36: 0 | J36: =VLOOKUP(J$13,'Option X3'!$D$6:$E$20,2,0) -> 0 | K36: 0 | L36: 0 | M36: R 0.00 | N36: R 0.00 | O36: R 0.00 | Q36: 1 | S36: 0 | U36: =VLOOKUP(U$13,'Option X3'!$D$6:$E$20,2,0) -> 0 | V36: 0 | W36: 0 | X36: R 0.00 | Y36: R 0.00 | Z36: R 0.00 | AB36: 1 | AD36: 0 | AF36: =VLOOKUP(AF$13,'Option X3'!$D$6:$E$20,2,0) -> 0 | AG36: 0 | AH36: 0 | AI36: R 0.00 | AJ36: R 0.00 | AK36: R 0.00 | AM36: 1 | AO36: 0 | AQ36: =VLOOKUP(AQ$13,'Option X3'!$D$6:$E$20,2,0) -> 0 | AR36: 0 | AS36: 0 | AT36: R 0.00 | AU36: R 0.00 | AV36: R 0.00 | AX36: 1 | AZ36: 0 | BB36: =VLOOKUP(BB$13,'Option X3'!$D$6:$E$20,2,0) -> 0 | BC36: 0 | BD36: 0 | BE36: R 0.00 | BF36: R 0.00 | BG36: R 0.00 | BI36: 1 | BK36: 0 | BM36: =VLOOKUP(BM$13,'Option X3'!$D$6:$E$20,2,0) -> 0 | BN36: 0 | BO36: 0 | BP36: R 0.00 | BQ36: R 0.00 | BR36: R 0.00 | BT36: 1 | BV36: 0 | BX36: =VLOOKUP(BX$13,'Option X3'!$D$6:$E$20,2,0) -> 0 | BY36: 0 | BZ36: 0 | CA36: R 0.00 | CB36: R 0.00 | CC36: R 0.00 | CE36: 1 | CG36: 0 | CI36: =VLOOKUP(CI$13,'Option X3'!$D$6:$E$20,2,0) -> 0 | CJ36: 0 | CK36: 0 | CL36: R 0.00 | CM36: R 0.00 | CN36: R 0.00 | CP36: 1 | CR36: 0 | CT36: =VLOOKUP(CT$13,'Option X3'!$D$6:$E$20,2,0) -> 0 | CU36: 0 | CV36: 0 | CW36: R 0.00 | CX36: R 0.00 | CY36: R 0.00
A37: 20 | F37: 1 | H37: 0 | J37: =VLOOKUP(J$13,'Option X3'!$D$6:$E$20,2,0) -> 0 | K37: 0 | L37: 0 | M37: R 0.00 | N37: R 0.00 | O37: R 0.00 | Q37: 1 | S37: 0 | U37: =VLOOKUP(U$13,'Option X3'!$D$6:$E$20,2,0) -> 0 | V37: 0 | W37: 0 | X37: R 0.00 | Y37: R 0.00 | Z37: R 0.00 | AB37: 1 | AD37: 0 | AF37: =VLOOKUP(AF$13,'Option X3'!$D$6:$E$20,2,0) -> 0 | AG37: 0 | AH37: 0 | AI37: R 0.00 | AJ37: R 0.00 | AK37: R 0.00 | AM37: 1 | AO37: 0 | AQ37: =VLOOKUP(AQ$13,'Option X3'!$D$6:$E$20,2,0) -> 0 | AR37: 0 | AS37: 0 | AT37: R 0.00 | AU37: R 0.00 | AV37: R 0.00 | AX37: 1 | AZ37: 0 | BB37: =VLOOKUP(BB$13,'Option X3'!$D$6:$E$20,2,0) -> 0 | BC37: 0 | BD37: 0 | BE37: R 0.00 | BF37: R 0.00 | BG37: R 0.00 | BI37: 1 | BK37: 0 | BM37: =VLOOKUP(BM$13,'Option X3'!$D$6:$E$20,2,0) -> 0 | BN37: 0 | BO37: 0 | BP37: R 0.00 | BQ37: R 0.00 | BR37: R 0.00 | BT37: 1 | BV37: 0 | BX37: =VLOOKUP(BX$13,'Option X3'!$D$6:$E$20,2,0) -> 0 | BY37: 0 | BZ37: 0 | CA37: R 0.00 | CB37: R 0.00 | CC37: R 0.00 | CE37: 1 | CG37: 0 | CI37: =VLOOKUP(CI$13,'Option X3'!$D$6:$E$20,2,0) -> 0 | CJ37: 0 | CK37: 0 | CL37: R 0.00 | CM37: R 0.00 | CN37: R 0.00 | CP37: 1 | CR37: 0 | CT37: =VLOOKUP(CT$13,'Option X3'!$D$6:$E$20,2,0) -> 0 | CU37: 0 | CV37: 0 | CW37: R 0.00 | CX37: R 0.00 | CY37: R 0.00
A38: 21 | F38: 1 | H38: 0 | J38: =VLOOKUP(J$13,'Option X3'!$D$6:$E$20,2,0) -> 0 | K38: 0 | L38: 0 | M38: R 0.00 | N38: R 0.00 | O38: R 0.00 | Q38: 1 | S38: 0 | U38: =VLOOKUP(U$13,'Option X3'!$D$6:$E$20,2,0) -> 0 | V38: 0 | W38: 0 | X38: R 0.00 | Y38: R 0.00 | Z38: R 0.00 | AB38: 1 | AD38: 0 | AF38: =VLOOKUP(AF$13,'Option X3'!$D$6:$E$20,2,0) -> 0 | AG38: 0 | AH38: 0 | AI38: R 0.00 | AJ38: R 0.00 | AK38: R 0.00 | AM38: 1 | AO38: 0 | AQ38: =VLOOKUP(AQ$13,'Option X3'!$D$6:$E$20,2,0) -> 0 | AR38: 0 | AS38: 0 | AT38: R 0.00 | AU38: R 0.00 | AV38: R 0.00 | AX38: 1 | AZ38: 0 | BB38: =VLOOKUP(BB$13,'Option X3'!$D$6:$E$20,2,0) -> 0 | BC38: 0 | BD38: 0 | BE38: R 0.00 | BF38: R 0.00 | BG38: R 0.00 | BI38: 1 | BK38: 0 | BM38: =VLOOKUP(BM$13,'Option X3'!$D$6:$E$20,2,0) -> 0 | BN38: 0 | BO38: 0 | BP38: R 0.00 | BQ38: R 0.00 | BR38: R 0.00 | BT38: 1 | BV38: 0 | BX38: =VLOOKUP(BX$13,'Option X3'!$D$6:$E$20,2,0) -> 0 | BY38: 0 | BZ38: 0 | CA38: R 0.00 | CB38: R 0.00 | CC38: R 0.00 | CE38: 1 | CG38: 0 | CI38: =VLOOKUP(CI$13,'Option X3'!$D$6:$E$20,2,0) -> 0 | CJ38: 0 | CK38: 0 | CL38: R 0.00 | CM38: R 0.00 | CN38: R 0.00 | CP38: 1 | CR38: 0 | CT38: =VLOOKUP(CT$13,'Option X3'!$D$6:$E$20,2,0) -> 0 | CU38: 0 | CV38: 0 | CW38: R 0.00 | CX38: R 0.00 | CY38: R 0.00
A39: 22 | F39: 1 | H39: 0 | J39: =VLOOKUP(J$13,'Option X3'!$D$6:$E$20,2,0) -> 0 | K39: 0 | L39: 0 | M39: R 0.00 | N39: R 0.00 | O39: R 0.00 | Q39: 1 | S39: 0 | U39: =VLOOKUP(U$13,'Option X3'!$D$6:$E$20,2,0) -> 0 | V39: 0 | W39: 0 | X39: R 0.00 | Y39: R 0.00 | Z39: R 0.00 | AB39: 1 | AD39: 0 | AF39: =VLOOKUP(AF$13,'Option X3'!$D$6:$E$20,2,0) -> 0 | AG39: 0 | AH39: 0 | AI39: R 0.00 | AJ39: R 0.00 | AK39: R 0.00 | AM39: 1 | AO39: 0 | AQ39: =VLOOKUP(AQ$13,'Option X3'!$D$6:$E$20,2,0) -> 0 | AR39: 0 | AS39: 0 | AT39: R 0.00 | AU39: R 0.00 | AV39: R 0.00 | AX39: 1 | AZ39: 0 | BB39: =VLOOKUP(BB$13,'Option X3'!$D$6:$E$20,2,0) -> 0 | BC39: 0 | BD39: 0 | BE39: R 0.00 | BF39: R 0.00 | BG39: R 0.00 | BI39: 1 | BK39: 0 | BM39: =VLOOKUP(BM$13,'Option X3'!$D$6:$E$20,2,0) -> 0 | BN39: 0 | BO39: 0 | BP39: R 0.00 | BQ39: R 0.00 | BR39: R 0.00 | BT39: 1 | BV39: 0 | BX39: =VLOOKUP(BX$13,'Option X3'!$D$6:$E$20,2,0) -> 0 | BY39: 0 | BZ39: 0 | CA39: R 0.00 | CB39: R 0.00 | CC39: R 0.00 | CE39: 1 | CG39: 0 | CI39: =VLOOKUP(CI$13,'Option X3'!$D$6:$E$20,2,0) -> 0 | CJ39: 0 | CK39: 0 | CL39: R 0.00 | CM39: R 0.00 | CN39: R 0.00 | CP39: 1 | CR39: 0 | CT39: =VLOOKUP(CT$13,'Option X3'!$D$6:$E$20,2,0) -> 0 | CU39: 0 | CV39: 0 | CW39: R 0.00 | CX39: R 0.00 | CY39: R 0.00
A40: 23 | F40: 1 | H40: =F40*G40 -> 0 | J40: =VLOOKUP(J$13,'Option X3'!$D$6:$E$20,2,0) -> 0 | K40: =F40*I40 -> 0 | L40: =J40*K40 -> 0 | M40: =H40+L40 -> R 0.00 | N40: =0.15*M40 -> R 0.00 | O40: =SUM(M40:N40) -> R 0.00 | Q40: 1 | S40: =Q40*R40 -> 0 | U40: =VLOOKUP(U$13,'Option X3'!$D$6:$E$20,2,0) -> 0 | V40: =Q40*T40 -> 0 | W40: =U40*V40 -> 0 | X40: =S40+W40 -> R 0.00 | Y40: =0.15*X40 -> R 0.00 | Z40: =SUM(X40:Y40) -> R 0.00 | AB40: 1 | AD40: =AB40*AC40 -> 0 | AF40: =VLOOKUP(AF$13,'Option X3'!$D$6:$E$20,2,0) -> 0 | AG40: =AB40*AE40 -> 0 | AH40: =AF40*AG40 -> 0 | AI40: =AD40+AH40 -> R 0.00 | AJ40: =0.15*AI40 -> R 0.00 | AK40: =SUM(AI40:AJ40) -> R 0.00 | AM40: 1 | AO40: =AM40*AN40 -> 0 | AQ40: =VLOOKUP(AQ$13,'Option X3'!$D$6:$E$20,2,0) -> 0 | AR40: =AM40*AP40 -> 0 | AS40: =AQ40*AR40 -> 0 | AT40: =AO40+AS40 -> R 0.00 | AU40: =0.15*AT40 -> R 0.00 | AV40: =SUM(AT40:AU40) -> R 0.00 | AX40: 1 | AZ40: =AX40*AY40 -> 0 | BB40: =VLOOKUP(BB$13,'Option X3'!$D$6:$E$20,2,0) -> 0 | BC40: =AX40*BA40 -> 0 | BD40: =BB40*BC40 -> 0 | BE40: =AZ40+BD40 -> R 0.00 | BF40: =0.15*BE40 -> R 0.00 | BG40: =SUM(BE40:BF40) -> R 0.00 | BI40: =Q40 -> 1 | BK40: =BI40*BJ40 -> 0 | BM40: =VLOOKUP(BM$13,'Option X3'!$D$6:$E$20,2,0) -> 0 | BN40: =BI40*BL40 -> 0 | BO40: =BM40*BN40 -> 0 | BP40: =BK40+BO40 -> R 0.00 | BQ40: =0.15*BP40 -> R 0.00 | BR40: =SUM(BP40:BQ40) -> R 0.00 | BT40: =AB40 -> 1 | BV40: =BT40*BU40 -> 0 | BX40: =VLOOKUP(BX$13,'Option X3'!$D$6:$E$20,2,0) -> 0 | BY40: =BT40*BW40 -> 0 | BZ40: =BX40*BY40 -> 0 | CA40: =BV40+BZ40 -> R 0.00 | CB40: =0.15*CA40 -> R 0.00 | CC40: =SUM(CA40:CB40) -> R 0.00 | CE40: =AM40 -> 1 | CG40: =CE40*CF40 -> 0 | CI40: =VLOOKUP(CI$13,'Option X3'!$D$6:$E$20,2,0) -> 0 | CJ40: =CE40*CH40 -> 0 | CK40: =CI40*CJ40 -> 0 | CL40: =CG40+CK40 -> R 0.00 | CM40: =0.15*CL40 -> R 0.00 | CN40: =SUM(CL40:CM40) -> R 0.00 | CP40: =AX40 -> 1 | CR40: =CP40*CQ40 -> 0 | CT40: =VLOOKUP(CT$13,'Option X3'!$D$6:$E$20,2,0) -> 0 | CU40: =CP40*CS40 -> 0 | CV40: =CT40*CU40 -> 0 | CW40: =CR40+CV40 -> R 0.00 | CX40: =0.15*CW40 -> R 0.00 | CY40: =SUM(CW40:CX40) -> R 0.00
A41: 24 | F41: 1 | H41: 0 | J41: =VLOOKUP(J$13,'Option X3'!$D$6:$E$20,2,0) -> 0 | K41: 0 | L41: 0 | M41: R 0.00 | N41: R 0.00 | O41: R 0.00 | Q41: 1 | S41: 0 | U41: =VLOOKUP(U$13,'Option X3'!$D$6:$E$20,2,0) -> 0 | V41: 0 | W41: 0 | X41: R 0.00 | Y41: R 0.00 | Z41: R 0.00 | AB41: 1 | AD41: 0 | AF41: =VLOOKUP(AF$13,'Option X3'!$D$6:$E$20,2,0) -> 0 | AG41: 0 | AH41: 0 | AI41: R 0.00 | AJ41: R 0.00 | AK41: R 0.00 | AM41: 1 | AO41: 0 | AQ41: =VLOOKUP(AQ$13,'Option X3'!$D$6:$E$20,2,0) -> 0 | AR41: 0 | AS41: 0 | AT41: R 0.00 | AU41: R 0.00 | AV41: R 0.00 | AX41: 1 | AZ41: 0 | BB41: =VLOOKUP(BB$13,'Option X3'!$D$6:$E$20,2,0) -> 0 | BC41: 0 | BD41: 0 | BE41: R 0.00 | BF41: R 0.00 | BG41: R 0.00 | BI41: 1 | BK41: 0 | BM41: =VLOOKUP(BM$13,'Option X3'!$D$6:$E$20,2,0) -> 0 | BN41: 0 | BO41: 0 | BP41: R 0.00 | BQ41: R 0.00 | BR41: R 0.00 | BT41: 1 | BV41: 0 | BX41: =VLOOKUP(BX$13,'Option X3'!$D$6:$E$20,2,0) -> 0 | BY41: 0 | BZ41: 0 | CA41: R 0.00 | CB41: R 0.00 | CC41: R 0.00 | CE41: 1 | CG41: 0 | CI41: =VLOOKUP(CI$13,'Option X3'!$D$6:$E$20,2,0) -> 0 | CJ41: 0 | CK41: 0 | CL41: R 0.00 | CM41: R 0.00 | CN41: R 0.00 | CP41: 1 | CR41: 0 | CT41: =VLOOKUP(CT$13,'Option X3'!$D$6:$E$20,2,0) -> 0 | CU41: 0 | CV41: 0 | CW41: R 0.00 | CX41: R 0.00 | CY41: R 0.00
A42: 25 | F42: 1 | H42: 0 | J42: =VLOOKUP(J$13,'Option X3'!$D$6:$E$20,2,0) -> 0 | K42: 0 | L42: 0 | M42: R 0.00 | N42: R 0.00 | O42: R 0.00 | Q42: 1 | S42: 0 | U42: =VLOOKUP(U$13,'Option X3'!$D$6:$E$20,2,0) -> 0 | V42: 0 | W42: 0 | X42: R 0.00 | Y42: R 0.00 | Z42: R 0.00 | AB42: 1 | AD42: 0 | AF42: =VLOOKUP(AF$13,'Option X3'!$D$6:$E$20,2,0) -> 0 | AG42: 0 | AH42: 0 | AI42: R 0.00 | AJ42: R 0.00 | AK42: R 0.00 | AM42: 1 | AO42: 0 | AQ42: =VLOOKUP(AQ$13,'Option X3'!$D$6:$E$20,2,0) -> 0 | AR42: 0 | AS42: 0 | AT42: R 0.00 | AU42: R 0.00 | AV42: R 0.00 | AX42: 1 | AZ42: 0 | BB42: =VLOOKUP(BB$13,'Option X3'!$D$6:$E$20,2,0) -> 0 | BC42: 0 | BD42: 0 | BE42: R 0.00 | BF42: R 0.00 | BG42: R 0.00 | BI42: 1 | BK42: 0 | BM42: =VLOOKUP(BM$13,'Option X3'!$D$6:$E$20,2,0) -> 0 | BN42: 0 | BO42: 0 | BP42: R 0.00 | BQ42: R 0.00 | BR42: R 0.00 | BT42: 1 | BV42: 0 | BX42: =VLOOKUP(BX$13,'Option X3'!$D$6:$E$20,2,0) -> 0 | BY42: 0 | BZ42: 0 | CA42: R 0.00 | CB42: R 0.00 | CC42: R 0.00 | CE42: 1 | CG42: 0 | CI42: =VLOOKUP(CI$13,'Option X3'!$D$6:$E$20,2,0) -> 0 | CJ42: 0 | CK42: 0 | CL42: R 0.00 | CM42: R 0.00 | CN42: R 0.00 | CP42: 1 | CR42: 0 | CT42: =VLOOKUP(CT$13,'Option X3'!$D$6:$E$20,2,0) -> 0 | CU42: 0 | CV42: 0 | CW42: R 0.00 | CX42: R 0.00 | CY42: R 0.00
A43: 26 | F43: 1 | H43: 0 | J43: =VLOOKUP(J$13,'Option X3'!$D$6:$E$20,2,0) -> 0 | K43: 0 | L43: 0 | M43: R 0.00 | N43: R 0.00 | O43: R 0.00 | Q43: 1 | S43: 0 | U43: =VLOOKUP(U$13,'Option X3'!$D$6:$E$20,2,0) -> 0 | V43: 0 | W43: 0 | X43: R 0.00 | Y43: R 0.00 | Z43: R 0.00 | AB43: 1 | AD43: 0 | AF43: =VLOOKUP(AF$13,'Option X3'!$D$6:$E$20,2,0) -> 0 | AG43: 0 | AH43: 0 | AI43: R 0.00 | AJ43: R 0.00 | AK43: R 0.00 | AM43: 1 | AO43: 0 | AQ43: =VLOOKUP(AQ$13,'Option X3'!$D$6:$E$20,2,0) -> 0 | AR43: 0 | AS43: 0 | AT43: R 0.00 | AU43: R 0.00 | AV43: R 0.00 | AX43: 1 | AZ43: 0 | BB43: =VLOOKUP(BB$13,'Option X3'!$D$6:$E$20,2,0) -> 0 | BC43: 0 | BD43: 0 | BE43: R 0.00 | BF43: R 0.00 | BG43: R 0.00 | BI43: 1 | BK43: 0 | BM43: =VLOOKUP(BM$13,'Option X3'!$D$6:$E$20,2,0) -> 0 | BN43: 0 | BO43: 0 | BP43: R 0.00 | BQ43: R 0.00 | BR43: R 0.00 | BT43: 1 | BV43: 0 | BX43: =VLOOKUP(BX$13,'Option X3'!$D$6:$E$20,2,0) -> 0 | BY43: 0 | BZ43: 0 | CA43: R 0.00 | CB43: R 0.00 | CC43: R 0.00 | CE43: 1 | CG43: 0 | CI43: =VLOOKUP(CI$13,'Option X3'!$D$6:$E$20,2,0) -> 0 | CJ43: 0 | CK43: 0 | CL43: R 0.00 | CM43: R 0.00 | CN43: R 0.00 | CP43: 1 | CR43: 0 | CT43: =VLOOKUP(CT$13,'Option X3'!$D$6:$E$20,2,0) -> 0 | CU43: 0 | CV43: 0 | CW43: R 0.00 | CX43: R 0.00 | CY43: R 0.00
A44: 27 | F44: 1 | H44: 0 | J44: =VLOOKUP(J$13,'Option X3'!$D$6:$E$20,2,0) -> 0 | K44: 0 | L44: 0 | M44: R 0.00 | N44: R 0.00 | O44: R 0.00 | Q44: 1 | S44: 0 | U44: =VLOOKUP(U$13,'Option X3'!$D$6:$E$20,2,0) -> 0 | V44: 0 | W44: 0 | X44: R 0.00 | Y44: R 0.00 | Z44: R 0.00 | AB44: 1 | AD44: 0 | AF44: =VLOOKUP(AF$13,'Option X3'!$D$6:$E$20,2,0) -> 0 | AG44: 0 | AH44: 0 | AI44: R 0.00 | AJ44: R 0.00 | AK44: R 0.00 | AM44: 1 | AO44: 0 | AQ44: =VLOOKUP(AQ$13,'Option X3'!$D$6:$E$20,2,0) -> 0 | AR44: 0 | AS44: 0 | AT44: R 0.00 | AU44: R 0.00 | AV44: R 0.00 | AX44: 1 | AZ44: 0 | BB44: =VLOOKUP(BB$13,'Option X3'!$D$6:$E$20,2,0) -> 0 | BC44: 0 | BD44: 0 | BE44: R 0.00 | BF44: R 0.00 | BG44: R 0.00 | BI44: 1 | BK44: 0 | BM44: =VLOOKUP(BM$13,'Option X3'!$D$6:$E$20,2,0) -> 0 | BN44: 0 | BO44: 0 | BP44: R 0.00 | BQ44: R 0.00 | BR44: R 0.00 | BT44: 1 | BV44: 0 | BX44: =VLOOKUP(BX$13,'Option X3'!$D$6:$E$20,2,0) -> 0 | BY44: 0 | BZ44: 0 | CA44: R 0.00 | CB44: R 0.00 | CC44: R 0.00 | CE44: 1 | CG44: 0 | CI44: =VLOOKUP(CI$13,'Option X3'!$D$6:$E$20,2,0) -> 0 | CJ44: 0 | CK44: 0 | CL44: R 0.00 | CM44: R 0.00 | CN44: R 0.00 | CP44: 1 | CR44: 0 | CT44: =VLOOKUP(CT$13,'Option X3'!$D$6:$E$20,2,0) -> 0 | CU44: 0 | CV44: 0 | CW44: R 0.00 | CX44: R 0.00 | CY44: R 0.00
A45: 28 | F45: 1 | H45: 0 | J45: =VLOOKUP(J$13,'Option X3'!$D$6:$E$20,2,0) -> 0 | K45: 0 | L45: 0 | M45: R 0.00 | N45: R 0.00 | O45: R 0.00 | Q45: 1 | S45: 0 | U45: =VLOOKUP(U$13,'Option X3'!$D$6:$E$20,2,0) -> 0 | V45: 0 | W45: 0 | X45: R 0.00 | Y45: R 0.00 | Z45: R 0.00 | AB45: 1 | AD45: 0 | AF45: =VLOOKUP(AF$13,'Option X3'!$D$6:$E$20,2,0) -> 0 | AG45: 0 | AH45: 0 | AI45: R 0.00 | AJ45: R 0.00 | AK45: R 0.00 | AM45: 1 | AO45: 0 | AQ45: =VLOOKUP(AQ$13,'Option X3'!$D$6:$E$20,2,0) -> 0 | AR45: 0 | AS45: 0 | AT45: R 0.00 | AU45: R 0.00 | AV45: R 0.00 | AX45: 1 | AZ45: 0 | BB45: =VLOOKUP(BB$13,'Option X3'!$D$6:$E$20,2,0) -> 0 | BC45: 0 | BD45: 0 | BE45: R 0.00 | BF45: R 0.00 | BG45: R 0.00 | BI45: 1 | BK45: 0 | BM45: =VLOOKUP(BM$13,'Option X3'!$D$6:$E$20,2,0) -> 0 | BN45: 0 | BO45: 0 | BP45: R 0.00 | BQ45: R 0.00 | BR45: R 0.00 | BT45: 1 | BV45: 0 | BX45: =VLOOKUP(BX$13,'Option X3'!$D$6:$E$20,2,0) -> 0 | BY45: 0 | BZ45: 0 | CA45: R 0.00 | CB45: R 0.00 | CC45: R 0.00 | CE45: 1 | CG45: 0 | CI45: =VLOOKUP(CI$13,'Option X3'!$D$6:$E$20,2,0) -> 0 | CJ45: 0 | CK45: 0 | CL45: R 0.00 | CM45: R 0.00 | CN45: R 0.00 | CP45: 1 | CR45: 0 | CT45: =VLOOKUP(CT$13,'Option X3'!$D$6:$E$20,2,0) -> 0 | CU45: 0 | CV45: 0 | CW45: R 0.00 | CX45: R 0.00 | CY45: R 0.00
A46: 29 | F46: 1 | H46: 0 | J46: =VLOOKUP(J$13,'Option X3'!$D$6:$E$20,2,0) -> 0 | K46: 0 | L46: 0 | M46: R 0.00 | N46: R 0.00 | O46: R 0.00 | Q46: 1 | S46: 0 | U46: =VLOOKUP(U$13,'Option X3'!$D$6:$E$20,2,0) -> 0 | V46: 0 | W46: 0 | X46: R 0.00 | Y46: R 0.00 | Z46: R 0.00 | AB46: 1 | AD46: 0 | AF46: =VLOOKUP(AF$13,'Option X3'!$D$6:$E$20,2,0) -> 0 | AG46: 0 | AH46: 0 | AI46: R 0.00 | AJ46: R 0.00 | AK46: R 0.00 | AM46: 1 | AO46: 0 | AQ46: =VLOOKUP(AQ$13,'Option X3'!$D$6:$E$20,2,0) -> 0 | AR46: 0 | AS46: 0 | AT46: R 0.00 | AU46: R 0.00 | AV46: R 0.00 | AX46: 1 | AZ46: 0 | BB46: =VLOOKUP(BB$13,'Option X3'!$D$6:$E$20,2,0) -> 0 | BC46: 0 | BD46: 0 | BE46: R 0.00 | BF46: R 0.00 | BG46: R 0.00 | BI46: 1 | BK46: 0 | BM46: =VLOOKUP(BM$13,'Option X3'!$D$6:$E$20,2,0) -> 0 | BN46: 0 | BO46: 0 | BP46: R 0.00 | BQ46: R 0.00 | BR46: R 0.00 | BT46: 1 | BV46: 0 | BX46: =VLOOKUP(BX$13,'Option X3'!$D$6:$E$20,2,0) -> 0 | BY46: 0 | BZ46: 0 | CA46: R 0.00 | CB46: R 0.00 | CC46: R 0.00 | CE46: 1 | CG46: 0 | CI46: =VLOOKUP(CI$13,'Option X3'!$D$6:$E$20,2,0) -> 0 | CJ46: 0 | CK46: 0 | CL46: R 0.00 | CM46: R 0.00 | CN46: R 0.00 | CP46: 1 | CR46: 0 | CT46: =VLOOKUP(CT$13,'Option X3'!$D$6:$E$20,2,0) -> 0 | CU46: 0 | CV46: 0 | CW46: R 0.00 | CX46: R 0.00 | CY46: R 0.00
A47: 30 | F47: 1 | H47: 0 | J47: =VLOOKUP(J$13,'Option X3'!$D$6:$E$20,2,0) -> 0 | K47: 0 | L47: 0 | M47: R 0.00 | N47: R 0.00 | O47: R 0.00 | Q47: 1 | S47: 0 | U47: =VLOOKUP(U$13,'Option X3'!$D$6:$E$20,2,0) -> 0 | V47: 0 | W47: 0 | X47: R 0.00 | Y47: R 0.00 | Z47: R 0.00 | AB47: 1 | AD47: 0 | AF47: =VLOOKUP(AF$13,'Option X3'!$D$6:$E$20,2,0) -> 0 | AG47: 0 | AH47: 0 | AI47: R 0.00 | AJ47: R 0.00 | AK47: R 0.00 | AM47: 1 | AO47: 0 | AQ47: =VLOOKUP(AQ$13,'Option X3'!$D$6:$E$20,2,0) -> 0 | AR47: 0 | AS47: 0 | AT47: R 0.00 | AU47: R 0.00 | AV47: R 0.00 | AX47: 1 | AZ47: 0 | BB47: =VLOOKUP(BB$13,'Option X3'!$D$6:$E$20,2,0) -> 0 | BC47: 0 | BD47: 0 | BE47: R 0.00 | BF47: R 0.00 | BG47: R 0.00 | BI47: 1 | BK47: 0 | BM47: =VLOOKUP(BM$13,'Option X3'!$D$6:$E$20,2,0) -> 0 | BN47: 0 | BO47: 0 | BP47: R 0.00 | BQ47: R 0.00 | BR47: R 0.00 | BT47: 1 | BV47: 0 | BX47: =VLOOKUP(BX$13,'Option X3'!$D$6:$E$20,2,0) -> 0 | BY47: 0 | BZ47: 0 | CA47: R 0.00 | CB47: R 0.00 | CC47: R 0.00 | CE47: 1 | CG47: 0 | CI47: =VLOOKUP(CI$13,'Option X3'!$D$6:$E$20,2,0) -> 0 | CJ47: 0 | CK47: 0 | CL47: R 0.00 | CM47: R 0.00 | CN47: R 0.00 | CP47: 1 | CR47: 0 | CT47: =VLOOKUP(CT$13,'Option X3'!$D$6:$E$20,2,0) -> 0 | CU47: 0 | CV47: 0 | CW47: R 0.00 | CX47: R 0.00 | CY47: R 0.00
A48: 31 | F48: 1 | H48: 0 | J48: =VLOOKUP(J$13,'Option X3'!$D$6:$E$20,2,0) -> 0 | K48: 0 | L48: 0 | M48: R 0.00 | N48: R 0.00 | O48: R 0.00 | Q48: 1 | S48: 0 | U48: =VLOOKUP(U$13,'Option X3'!$D$6:$E$20,2,0) -> 0 | V48: 0 | W48: 0 | X48: R 0.00 | Y48: R 0.00 | Z48: R 0.00 | AB48: 1 | AD48: 0 | AF48: =VLOOKUP(AF$13,'Option X3'!$D$6:$E$20,2,0) -> 0 | AG48: 0 | AH48: 0 | AI48: R 0.00 | AJ48: R 0.00 | AK48: R 0.00 | AM48: 1 | AO48: 0 | AQ48: =VLOOKUP(AQ$13,'Option X3'!$D$6:$E$20,2,0) -> 0 | AR48: 0 | AS48: 0 | AT48: R 0.00 | AU48: R 0.00 | AV48: R 0.00 | AX48: 1 | AZ48: 0 | BB48: =VLOOKUP(BB$13,'Option X3'!$D$6:$E$20,2,0) -> 0 | BC48: 0 | BD48: 0 | BE48: R 0.00 | BF48: R 0.00 | BG48: R 0.00 | BI48: 1 | BK48: 0 | BM48: =VLOOKUP(BM$13,'Option X3'!$D$6:$E$20,2,0) -> 0 | BN48: 0 | BO48: 0 | BP48: R 0.00 | BQ48: R 0.00 | BR48: R 0.00 | BT48: 1 | BV48: 0 | BX48: =VLOOKUP(BX$13,'Option X3'!$D$6:$E$20,2,0) -> 0 | BY48: 0 | BZ48: 0 | CA48: R 0.00 | CB48: R 0.00 | CC48: R 0.00 | CE48: 1 | CG48: 0 | CI48: =VLOOKUP(CI$13,'Option X3'!$D$6:$E$20,2,0) -> 0 | CJ48: 0 | CK48: 0 | CL48: R 0.00 | CM48: R 0.00 | CN48: R 0.00 | CP48: 1 | CR48: 0 | CT48: =VLOOKUP(CT$13,'Option X3'!$D$6:$E$20,2,0) -> 0 | CU48: 0 | CV48: 0 | CW48: R 0.00 | CX48: R 0.00 | CY48: R 0.00
A49: 32 | F49: 1 | H49: 0 | J49: =VLOOKUP(J$13,'Option X3'!$D$6:$E$20,2,0) -> 0 | K49: 0 | L49: 0 | M49: R 0.00 | N49: R 0.00 | O49: R 0.00 | Q49: 1 | S49: 0 | U49: =VLOOKUP(U$13,'Option X3'!$D$6:$E$20,2,0) -> 0 | V49: 0 | W49: 0 | X49: R 0.00 | Y49: R 0.00 | Z49: R 0.00 | AB49: 1 | AD49: 0 | AF49: =VLOOKUP(AF$13,'Option X3'!$D$6:$E$20,2,0) -> 0 | AG49: 0 | AH49: 0 | AI49: R 0.00 | AJ49: R 0.00 | AK49: R 0.00 | AM49: 1 | AO49: 0 | AQ49: =VLOOKUP(AQ$13,'Option X3'!$D$6:$E$20,2,0) -> 0 | AR49: 0 | AS49: 0 | AT49: R 0.00 | AU49: R 0.00 | AV49: R 0.00 | AX49: 1 | AZ49: 0 | BB49: =VLOOKUP(BB$13,'Option X3'!$D$6:$E$20,2,0) -> 0 | BC49: 0 | BD49: 0 | BE49: R 0.00 | BF49: R 0.00 | BG49: R 0.00 | BI49: 1 | BK49: 0 | BM49: =VLOOKUP(BM$13,'Option X3'!$D$6:$E$20,2,0) -> 0 | BN49: 0 | BO49: 0 | BP49: R 0.00 | BQ49: R 0.00 | BR49: R 0.00 | BT49: 1 | BV49: 0 | BX49: =VLOOKUP(BX$13,'Option X3'!$D$6:$E$20,2,0) -> 0 | BY49: 0 | BZ49: 0 | CA49: R 0.00 | CB49: R 0.00 | CC49: R 0.00 | CE49: 1 | CG49: 0 | CI49: =VLOOKUP(CI$13,'Option X3'!$D$6:$E$20,2,0) -> 0 | CJ49: 0 | CK49: 0 | CL49: R 0.00 | CM49: R 0.00 | CN49: R 0.00 | CP49: 1 | CR49: 0 | CT49: =VLOOKUP(CT$13,'Option X3'!$D$6:$E$20,2,0) -> 0 | CU49: 0 | CV49: 0 | CW49: R 0.00 | CX49: R 0.00 | CY49: R 0.00
A50: 33 | F50: 1 | H50: 0 | J50: =VLOOKUP(J$13,'Option X3'!$D$6:$E$20,2,0) -> 0 | K50: 0 | L50: 0 | M50: R 0.00 | N50: R 0.00 | O50: R 0.00 | Q50: 1 | S50: 0 | U50: =VLOOKUP(U$13,'Option X3'!$D$6:$E$20,2,0) -> 0 | V50: 0 | W50: 0 | X50: R 0.00 | Y50: R 0.00 | Z50: R 0.00 | AB50: 1 | AD50: 0 | AF50: =VLOOKUP(AF$13,'Option X3'!$D$6:$E$20,2,0) -> 0 | AG50: 0 | AH50: 0 | AI50: R 0.00 | AJ50: R 0.00 | AK50: R 0.00 | AM50: 1 | AO50: 0 | AQ50: =VLOOKUP(AQ$13,'Option X3'!$D$6:$E$20,2,0) -> 0 | AR50: 0 | AS50: 0 | AT50: R 0.00 | AU50: R 0.00 | AV50: R 0.00 | AX50: 1 | AZ50: 0 | BB50: =VLOOKUP(BB$13,'Option X3'!$D$6:$E$20,2,0) -> 0 | BC50: 0 | BD50: 0 | BE50: R 0.00 | BF50: R 0.00 | BG50: R 0.00 | BI50: 1 | BK50: 0 | BM50: =VLOOKUP(BM$13,'Option X3'!$D$6:$E$20,2,0) -> 0 | BN50: 0 | BO50: 0 | BP50: R 0.00 | BQ50: R 0.00 | BR50: R 0.00 | BT50: 1 | BV50: 0 | BX50: =VLOOKUP(BX$13,'Option X3'!$D$6:$E$20,2,0) -> 0 | BY50: 0 | BZ50: 0 | CA50: R 0.00 | CB50: R 0.00 | CC50: R 0.00 | CE50: 1 | CG50: 0 | CI50: =VLOOKUP(CI$13,'Option X3'!$D$6:$E$20,2,0) -> 0 | CJ50: 0 | CK50: 0 | CL50: R 0.00 | CM50: R 0.00 | CN50: R 0.00 | CP50: 1 | CR50: 0 | CT50: =VLOOKUP(CT$13,'Option X3'!$D$6:$E$20,2,0) -> 0 | CU50: 0 | CV50: 0 | CW50: R 0.00 | CX50: R 0.00 | CY50: R 0.00
A51: 34 | F51: 1 | H51: 0 | J51: =VLOOKUP(J$13,'Option X3'!$D$6:$E$20,2,0) -> 0 | K51: 0 | L51: 0 | M51: R 0.00 | N51: R 0.00 | O51: R 0.00 | Q51: 1 | S51: 0 | U51: =VLOOKUP(U$13,'Option X3'!$D$6:$E$20,2,0) -> 0 | V51: 0 | W51: 0 | X51: R 0.00 | Y51: R 0.00 | Z51: R 0.00 | AB51: 1 | AD51: 0 | AF51: =VLOOKUP(AF$13,'Option X3'!$D$6:$E$20,2,0) -> 0 | AG51: 0 | AH51: 0 | AI51: R 0.00 | AJ51: R 0.00 | AK51: R 0.00 | AM51: 1 | AO51: 0 | AQ51: =VLOOKUP(AQ$13,'Option X3'!$D$6:$E$20,2,0) -> 0 | AR51: 0 | AS51: 0 | AT51: R 0.00 | AU51: R 0.00 | AV51: R 0.00 | AX51: 1 | AZ51: 0 | BB51: =VLOOKUP(BB$13,'Option X3'!$D$6:$E$20,2,0) -> 0 | BC51: 0 | BD51: 0 | BE51: R 0.00 | BF51: R 0.00 | BG51: R 0.00 | BI51: 1 | BK51: 0 | BM51: =VLOOKUP(BM$13,'Option X3'!$D$6:$E$20,2,0) -> 0 | BN51: 0 | BO51: 0 | BP51: R 0.00 | BQ51: R 0.00 | BR51: R 0.00 | BT51: 1 | BV51: 0 | BX51: =VLOOKUP(BX$13,'Option X3'!$D$6:$E$20,2,0) -> 0 | BY51: 0 | BZ51: 0 | CA51: R 0.00 | CB51: R 0.00 | CC51: R 0.00 | CE51: 1 | CG51: 0 | CI51: =VLOOKUP(CI$13,'Option X3'!$D$6:$E$20,2,0) -> 0 | CJ51: 0 | CK51: 0 | CL51: R 0.00 | CM51: R 0.00 | CN51: R 0.00 | CP51: 1 | CR51: 0 | CT51: =VLOOKUP(CT$13,'Option X3'!$D$6:$E$20,2,0) -> 0 | CU51: 0 | CV51: 0 | CW51: R 0.00 | CX51: R 0.00 | CY51: R 0.00
A52: 35 | F52: 1 | H52: 0 | J52: =VLOOKUP(J$13,'Option X3'!$D$6:$E$20,2,0) -> 0 | K52: 0 | L52: 0 | M52: R 0.00 | N52: R 0.00 | O52: R 0.00 | Q52: 1 | S52: 0 | U52: =VLOOKUP(U$13,'Option X3'!$D$6:$E$20,2,0) -> 0 | V52: 0 | W52: 0 | X52: R 0.00 | Y52: R 0.00 | Z52: R 0.00 | AB52: 1 | AD52: 0 | AF52: =VLOOKUP(AF$13,'Option X3'!$D$6:$E$20,2,0) -> 0 | AG52: 0 | AH52: 0 | AI52: R 0.00 | AJ52: R 0.00 | AK52: R 0.00 | AM52: 1 | AO52: 0 | AQ52: =VLOOKUP(AQ$13,'Option X3'!$D$6:$E$20,2,0) -> 0 | AR52: 0 | AS52: 0 | AT52: R 0.00 | AU52: R 0.00 | AV52: R 0.00 | AX52: 1 | AZ52: 0 | BB52: =VLOOKUP(BB$13,'Option X3'!$D$6:$E$20,2,0) -> 0 | BC52: 0 | BD52: 0 | BE52: R 0.00 | BF52: R 0.00 | BG52: R 0.00 | BI52: 1 | BK52: 0 | BM52: =VLOOKUP(BM$13,'Option X3'!$D$6:$E$20,2,0) -> 0 | BN52: 0 | BO52: 0 | BP52: R 0.00 | BQ52: R 0.00 | BR52: R 0.00 | BT52: 1 | BV52: 0 | BX52: =VLOOKUP(BX$13,'Option X3'!$D$6:$E$20,2,0) -> 0 | BY52: 0 | BZ52: 0 | CA52: R 0.00 | CB52: R 0.00 | CC52: R 0.00 | CE52: 1 | CG52: 0 | CI52: =VLOOKUP(CI$13,'Option X3'!$D$6:$E$20,2,0) -> 0 | CJ52: 0 | CK52: 0 | CL52: R 0.00 | CM52: R 0.00 | CN52: R 0.00 | CP52: 1 | CR52: 0 | CT52: =VLOOKUP(CT$13,'Option X3'!$D$6:$E$20,2,0) -> 0 | CU52: 0 | CV52: 0 | CW52: R 0.00 | CX52: R 0.00 | CY52: R 0.00
A53: 36 | F53: 1 | H53: 0 | J53: =VLOOKUP(J$13,'Option X3'!$D$6:$E$20,2,0) -> 0 | K53: 0 | L53: 0 | M53: R 0.00 | N53: R 0.00 | O53: R 0.00 | Q53: 1 | S53: 0 | U53: =VLOOKUP(U$13,'Option X3'!$D$6:$E$20,2,0) -> 0 | V53: 0 | W53: 0 | X53: R 0.00 | Y53: R 0.00 | Z53: R 0.00 | AB53: 1 | AD53: 0 | AF53: =VLOOKUP(AF$13,'Option X3'!$D$6:$E$20,2,0) -> 0 | AG53: 0 | AH53: 0 | AI53: R 0.00 | AJ53: R 0.00 | AK53: R 0.00 | AM53: 1 | AO53: 0 | AQ53: =VLOOKUP(AQ$13,'Option X3'!$D$6:$E$20,2,0) -> 0 | AR53: 0 | AS53: 0 | AT53: R 0.00 | AU53: R 0.00 | AV53: R 0.00 | AX53: 1 | AZ53: 0 | BB53: =VLOOKUP(BB$13,'Option X3'!$D$6:$E$20,2,0) -> 0 | BC53: 0 | BD53: 0 | BE53: R 0.00 | BF53: R 0.00 | BG53: R 0.00 | BI53: 1 | BK53: 0 | BM53: =VLOOKUP(BM$13,'Option X3'!$D$6:$E$20,2,0) -> 0 | BN53: 0 | BO53: 0 | BP53: R 0.00 | BQ53: R 0.00 | BR53: R 0.00 | BT53: 1 | BV53: 0 | BX53: =VLOOKUP(BX$13,'Option X3'!$D$6:$E$20,2,0) -> 0 | BY53: 0 | BZ53: 0 | CA53: R 0.00 | CB53: R 0.00 | CC53: R 0.00 | CE53: 1 | CG53: 0 | CI53: =VLOOKUP(CI$13,'Option X3'!$D$6:$E$20,2,0) -> 0 | CJ53: 0 | CK53: 0 | CL53: R 0.00 | CM53: R 0.00 | CN53: R 0.00 | CP53: 1 | CR53: 0 | CT53: =VLOOKUP(CT$13,'Option X3'!$D$6:$E$20,2,0) -> 0 | CU53: 0 | CV53: 0 | CW53: R 0.00 | CX53: R 0.00 | CY53: R 0.00
A54: 37 | F54: 1 | H54: 0 | J54: =VLOOKUP(J$13,'Option X3'!$D$6:$E$20,2,0) -> 0 | K54: 0 | L54: 0 | M54: R 0.00 | N54: R 0.00 | O54: R 0.00 | Q54: 1 | S54: 0 | U54: =VLOOKUP(U$13,'Option X3'!$D$6:$E$20,2,0) -> 0 | V54: 0 | W54: 0 | X54: R 0.00 | Y54: R 0.00 | Z54: R 0.00 | AB54: 1 | AD54: 0 | AF54: =VLOOKUP(AF$13,'Option X3'!$D$6:$E$20,2,0) -> 0 | AG54: 0 | AH54: 0 | AI54: R 0.00 | AJ54: R 0.00 | AK54: R 0.00 | AM54: 1 | AO54: 0 | AQ54: =VLOOKUP(AQ$13,'Option X3'!$D$6:$E$20,2,0) -> 0 | AR54: 0 | AS54: 0 | AT54: R 0.00 | AU54: R 0.00 | AV54: R 0.00 | AX54: 1 | AZ54: 0 | BB54: =VLOOKUP(BB$13,'Option X3'!$D$6:$E$20,2,0) -> 0 | BC54: 0 | BD54: 0 | BE54: R 0.00 | BF54: R 0.00 | BG54: R 0.00 | BI54: 1 | BK54: 0 | BM54: =VLOOKUP(BM$13,'Option X3'!$D$6:$E$20,2,0) -> 0 | BN54: 0 | BO54: 0 | BP54: R 0.00 | BQ54: R 0.00 | BR54: R 0.00 | BT54: 1 | BV54: 0 | BX54: =VLOOKUP(BX$13,'Option X3'!$D$6:$E$20,2,0) -> 0 | BY54: 0 | BZ54: 0 | CA54: R 0.00 | CB54: R 0.00 | CC54: R 0.00 | CE54: 1 | CG54: 0 | CI54: =VLOOKUP(CI$13,'Option X3'!$D$6:$E$20,2,0) -> 0 | CJ54: 0 | CK54: 0 | CL54: R 0.00 | CM54: R 0.00 | CN54: R 0.00 | CP54: 1 | CR54: 0 | CT54: =VLOOKUP(CT$13,'Option X3'!$D$6:$E$20,2,0) -> 0 | CU54: 0 | CV54: 0 | CW54: R 0.00 | CX54: R 0.00 | CY54: R 0.00
A55: 38 | F55: 1 | H55: 0 | J55: =VLOOKUP(J$13,'Option X3'!$D$6:$E$20,2,0) -> 0 | K55: 0 | L55: 0 | M55: R 0.00 | N55: R 0.00 | O55: R 0.00 | Q55: 1 | S55: 0 | U55: =VLOOKUP(U$13,'Option X3'!$D$6:$E$20,2,0) -> 0 | V55: 0 | W55: 0 | X55: R 0.00 | Y55: R 0.00 | Z55: R 0.00 | AB55: 1 | AD55: 0 | AF55: =VLOOKUP(AF$13,'Option X3'!$D$6:$E$20,2,0) -> 0 | AG55: 0 | AH55: 0 | AI55: R 0.00 | AJ55: R 0.00 | AK55: R 0.00 | AM55: 1 | AO55: 0 | AQ55: =VLOOKUP(AQ$13,'Option X3'!$D$6:$E$20,2,0) -> 0 | AR55: 0 | AS55: 0 | AT55: R 0.00 | AU55: R 0.00 | AV55: R 0.00 | AX55: 1 | AZ55: 0 | BB55: =VLOOKUP(BB$13,'Option X3'!$D$6:$E$20,2,0) -> 0 | BC55: 0 | BD55: 0 | BE55: R 0.00 | BF55: R 0.00 | BG55: R 0.00 | BI55: 1 | BK55: 0 | BM55: =VLOOKUP(BM$13,'Option X3'!$D$6:$E$20,2,0) -> 0 | BN55: 0 | BO55: 0 | BP55: R 0.00 | BQ55: R 0.00 | BR55: R 0.00 | BT55: 1 | BV55: 0 | BX55: =VLOOKUP(BX$13,'Option X3'!$D$6:$E$20,2,0) -> 0 | BY55: 0 | BZ55: 0 | CA55: R 0.00 | CB55: R 0.00 | CC55: R 0.00 | CE55: 1 | CG55: 0 | CI55: =VLOOKUP(CI$13,'Option X3'!$D$6:$E$20,2,0) -> 0 | CJ55: 0 | CK55: 0 | CL55: R 0.00 | CM55: R 0.00 | CN55: R 0.00 | CP55: 1 | CR55: 0 | CT55: =VLOOKUP(CT$13,'Option X3'!$D$6:$E$20,2,0) -> 0 | CU55: 0 | CV55: 0 | CW55: R 0.00 | CX55: R 0.00 | CY55: R 0.00
A56: 39 | F56: 1 | H56: 0 | J56: =VLOOKUP(J$13,'Option X3'!$D$6:$E$20,2,0) -> 0 | K56: 0 | L56: 0 | M56: R 0.00 | N56: R 0.00 | O56: R 0.00 | Q56: 1 | S56: 0 | U56: =VLOOKUP(U$13,'Option X3'!$D$6:$E$20,2,0) -> 0 | V56: 0 | W56: 0 | X56: R 0.00 | Y56: R 0.00 | Z56: R 0.00 | AB56: 1 | AD56: 0 | AF56: =VLOOKUP(AF$13,'Option X3'!$D$6:$E$20,2,0) -> 0 | AG56: 0 | AH56: 0 | AI56: R 0.00 | AJ56: R 0.00 | AK56: R 0.00 | AM56: 1 | AO56: 0 | AQ56: =VLOOKUP(AQ$13,'Option X3'!$D$6:$E$20,2,0) -> 0 | AR56: 0 | AS56: 0 | AT56: R 0.00 | AU56: R 0.00 | AV56: R 0.00 | AX56: 1 | AZ56: 0 | BB56: =VLOOKUP(BB$13,'Option X3'!$D$6:$E$20,2,0) -> 0 | BC56: 0 | BD56: 0 | BE56: R 0.00 | BF56: R 0.00 | BG56: R 0.00 | BI56: 1 | BK56: 0 | BM56: =VLOOKUP(BM$13,'Option X3'!$D$6:$E$20,2,0) -> 0 | BN56: 0 | BO56: 0 | BP56: R 0.00 | BQ56: R 0.00 | BR56: R 0.00 | BT56: 1 | BV56: 0 | BX56: =VLOOKUP(BX$13,'Option X3'!$D$6:$E$20,2,0) -> 0 | BY56: 0 | BZ56: 0 | CA56: R 0.00 | CB56: R 0.00 | CC56: R 0.00 | CE56: 1 | CG56: 0 | CI56: =VLOOKUP(CI$13,'Option X3'!$D$6:$E$20,2,0) -> 0 | CJ56: 0 | CK56: 0 | CL56: R 0.00 | CM56: R 0.00 | CN56: R 0.00 | CP56: 1 | CR56: 0 | CT56: =VLOOKUP(CT$13,'Option X3'!$D$6:$E$20,2,0) -> 0 | CU56: 0 | CV56: 0 | CW56: R 0.00 | CX56: R 0.00 | CY56: R 0.00
A57: 40 | F57: 1 | H57: 0 | J57: =VLOOKUP(J$13,'Option X3'!$D$6:$E$20,2,0) -> 0 | K57: 0 | L57: 0 | M57: R 0.00 | N57: R 0.00 | O57: R 0.00 | Q57: 1 | S57: 0 | U57: =VLOOKUP(U$13,'Option X3'!$D$6:$E$20,2,0) -> 0 | V57: 0 | W57: 0 | X57: R 0.00 | Y57: R 0.00 | Z57: R 0.00 | AB57: 1 | AD57: 0 | AF57: =VLOOKUP(AF$13,'Option X3'!$D$6:$E$20,2,0) -> 0 | AG57: 0 | AH57: 0 | AI57: R 0.00 | AJ57: R 0.00 | AK57: R 0.00 | AM57: 1 | AO57: 0 | AQ57: =VLOOKUP(AQ$13,'Option X3'!$D$6:$E$20,2,0) -> 0 | AR57: 0 | AS57: 0 | AT57: R 0.00 | AU57: R 0.00 | AV57: R 0.00 | AX57: 1 | AZ57: 0 | BB57: =VLOOKUP(BB$13,'Option X3'!$D$6:$E$20,2,0) -> 0 | BC57: 0 | BD57: 0 | BE57: R 0.00 | BF57: R 0.00 | BG57: R 0.00 | BI57: 1 | BK57: 0 | BM57: =VLOOKUP(BM$13,'Option X3'!$D$6:$E$20,2,0) -> 0 | BN57: 0 | BO57: 0 | BP57: R 0.00 | BQ57: R 0.00 | BR57: R 0.00 | BT57: 1 | BV57: 0 | BX57: =VLOOKUP(BX$13,'Option X3'!$D$6:$E$20,2,0) -> 0 | BY57: 0 | BZ57: 0 | CA57: R 0.00 | CB57: R 0.00 | CC57: R 0.00 | CE57: 1 | CG57: 0 | CI57: =VLOOKUP(CI$13,'Option X3'!$D$6:$E$20,2,0) -> 0 | CJ57: 0 | CK57: 0 | CL57: R 0.00 | CM57: R 0.00 | CN57: R 0.00 | CP57: 1 | CR57: 0 | CT57: =VLOOKUP(CT$13,'Option X3'!$D$6:$E$20,2,0) -> 0 | CU57: 0 | CV57: 0 | CW57: R 0.00 | CX57: R 0.00 | CY57: R 0.00
A58: 41 | F58: 1 | H58: 0 | J58: =VLOOKUP(J$13,'Option X3'!$D$6:$E$20,2,0) -> 0 | K58: 0 | L58: 0 | M58: R 0.00 | N58: R 0.00 | O58: R 0.00 | Q58: 1 | S58: 0 | U58: =VLOOKUP(U$13,'Option X3'!$D$6:$E$20,2,0) -> 0 | V58: 0 | W58: 0 | X58: R 0.00 | Y58: R 0.00 | Z58: R 0.00 | AB58: 1 | AD58: 0 | AF58: =VLOOKUP(AF$13,'Option X3'!$D$6:$E$20,2,0) -> 0 | AG58: 0 | AH58: 0 | AI58: R 0.00 | AJ58: R 0.00 | AK58: R 0.00 | AM58: 1 | AO58: 0 | AQ58: =VLOOKUP(AQ$13,'Option X3'!$D$6:$E$20,2,0) -> 0 | AR58: 0 | AS58: 0 | AT58: R 0.00 | AU58: R 0.00 | AV58: R 0.00 | AX58: 1 | AZ58: 0 | BB58: =VLOOKUP(BB$13,'Option X3'!$D$6:$E$20,2,0) -> 0 | BC58: 0 | BD58: 0 | BE58: R 0.00 | BF58: R 0.00 | BG58: R 0.00 | BI58: 1 | BK58: 0 | BM58: =VLOOKUP(BM$13,'Option X3'!$D$6:$E$20,2,0) -> 0 | BN58: 0 | BO58: 0 | BP58: R 0.00 | BQ58: R 0.00 | BR58: R 0.00 | BT58: 1 | BV58: 0 | BX58: =VLOOKUP(BX$13,'Option X3'!$D$6:$E$20,2,0) -> 0 | BY58: 0 | BZ58: 0 | CA58: R 0.00 | CB58: R 0.00 | CC58: R 0.00 | CE58: 1 | CG58: 0 | CI58: =VLOOKUP(CI$13,'Option X3'!$D$6:$E$20,2,0) -> 0 | CJ58: 0 | CK58: 0 | CL58: R 0.00 | CM58: R 0.00 | CN58: R 0.00 | CP58: 1 | CR58: 0 | CT58: =VLOOKUP(CT$13,'Option X3'!$D$6:$E$20,2,0) -> 0 | CU58: 0 | CV58: 0 | CW58: R 0.00 | CX58: R 0.00 | CY58: R 0.00
A59: 42 | F59: 1 | H59: 0 | J59: =VLOOKUP(J$13,'Option X3'!$D$6:$E$20,2,0) -> 0 | K59: 0 | L59: 0 | M59: R 0.00 | N59: R 0.00 | O59: R 0.00 | Q59: 1 | S59: 0 | U59: =VLOOKUP(U$13,'Option X3'!$D$6:$E$20,2,0) -> 0 | V59: 0 | W59: 0 | X59: R 0.00 | Y59: R 0.00 | Z59: R 0.00 | AB59: 1 | AD59: 0 | AF59: =VLOOKUP(AF$13,'Option X3'!$D$6:$E$20,2,0) -> 0 | AG59: 0 | AH59: 0 | AI59: R 0.00 | AJ59: R 0.00 | AK59: R 0.00 | AM59: 1 | AO59: 0 | AQ59: =VLOOKUP(AQ$13,'Option X3'!$D$6:$E$20,2,0) -> 0 | AR59: 0 | AS59: 0 | AT59: R 0.00 | AU59: R 0.00 | AV59: R 0.00 | AX59: 1 | AZ59: 0 | BB59: =VLOOKUP(BB$13,'Option X3'!$D$6:$E$20,2,0) -> 0 | BC59: 0 | BD59: 0 | BE59: R 0.00 | BF59: R 0.00 | BG59: R 0.00 | BI59: 1 | BK59: 0 | BM59: =VLOOKUP(BM$13,'Option X3'!$D$6:$E$20,2,0) -> 0 | BN59: 0 | BO59: 0 | BP59: R 0.00 | BQ59: R 0.00 | BR59: R 0.00 | BT59: 1 | BV59: 0 | BX59: =VLOOKUP(BX$13,'Option X3'!$D$6:$E$20,2,0) -> 0 | BY59: 0 | BZ59: 0 | CA59: R 0.00 | CB59: R 0.00 | CC59: R 0.00 | CE59: 1 | CG59: 0 | CI59: =VLOOKUP(CI$13,'Option X3'!$D$6:$E$20,2,0) -> 0 | CJ59: 0 | CK59: 0 | CL59: R 0.00 | CM59: R 0.00 | CN59: R 0.00 | CP59: 1 | CR59: 0 | CT59: =VLOOKUP(CT$13,'Option X3'!$D$6:$E$20,2,0) -> 0 | CU59: 0 | CV59: 0 | CW59: R 0.00 | CX59: R 0.00 | CY59: R 0.00
A60: 43 | F60: 1 | H60: 0 | J60: =VLOOKUP(J$13,'Option X3'!$D$6:$E$20,2,0) -> 0 | K60: 0 | L60: 0 | M60: R 0.00 | N60: R 0.00 | O60: R 0.00 | Q60: 1 | S60: 0 | U60: =VLOOKUP(U$13,'Option X3'!$D$6:$E$20,2,0) -> 0 | V60: 0 | W60: 0 | X60: R 0.00 | Y60: R 0.00 | Z60: R 0.00 | AB60: 1 | AD60: 0 | AF60: =VLOOKUP(AF$13,'Option X3'!$D$6:$E$20,2,0) -> 0 | AG60: 0 | AH60: 0 | AI60: R 0.00 | AJ60: R 0.00 | AK60: R 0.00 | AM60: 1 | AO60: 0 | AQ60: =VLOOKUP(AQ$13,'Option X3'!$D$6:$E$20,2,0) -> 0 | AR60: 0 | AS60: 0 | AT60: R 0.00 | AU60: R 0.00 | AV60: R 0.00 | AX60: 1 | AZ60: 0 | BB60: =VLOOKUP(BB$13,'Option X3'!$D$6:$E$20,2,0) -> 0 | BC60: 0 | BD60: 0 | BE60: R 0.00 | BF60: R 0.00 | BG60: R 0.00 | BI60: 1 | BK60: 0 | BM60: =VLOOKUP(BM$13,'Option X3'!$D$6:$E$20,2,0) -> 0 | BN60: 0 | BO60: 0 | BP60: R 0.00 | BQ60: R 0.00 | BR60: R 0.00 | BT60: 1 | BV60: 0 | BX60: =VLOOKUP(BX$13,'Option X3'!$D$6:$E$20,2,0) -> 0 | BY60: 0 | BZ60: 0 | CA60: R 0.00 | CB60: R 0.00 | CC60: R 0.00 | CE60: 1 | CG60: 0 | CI60: =VLOOKUP(CI$13,'Option X3'!$D$6:$E$20,2,0) -> 0 | CJ60: 0 | CK60: 0 | CL60: R 0.00 | CM60: R 0.00 | CN60: R 0.00 | CP60: 1 | CR60: 0 | CT60: =VLOOKUP(CT$13,'Option X3'!$D$6:$E$20,2,0) -> 0 | CU60: 0 | CV60: 0 | CW60: R 0.00 | CX60: R 0.00 | CY60: R 0.00

Sheet Option X3
B2: =[10]Summary!C3 -> ENQUIRY No | E2: ='Cover Sheet'!C3 -> E1270DXWC_
B3: =[10]Summary!C4 -> COMMODITY | E3: ='Cover Sheet'!C4 -> FLAT PLATE, GEL, VALVE REGULATED LEAD ACID (VRLA) BATTERIES
B4: =[10]Summary!C5 -> SUPPLIER | E4: =IF('Cover Sheet'!C5="","",'Cover Sheet'!C5) -> 
B5: MULTIPLE CURRENCIES - SECONDARY OPTION X3
B6: No | C6: Currency Description | D6: Code | E6: Foreign Exchange Currency 1,00 = | F6: Date Published | G6: Source
B7: 1 | C7: Austrailian Dollar | D7: AUD
B8: =B7+1 -> 2 | C8: Canadian Dollar | D8: CAD
B9: 3 | C9: Swiss Franc | D9: CHF
B10: 4 | C10: Danish Krone | D10: DKK
B11: 5 | C11: European Currency | D11: EUR
B12: 6 | C12: British Pound | D12: GBP
B13: 7 | C13: Hong Kong Dollar | D13: HKD
B14: 8 | C14: Japanese Yen | D14: JPY
B15: 9 | C15: Norwegian Krone | D15: NOK
B16: 10 | C16: New Zealand Dollar | D16: NZD
B17: 11 | C17: Swedish Krone | D17: SEK
B18: 12 | C18: Singapore Dollar | D18: SGD
B19: =+B18+1 -> 13 | C19: United States Dollars | D19: USD
B20: 14 | C20: South African Rand | D20: ZAR | E20: R 1.000000
B21: Note: Above is the list for which Foreign Exchange Cover can be obtained. Should your tender be in currency not indicated on this list, kindly contact the Eskom Commercial Department who will liaise with Eskom Treasury for sanction to use that currency.

Sheet Option X1
B2: ENQUIRY No | D2: ='Cover Sheet'!C3 -> E1270DXWC_
B3: COMMODITY | D3: ='Cover Sheet'!C4 -> FLAT PLATE, GEL, VALVE REGULATED LEAD ACID (VRLA) BATTERIES
B4: SUPPLIER | D4: =IF('Cover Sheet'!C5="","",'Cover Sheet'!C5) -> 
B5: PRICE ADJUSTMENT FOR INFLATION - SECONDARY OPTION X1
B6: No | C6: Description of Formula
B7: Fixed | C7: Firm and Fixed
B8: 01 | C8: =C21 -> Description of formula 1
B9: 02 | C9: =C30 -> Description of formula 2
B10: 03 | C10: =C39 -> Description of formula 3
B11: 04 | C11: =C48 -> Description of formula 4
B12: 05 | C12: =C57 -> Description of formula 5
B13: 06 | C13: =C66 -> Description of formula 6
B14: 07 | C14: =C75 -> Description of formula 7
B15: 08 | C15: =C84 -> Description of formula 8
B16: 09 | C16: =C93 -> Description of formula 9
B17: 010 | C17: =C102 -> Description of formula 10
B20: CPA No | C20: Description | D20: Index | E20: Proportion / Coefficient / Weight / Base reference price | F20: Scope of Index (eg Labour) | G20: Title/Definition : Linked to the index, e.g., Table C3, All hourly paid employees. Must be completely defined | H20: Source of Index | I20: Base month if not Base Date as defined | J20: Base index | K20: Formula Currency Code | L20: Currency Code | M20: Exchange Rate Currency 1,00 = | N20: Historical Data (Yes/No) | O20: Internet address
B21: 01 | C21: Description of formula 1 | D21: a | G21: Table of indices | H21: Source of indices | I21: 1 Month before tender close | J21: Index in the base month | K21: Currency | L21: N/A | M21: Rate | O21: Provide the website address
B22: 01 | D22: b
B23: 01 | D23: c
B24: 01 | D24: d
B25: 01 | D25: e
B26: 01 | D26: f | E26: 0.150 | F26: Fixed Non-adjustable (0.15 minimum)
B27: 01 | E27: =SUM(E21:E26) -> 0.150 | F27: Total (1.00)
B29: CPA No | C29: Description | D29: Index | E29: Proportion / Coefficient / Weight / Base reference price | F29: Scope of Index (eg Labour) | G29: Title/Definition : Linked to the index, e.g., Table C3, All hourly paid employees. Must be completely defined | H29: Source of Index ((indices prepared by (e.g. SEIFSA, StatsSA, LME) | I29: Base month if not Base Date as defined | J29: Base index | K29: Formula Currency Code | L29: Currency Code | M29: Exchange Rate Currency 1,00 = | N29: Historical Data (Yes/No) | O29: Internet address
B30: 02 | C30: Description of formula 2 | D30: a | G30: Table of indices | H30: Source of indices | I30: 1 Month before tender close | J30: Index in the base month | K30: Currency | L30: N/A | M30: Rate | O30: Provide the website address
B31: 02 | C31: =C30 -> Description of formula 2 | D31: b
B32: 02 | C32: Description of formula 2 | D32: c
B33: 02 | C33: Description of formula 2 | D33: d
B34: 02 | C34: Description of formula 2 | D34: e
B35: 02 | C35: Description of formula 2 | D35: f | E35: 0.150 | F35: Fixed Non-adjustable (0.15 minimum)
B36: 02 | C36: Description of formula 2 | E36: =SUM(E30:E35) -> 0.150 | F36: Total (1.00)
B38: CPA No | C38: Description | D38: Index | E38: Proportion / Coefficient / Weight / Base reference price | F38: Scope of Index (eg Labour) | G38: Title/Definition : Linked to the index, e.g., Table C3, All hourly paid employees. Must be completely defined | H38: Source of Index ((indices prepared by (e.g. SEIFSA, StatsSA, LME) | I38: Base month if not Base Date as defined | J38: Base index | K38: Formula Currency Code | L38: Currency Code | M38: Exchange Rate Currency 1,00 = | N38: Historical Data (Yes/No) | O38: Internet address
B39: 03 | C39: Description of formula 3 | D39: a | G39: Table of indices | H39: Source of indices | I39: 1 Month before tender close | J39: Index in the base month | K39: Currency | L39: N/A | M39: Rate | O39: Provide the website address
B40: 03 | C40: =C39 -> Description of formula 3 | D40: b
B41: 03 | C41: Description of formula 3 | D41: c
B42: 03 | C42: Description of formula 3 | D42: d
B43: 03 | C43: Description of formula 3 | D43: e
B44: 03 | C44: Description of formula 3 | D44: f | E44: 0.150 | F44: Fixed Non-adjustable (0.15 minimum)
B45: 03 | C45: Description of formula 3 | E45: =SUM(E39:E44) -> 0.150 | F45: Total (1.00)
B47: CPA No | C47: Description | D47: Index | E47: Proportion / Coefficient / Weight / Base reference price | F47: Scope of Index (eg Labour) | G47: Title/Definition : Linked to the index, e.g., Table C3, All hourly paid employees. Must be completely defined | H47: Source of Index ((indices prepared by (e.g. SEIFSA, StatsSA, LME) | I47: Base month if not Base Date as defined | J47: Base index | K47: Formula Currency Code | L47: Currency Code | M47: Exchange Rate Currency 1,00 = | N47: Historical Data (Yes/No) | O47: Internet address
B48: 04 | C48: Description of formula 4 | D48: a | G48: Table of indices | H48: Source of indices | I48: 1 Month before tender close | J48: Index in the base month | K48: Currency | L48: N/A | M48: Rate | O48: Provide the website address
B49: 04 | C49: =C48 -> Description of formula 4 | D49: b
B50: 04 | C50: Description of formula 4 | D50: c
B51: 04 | C51: Description of formula 4 | D51: d
B52: 04 | C52: Description of formula 4 | D52: e
B53: 04 | C53: Description of formula 4 | D53: f | E53: 0.150 | F53: Fixed Non-adjustable (0.15 minimum)
B54: 04 | C54: Description of formula 4 | E54: =SUM(E48:E53) -> 0.150 | F54: Total (1.00)
B56: CPA No | C56: Description | D56: Index | E56: Proportion / Coefficient / Weight / Base reference price | F56: Scope of Index (eg Labour) | G56: Title/Definition : Linked to the index, e.g., Table C3, All hourly paid employees. Must be completely defined | H56: Source of Index ((indices prepared by (e.g. SEIFSA, StatsSA, LME) | I56: Base month if not Base Date as defined | J56: Base index | K56: Formula Currency Code | L56: Currency Code | M56: Exchange Rate Currency 1,00 = | N56: Historical Data (Yes/No) | O56: Internet address
B57: 05 | C57: Description of formula 5 | D57: a | G57: Table of indices | H57: Source of indices | I57: 1 Month before tender close | J57: Index in the base month | K57: Currency | L57: N/A | M57: Rate | O57: Provide the website address
B58: 05 | C58: =C57 -> Description of formula 5 | D58: b
B59: 05 | C59: Description of formula 5 | D59: c
B60: 05 | C60: Description of formula 5 | D60: d
B61: 05 | C61: Description of formula 5 | D61: e
B62: 05 | C62: Description of formula 5 | D62: f | E62: 0.150 | F62: Fixed Non-adjustable (0.15 minimum)
B63: 05 | C63: Description of formula 5 | E63: =SUM(E57:E62) -> 0.150 | F63: Total (1.00)
B65: CPA No | C65: Description | D65: Index | E65: Proportion / Coefficient / Weight / Base reference price | F65: Scope of Index (eg Labour) | G65: Title/Definition : Linked to the index, e.g., Table C3, All hourly paid employees. Must be completely defined | H65: Source of Index ((indices prepared by (e.g. SEIFSA, StatsSA, LME) | I65: Base month if not Base Date as defined | J65: Base index | K65: Formula Currency Code | L65: Currency Code | M65: Exchange Rate Currency 1,00 = | N65: Historical Data (Yes/No) | O65: Internet address
B66: 06 | C66: Description of formula 6 | D66: a | G66: Table of indices | H66: Source of indices | I66: 1 Month before tender close | J66: Index in the base month | K66: Currency | L66: N/A | M66: Rate | O66: Provide the website address
B67: 06 | C67: =C66 -> Description of formula 6 | D67: b
B68: 06 | C68: Description of formula 6 | D68: c
B69: 06 | C69: Description of formula 6 | D69: d
B70: 06 | C70: Description of formula 6 | D70: e
B71: 06 | C71: Description of formula 6 | D71: f | E71: 0.150 | F71: Fixed Non-adjustable (0.15 minimum)
B72: 06 | C72: Description of formula 6 | E72: =SUM(E66:E71) -> 0.150 | F72: Total (1.00)
B74: CPA No | C74: Description | D74: Index | E74: Proportion / Coefficient / Weight / Base reference price | F74: Scope of Index (eg Labour) | G74: Title/Definition : Linked to the index, e.g., Table C3, All hourly paid employees. Must be completely defined | H74: Source of Index ((indices prepared by (e.g. SEIFSA, StatsSA, LME) | I74: Base month if not Base Date as defined | J74: Base index | K74: Formula Currency Code | L74: Currency Code | M74: Exchange Rate Currency 1,00 = | N74: Historical Data (Yes/No) | O74: Internet address
B75: 07 | C75: Description of formula 7 | D75: a | G75: Table of indices | H75: Source of indices | I75: 1 Month before tender close | J75: Index in the base month | K75: Currency | L75: N/A | M75: Rate | O75: Provide the website address
B76: 07 | C76: =C75 -> Description of formula 7 | D76: b
B77: 07 | C77: Description of formula 7 | D77: c
B78: 07 | C78: Description of formula 7 | D78: d
B79: 07 | C79: Description of formula 7 | D79: e
B80: 07 | C80: Description of formula 7 | D80: f | E80: 0.150 | F80: Fixed Non-adjustable (0.15 minimum)
B81: 07 | C81: Description of formula 7 | E81: =SUM(E75:E80) -> 0.150 | F81: Total (1.00)
B83: CPA No | C83: Description | D83: Index | E83: Proportion / Coefficient / Weight / Base reference price | F83: Scope of Index (eg Labour) | G83: Title/Definition : Linked to the index, e.g., Table C3, All hourly paid employees. Must be completely defined | H83: Source of Index ((indices prepared by (e.g. SEIFSA, StatsSA, LME) | I83: Base month if not Base Date as defined | J83: Base index | K83: Formula Currency Code | L83: Currency Code | M83: Exchange Rate Currency 1,00 = | N83: Historical Data (Yes/No) | O83: Internet address
B84: 08 | C84: Description of formula 8 | D84: a | G84: Table of indices | H84: Source of indices | I84: 1 Month before tender close | J84: Index in the base month | K84: Currency | L84: N/A | M84: Rate | O84: Provide the website address
B85: 08 | C85: =C84 -> Description of formula 8 | D85: b
B86: 08 | C86: Description of formula 8 | D86: c
B87: 08 | C87: Description of formula 8 | D87: d
B88: 08 | C88: Description of formula 8 | D88: e
B89: 08 | C89: Description of formula 8 | D89: f | E89: 0.150 | F89: Fixed Non-adjustable (0.15 minimum)
B90: 08 | C90: Description of formula 8 | E90: =SUM(E84:E89) -> 0.150 | F90: Total (1.00)
B92: CPA No | C92: Description | D92: Index | E92: Proportion / Coefficient / Weight / Base reference price | F92: Scope of Index (eg Labour) | G92: Title/Definition : Linked to the index, e.g., Table C3, All hourly paid employees. Must be completely defined | H92: Source of Index ((indices prepared by (e.g. SEIFSA, StatsSA, LME) | I92: Base month if not Base Date as defined | J92: Base index | K92: Formula Currency Code | L92: Currency Code | M92: Exchange Rate Currency 1,00 = | N92: Historical Data (Yes/No) | O92: Internet address
B93: 09 | C93: Description of formula 9 | D93: a | G93: Table of indices | H93: Source of indices | I93: 1 Month before tender close | J93: Index in the base month | K93: Currency | L93: N/A | M93: Rate | O93: Provide the website address
B94: 09 | C94: =C93 -> Description of formula 9 | D94: b
B95: 09 | C95: Description of formula 9 | D95: c
B96: 09 | C96: Description of formula 9 | D96: d
B97: 09 | C97: Description of formula 9 | D97: e
B98: 09 | C98: Description of formula 9 | D98: f | E98: 0.150 | F98: Fixed Non-adjustable (0.15 minimum)
B99: 09 | C99: Description of formula 9 | E99: =SUM(E93:E98) -> 0.150 | F99: Total (1.00)
B101: CPA No | C101: Description | D101: Index | E101: Proportion / Coefficient / Weight / Base reference price | F101: Scope of Index (eg Labour) | G101: Title/Definition : Linked to the index, e.g., Table C3, All hourly paid employees. Must be completely defined | H101: Source of Index ((indices prepared by (e.g. SEIFSA, StatsSA, LME) | I101: Base month if not Base Date as defined | J101: Base index | K101: Formula Currency Code | L101: Currency Code | M101: Exchange Rate Currency 1,00 = | N101: Historical Data (Yes/No) | O101: Internet address
B102: =B93+1 -> 010 | C102: Description of formula 10 | D102: a | G102: Table of indices | H102: Source of indices | I102: 1 Month before tender close | J102: Index in the base month | K102: Currency | L102: N/A | M102: Rate | O102: Provide the website address
B103: =B102 -> 010 | C103: Description of formula 10 | D103: b
B104: 010 | C104: Description of formula 10 | D104: c
B105: 010 | C105: Description of formula 10 | D105: d
B106: 010 | C106: Description of formula 10 | D106: e
B107: 010 | C107: Description of formula 10 | D107: f | E107: 0.150 | F107: Fixed Non-adjustable (0.15 minimum)
B108: 010 | C108: Description of formula 10 | E108: =SUM(E102:E107) -> 0.150 | F108: Total (1.00)

Sheet Indices
A1: ='[11]C2.2.0 Cover Page'!A12 -> OFFER CATEGORY : E.g. "MAIN", or "ALTERNATIVE 3", etc.
A4: PRESCRIBED INDICES
A5: Note :
A6: It is important that these indices are considered with the requirements in Spares and Tools and Maintenance and repairs,Training and IP
A7: Please go through the Eskom CPA strategy document attached.
A8: LOCAL CPA INDICES | B8: Latest
A10: Labour | B10: Commodities | C10: Processed material | D10: Transport | E10: Others
A11: Labour general | B11: Steel: | C11: Mechanical Engineering Material | D11: SEIFSA, L2, road freight costs | E11: Consumer Price Index StatsSA, P0141 Table A – Consumer Price Index: Main indices All items( CPI Headline) (*Variable Name: CPS 00000) OR SEIFSA D Consumer Price Index (CPI)
A12: SEIFSA, C3, Actual Labour Costs, Hourly- Paid Employees | B12: StatsSA P0142.1 Table 2 - PPI for intermediate manufactured goods Basic iron and steel (*Variable Name: PPD35100). | C12: SEIFSA, G, Mechanical Engineering Materials
B13: Copper: | C13: Electrical Engineering Material
B14: SEIFSA, F, Copper Metric Ton | E14: Production Price Index (PPI) StatsSA P0142.1, Table A – Key figures **Final manufactured goods (*Variable Name PPC3000) or **Intermediate manufactured goods (*Variable Name PPD3000) OR SEIFSA,, Table U **Final Manufactured Goods or **Intermediate Manufactured Goods
A15: Labour general | B15: Aluminium:- | C15: SEIFSA, G, Electrical Engineering Material
A16: SEIFSA, C3 (a), Actual Labour Cost (field force) where subsistence allowance is paid | B16: SEIFSA, R,
B17: Zinc:- | C17: Building and Construction Material
B18: SEIFSA, F, Zinc | C18: SEIFSA, G, Building and Construction Material
B19: Lead:-
B20: SEIFSA ,F, Lead
A21: *The Variable Numbers are indicate above for ease of finding the appropriate indices in the web pages of StatsSA’s “Inter Active Data” (e.g. index figures in Excel files)
A22: **The use of Final or Intermediate Manufactured Goods depends on the nature of the cost component in the CPA formula
A25: FOREIGN CPA INDICES
A27: Labour | B27: Commodities | C27: Processed material | D27: Transport | E27: Others
A28: National Statistical Institute, | B28: MEPS, | C28: National Statistical Institute, | D28: National Statistical Institute, | E28: National Statistical Institute,
A29: Country-specific general labour index | B29: Country-specific general steel index | C29: Country-specific mechanical engineering material | D29: Country-specific general transport cost index | E29: Country-specific CPI (Headline)
B30: LME, Copper | C30: National Statistical Institute,
B31: LME, aluminium | C31: Country-specific electrical engineering material | E31: National Statistical Institute,
B32: LME, zinc | C32: National Statistical Institute, | E32: Country-specific PPI
B33: LME, lead | C33: Country-specific building and construction material

Sheet TOTAL PRICE_Flat Plate, Gel
F1: Cost | G1: Column # | J1: Notes: | K1: 1) Custom battery banks qty's standardised to closest standard bank size
A2: ENQUIRY NO | B2: ='Cover Sheet'!C3 -> E1270DXWC_ | F2: Equipment | G2: =SUM(C10:E26) -> 0 | H2: 1+2+3 | K2: 2) Distance for travelling is assumed to 1000km (roundtrip)
A3: COMMODITY | B3: ='Cover Sheet'!C4 -> FLAT PLATE, GEL, VALVE REGULATED LEAD ACID (VRLA) BATTERIES | F3: Services without Discharge Test | G3: =SUM(F10:L26) -> 0 | H3: 4+5+7+8+9+10 | K3: 3) Distance for transport is assumed to 500km (one way) | N3: 500 | O3: km
A4: SUPPLIER | B4: =IF('Cover Sheet'!C5="","",'Cover Sheet'!C5) ->  | F4: Services with Discharge Test | G4: =SUM(F10:K26)+SUM(N10:N26) -> 0 | H4: 4+5+7+8+9+12
A6: SUMMARY OF PRICES EXCLUDING VAT
D7: DRST | G7: 0 | H7: =G7+13 -> 13 | I7: =H7+13 -> 26 | J7: 39 | K7: 52
A8: Column # | C8: 1 | D8: 2 | E8: 3 | F8: 4 | G8: 5 | H8: 6 | I8: 7 | J8: 8 | K8: 9 | L8: 10 | M8: 11 | N8: 12 | O8: 13
A9: Required Capacity [Ah] | B9: Offered Ah | C9: Wet Cells | D9: Linking Sets | E9: Battery Cabinets | F9: Decommissioning | G9: Installation | H9: Commissioning without Discharge | I9: Commissioning with Discharge | J9: Transport | K9: Travelling | L9: Subsistence (Wet Charged) - Commissioning without Discharge Test | M9: Total cost - Commissioning without Discharge Test | N9: Subsistence (Wet Charged) - Commissioning with Discharge Test | O9: Total cost - Commissioning with Discharge Test
A10: ='02-Flat Plate, Gel'!B16 -> 12V/7.8Ah | B10: ='02-Flat Plate, Gel'!C16 -> 0 | C10: =VLOOKUP($A10,LP_Table,12,0) -> 0 | D10: =SUM(VLOOKUP($A10,LP_Table,23,0),VLOOKUP($A10,LP_Table,34,0),VLOOKUP($A10,LP_Table,45,0),VLOOKUP($A10,LP_Table,56,0)) -> 0 | E10: =SUM(VLOOKUP($A10,LP_Table,67,0),VLOOKUP($A10,LP_Table,78,0),VLOOKUP($A10,LP_Table,89,0),VLOOKUP($A10,LP_Table,100,0)) -> 0 | F10: =IF($B10<='03-Labour_Subs_Travel'!$C$20,('02-Flat Plate, Gel'!Q16*'03-Labour_Subs_Travel'!E42)+('02-Flat Plate, Gel'!$AB16*'03-Labour_Subs_Travel'!E$44)+('02-Flat Plate, Gel'!$AM16*'03-Labour_Subs_Travel'!E$46)+('02-Flat Plate, Gel'!$AX16*'03-Labour_Subs_Travel'!E$48),('02-Flat Plate, Gel'!Q16*'03-Labour_Subs_Travel'!E43)+('02-Flat Plate, Gel'!$AB16*'03-Labour_Subs_Travel'!E$45)+('02-Flat Plate, Gel'!$AM16*'03-Labour_Subs_Travel'!E$47)+('02-Flat Plate, Gel'!$AX16*'03-Labour_Subs_Travel'!E$49)) -> 0 | G10: =IF($B10<='03-Labour_Subs_Travel'!$C$20,('02-Flat Plate, Gel'!Q16*'03-Labour_Subs_Travel'!F$42)+('02-Flat Plate, Gel'!$AB16*'03-Labour_Subs_Travel'!F$44)+('02-Flat Plate, Gel'!$AM16*'03-Labour_Subs_Travel'!F$46)+('02-Flat Plate, Gel'!$AX16*'03-Labour_Subs_Travel'!F$48),('02-Flat Plate, Gel'!Q16*'03-Labour_Subs_Travel'!F$43)+('02-Flat Plate, Gel'!$AB16*'03-Labour_Subs_Travel'!F$45)+('02-Flat Plate, Gel'!$AM16*'03-Labour_Subs_Travel'!F$47)+('02-Flat Plate, Gel'!$AX16*'03-Labour_Subs_Travel'!F$49)) -> 0 | H10: =IF($B10<='03-Labour_Subs_Travel'!$C$20,('02-Flat Plate, Gel'!$Q16*'03-Labour_Subs_Travel'!G$42)+('02-Flat Plate, Gel'!$AB16*'03-Labour_Subs_Travel'!G$44)+('02-Flat Plate, Gel'!$AM16*'03-Labour_Subs_Travel'!G$46)+('02-Flat Plate, Gel'!$AX16*'03-Labour_Subs_Travel'!G$48),('02-Flat Plate, Gel'!$Q16*'03-Labour_Subs_Travel'!G$43)+('02-Flat Plate, Gel'!$AB16*'03-Labour_Subs_Travel'!G$45)+('02-Flat Plate, Gel'!$AM16*'03-Labour_Subs_Travel'!G$47)+('02-Flat Plate, Gel'!$AX16*'03-Labour_Subs_Travel'!G$49)) -> 0 | I10: =IF($B10<='03-Labour_Subs_Travel'!$C$20,('02-Flat Plate, Gel'!$Q16*'03-Labour_Subs_Travel'!H$42)+('02-Flat Plate, Gel'!$AB16*'03-Labour_Subs_Travel'!H$44)+('02-Flat Plate, Gel'!$AM16*'03-Labour_Subs_Travel'!H$46)+('02-Flat Plate, Gel'!$AX16*'03-Labour_Subs_Travel'!H$48),('02-Flat Plate, Gel'!$Q16*'03-Labour_Subs_Travel'!H$43)+('02-Flat Plate, Gel'!$AB16*'03-Labour_Subs_Travel'!H$45)+('02-Flat Plate, Gel'!$AM16*'03-Labour_Subs_Travel'!H$47)+('02-Flat Plate, Gel'!$AX16*'03-Labour_Subs_Travel'!H$49)) -> 0 | J10: =('02-Flat Plate, Gel'!Q16*INDEX(TransportTable,MATCH(IF($N$3<100,100,$N$3),Distance,1),MATCH(IF(Num_30*VLOOKUP($A10,LP_Table,4,0)<1000,1000,Num_30*VLOOKUP($A10,LP_Table,4,0)),WeightRange,1)))+('02-Flat Plate, Gel'!AB16*INDEX(TransportTable,MATCH(IF($N$3<100,100,$N$3),Distance,1),MATCH(IF(Num_48*VLOOKUP($A10,LP_Table,4,0)<1000,1000,Num_48*VLOOKUP($A10,LP_Table,4,0)),WeightRange,1)))+('02-Flat Plate, Gel'!AM16*INDEX(TransportTable,MATCH(IF($N$3<100,100,$N$3),Distance,1),MATCH(IF(Num_110*VLOOKUP($A10,LP_Table,4,0)<1000,1000,Num_110*VLOOKUP($A10,LP_Table,4,0)),WeightRange,1)))+('02-Flat Plate, Gel'!AX16*INDEX(TransportTable,MATCH(IF($N$3<100,100,$N$3),Distance,1),MATCH(IF(Num_220*VLOOKUP($A10,LP_Table,4,0)<1000,1000,Num_220*VLOOKUP($A10,LP_Table,4,0)),WeightRange,1))) -> 0 | K10: =2*$N$3*'03-Labour_Subs_Travel'!$C$35*('02-Flat Plate, Gel'!Q16+'02-Flat Plate, Gel'!AB16+'02-Flat Plate, Gel'!AM16+'02-Flat Plate, Gel'!AX16) -> 0 | L10: =IF($B10<='03-Labour_Subs_Travel'!$C$20,('02-Flat Plate, Gel'!Q16*'03-Labour_Subs_Travel'!$I$42)+('02-Flat Plate, Gel'!AB16*'03-Labour_Subs_Travel'!$I$44)+('02-Flat Plate, Gel'!AM16*'03-Labour_Subs_Travel'!$I$46)+('02-Flat Plate, Gel'!AX16*'03-Labour_Subs_Travel'!$I$48),('02-Flat Plate, Gel'!Q16*'03-Labour_Subs_Travel'!$I$43)+('02-Flat Plate, Gel'!AB16*'03-Labour_Subs_Travel'!$I$45)+('02-Flat Plate, Gel'!AM16*'03-Labour_Subs_Travel'!$I$47)+('02-Flat Plate, Gel'!AX16*'03-Labour_Subs_Travel'!$I$49)) -> 0 | M10: =SUM(C10:L10) -> 0 | N10: =IF($B10<='03-Labour_Subs_Travel'!$C$20,('02-Flat Plate, Gel'!Q16*'03-Labour_Subs_Travel'!$J$42)+('02-Flat Plate, Gel'!AB16*'03-Labour_Subs_Travel'!$J$44)+('02-Flat Plate, Gel'!AM16*'03-Labour_Subs_Travel'!$J$46)+('02-Flat Plate, Gel'!AX16*'03-Labour_Subs_Travel'!$J$48),('02-Flat Plate, Gel'!Q16*'03-Labour_Subs_Travel'!$J$43)+('02-Flat Plate, Gel'!AB16*'03-Labour_Subs_Travel'!$J$45)+('02-Flat Plate, Gel'!AM16*'03-Labour_Subs_Travel'!$J$47)+('02-Flat Plate, Gel'!AX16*'03-Labour_Subs_Travel'!$J$49)) -> 0 | O10: =SUM(C10:K10)+N10 -> 0
A11: ='02-Flat Plate, Gel'!B17 -> 24V/7.8Ah | B11: ='02-Flat Plate, Gel'!C17 -> 0 | C11: 0 | D11: 0 | E11: 0 | F11: =IF($B11<='03-Labour_Subs_Travel'!$C$20,('02-Flat Plate, Gel'!Q17*'03-Labour_Subs_Travel'!E43)+('02-Flat Plate, Gel'!$AB17*'03-Labour_Subs_Travel'!E$44)+('02-Flat Plate, Gel'!$AM17*'03-Labour_Subs_Travel'!E$46)+('02-Flat Plate, Gel'!$AX17*'03-Labour_Subs_Travel'!E$48),('02-Flat Plate, Gel'!Q17*'03-Labour_Subs_Travel'!E44)+('02-Flat Plate, Gel'!$AB17*'03-Labour_Subs_Travel'!E$45)+('02-Flat Plate, Gel'!$AM17*'03-Labour_Subs_Travel'!E$47)+('02-Flat Plate, Gel'!$AX17*'03-Labour_Subs_Travel'!E$49)) -> 0 | G11: =IF($B11<='03-Labour_Subs_Travel'!$C$20,('02-Flat Plate, Gel'!Q17*'03-Labour_Subs_Travel'!F$42)+('02-Flat Plate, Gel'!$AB17*'03-Labour_Subs_Travel'!F$44)+('02-Flat Plate, Gel'!$AM17*'03-Labour_Subs_Travel'!F$46)+('02-Flat Plate, Gel'!$AX17*'03-Labour_Subs_Travel'!F$48),('02-Flat Plate, Gel'!Q17*'03-Labour_Subs_Travel'!F$43)+('02-Flat Plate, Gel'!$AB17*'03-Labour_Subs_Travel'!F$45)+('02-Flat Plate, Gel'!$AM17*'03-Labour_Subs_Travel'!F$47)+('02-Flat Plate, Gel'!$AX17*'03-Labour_Subs_Travel'!F$49)) -> 0 | H11: =IF($B11<='03-Labour_Subs_Travel'!$C$20,('02-Flat Plate, Gel'!$Q17*'03-Labour_Subs_Travel'!G$42)+('02-Flat Plate, Gel'!$AB17*'03-Labour_Subs_Travel'!G$44)+('02-Flat Plate, Gel'!$AM17*'03-Labour_Subs_Travel'!G$46)+('02-Flat Plate, Gel'!$AX17*'03-Labour_Subs_Travel'!G$48),('02-Flat Plate, Gel'!$Q17*'03-Labour_Subs_Travel'!G$43)+('02-Flat Plate, Gel'!$AB17*'03-Labour_Subs_Travel'!G$45)+('02-Flat Plate, Gel'!$AM17*'03-Labour_Subs_Travel'!G$47)+('02-Flat Plate, Gel'!$AX17*'03-Labour_Subs_Travel'!G$49)) -> 0 | I11: =IF($B11<='03-Labour_Subs_Travel'!$C$20,('02-Flat Plate, Gel'!$Q17*'03-Labour_Subs_Travel'!H$42)+('02-Flat Plate, Gel'!$AB17*'03-Labour_Subs_Travel'!H$44)+('02-Flat Plate, Gel'!$AM17*'03-Labour_Subs_Travel'!H$46)+('02-Flat Plate, Gel'!$AX17*'03-Labour_Subs_Travel'!H$48),('02-Flat Plate, Gel'!$Q17*'03-Labour_Subs_Travel'!H$43)+('02-Flat Plate, Gel'!$AB17*'03-Labour_Subs_Travel'!H$45)+('02-Flat Plate, Gel'!$AM17*'03-Labour_Subs_Travel'!H$47)+('02-Flat Plate, Gel'!$AX17*'03-Labour_Subs_Travel'!H$49)) -> 0 | J11: =('02-Flat Plate, Gel'!Q17*INDEX(TransportTable,MATCH(IF($N$3<100,100,$N$3),Distance,1),MATCH(IF(Num_30*VLOOKUP($A11,LP_Table,4,0)<1000,1000,Num_48*VLOOKUP($A11,LP_Table,4,0)),WeightRange,1)))+('02-Flat Plate, Gel'!AB17*INDEX(TransportTable,MATCH(IF($N$3<100,100,$N$3),Distance,1),MATCH(IF(Num_48*VLOOKUP($A11,LP_Table,4,0)<1000,1000,Num_48*VLOOKUP($A11,LP_Table,4,0)),WeightRange,1)))+('02-Flat Plate, Gel'!AM17*INDEX(TransportTable,MATCH(IF($N$3<100,100,$N$3),Distance,1),MATCH(IF(Num_110*VLOOKUP($A11,LP_Table,4,0)<1000,1000,Num_110*VLOOKUP($A11,LP_Table,4,0)),WeightRange,1)))+('02-Flat Plate, Gel'!AX17*INDEX(TransportTable,MATCH(IF($N$3<100,100,$N$3),Distance,1),MATCH(IF(Num_220*VLOOKUP($A11,LP_Table,4,0)<1000,1000,Num_220*VLOOKUP($A11,LP_Table,4,0)),WeightRange,1))) -> 0 | K11: =2*$N$3*'03-Labour_Subs_Travel'!$C$35*('02-Flat Plate, Gel'!Q17+'02-Flat Plate, Gel'!AB17+'02-Flat Plate, Gel'!AM17+'02-Flat Plate, Gel'!AX17) -> 0 | L11: =IF($B11<='03-Labour_Subs_Travel'!$C$20,('02-Flat Plate, Gel'!Q17*'03-Labour_Subs_Travel'!$I$42)+('02-Flat Plate, Gel'!AB17*'03-Labour_Subs_Travel'!$I$44)+('02-Flat Plate, Gel'!AM17*'03-Labour_Subs_Travel'!$I$46)+('02-Flat Plate, Gel'!AX17*'03-Labour_Subs_Travel'!$I$48),('02-Flat Plate, Gel'!Q17*'03-Labour_Subs_Travel'!$I$43)+('02-Flat Plate, Gel'!AB17*'03-Labour_Subs_Travel'!$I$45)+('02-Flat Plate, Gel'!AM17*'03-Labour_Subs_Travel'!$I$47)+('02-Flat Plate, Gel'!AX17*'03-Labour_Subs_Travel'!$I$49)) -> 0 | M11: 0 | N11: =IF($B11<='03-Labour_Subs_Travel'!$C$20,('02-Flat Plate, Gel'!AB17*'03-Labour_Subs_Travel'!$J$44)+('02-Flat Plate, Gel'!AM17*'03-Labour_Subs_Travel'!$J$46)+('02-Flat Plate, Gel'!AX17*'03-Labour_Subs_Travel'!$J$48),('02-Flat Plate, Gel'!AB17*'03-Labour_Subs_Travel'!$J$45)+('02-Flat Plate, Gel'!AM17*'03-Labour_Subs_Travel'!$J$47)+('02-Flat Plate, Gel'!AX17*'03-Labour_Subs_Travel'!$J$49)) -> 0 | O11: 0
A12: ='02-Flat Plate, Gel'!B18 -> 12V/12Ah | B12: ='02-Flat Plate, Gel'!C18 -> 0 | C12: 0 | D12: 0 | E12: 0 | F12: =IF($B12<='03-Labour_Subs_Travel'!$C$20,('02-Flat Plate, Gel'!Q18*'03-Labour_Subs_Travel'!E44)+('02-Flat Plate, Gel'!$AB18*'03-Labour_Subs_Travel'!E$44)+('02-Flat Plate, Gel'!$AM18*'03-Labour_Subs_Travel'!E$46)+('02-Flat Plate, Gel'!$AX18*'03-Labour_Subs_Travel'!E$48),('02-Flat Plate, Gel'!Q18*'03-Labour_Subs_Travel'!E45)+('02-Flat Plate, Gel'!$AB18*'03-Labour_Subs_Travel'!E$45)+('02-Flat Plate, Gel'!$AM18*'03-Labour_Subs_Travel'!E$47)+('02-Flat Plate, Gel'!$AX18*'03-Labour_Subs_Travel'!E$49)) -> 0 | G12: =IF($B12<='03-Labour_Subs_Travel'!$C$20,('02-Flat Plate, Gel'!Q18*'03-Labour_Subs_Travel'!F$42)+('02-Flat Plate, Gel'!$AB18*'03-Labour_Subs_Travel'!F$44)+('02-Flat Plate, Gel'!$AM18*'03-Labour_Subs_Travel'!F$46)+('02-Flat Plate, Gel'!$AX18*'03-Labour_Subs_Travel'!F$48),('02-Flat Plate, Gel'!Q18*'03-Labour_Subs_Travel'!F$43)+('02-Flat Plate, Gel'!$AB18*'03-Labour_Subs_Travel'!F$45)+('02-Flat Plate, Gel'!$AM18*'03-Labour_Subs_Travel'!F$47)+('02-Flat Plate, Gel'!$AX18*'03-Labour_Subs_Travel'!F$49)) -> 0 | H12: =IF($B12<='03-Labour_Subs_Travel'!$C$20,('02-Flat Plate, Gel'!$Q18*'03-Labour_Subs_Travel'!G$42)+('02-Flat Plate, Gel'!$AB18*'03-Labour_Subs_Travel'!G$44)+('02-Flat Plate, Gel'!$AM18*'03-Labour_Subs_Travel'!G$46)+('02-Flat Plate, Gel'!$AX18*'03-Labour_Subs_Travel'!G$48),('02-Flat Plate, Gel'!$Q18*'03-Labour_Subs_Travel'!G$43)+('02-Flat Plate, Gel'!$AB18*'03-Labour_Subs_Travel'!G$45)+('02-Flat Plate, Gel'!$AM18*'03-Labour_Subs_Travel'!G$47)+('02-Flat Plate, Gel'!$AX18*'03-Labour_Subs_Travel'!G$49)) -> 0 | I12: =IF($B12<='03-Labour_Subs_Travel'!$C$20,('02-Flat Plate, Gel'!$Q18*'03-Labour_Subs_Travel'!H$42)+('02-Flat Plate, Gel'!$AB18*'03-Labour_Subs_Travel'!H$44)+('02-Flat Plate, Gel'!$AM18*'03-Labour_Subs_Travel'!H$46)+('02-Flat Plate, Gel'!$AX18*'03-Labour_Subs_Travel'!H$48),('02-Flat Plate, Gel'!$Q18*'03-Labour_Subs_Travel'!H$43)+('02-Flat Plate, Gel'!$AB18*'03-Labour_Subs_Travel'!H$45)+('02-Flat Plate, Gel'!$AM18*'03-Labour_Subs_Travel'!H$47)+('02-Flat Plate, Gel'!$AX18*'03-Labour_Subs_Travel'!H$49)) -> 0 | J12: =('02-Flat Plate, Gel'!Q18*INDEX(TransportTable,MATCH(IF($N$3<100,100,$N$3),Distance,1),MATCH(IF(Num_30*VLOOKUP($A12,LP_Table,4,0)<1000,1000,Num_48*VLOOKUP($A12,LP_Table,4,0)),WeightRange,1)))+('02-Flat Plate, Gel'!AB18*INDEX(TransportTable,MATCH(IF($N$3<100,100,$N$3),Distance,1),MATCH(IF(Num_48*VLOOKUP($A12,LP_Table,4,0)<1000,1000,Num_48*VLOOKUP($A12,LP_Table,4,0)),WeightRange,1)))+('02-Flat Plate, Gel'!AM18*INDEX(TransportTable,MATCH(IF($N$3<100,100,$N$3),Distance,1),MATCH(IF(Num_110*VLOOKUP($A12,LP_Table,4,0)<1000,1000,Num_110*VLOOKUP($A12,LP_Table,4,0)),WeightRange,1)))+('02-Flat Plate, Gel'!AX18*INDEX(TransportTable,MATCH(IF($N$3<100,100,$N$3),Distance,1),MATCH(IF(Num_220*VLOOKUP($A12,LP_Table,4,0)<1000,1000,Num_220*VLOOKUP($A12,LP_Table,4,0)),WeightRange,1))) -> 0 | K12: =2*$N$3*'03-Labour_Subs_Travel'!$C$35*('02-Flat Plate, Gel'!Q18+'02-Flat Plate, Gel'!AB18+'02-Flat Plate, Gel'!AM18+'02-Flat Plate, Gel'!AX18) -> 0 | L12: =IF($B12<='03-Labour_Subs_Travel'!$C$20,('02-Flat Plate, Gel'!Q18*'03-Labour_Subs_Travel'!$I$42)+('02-Flat Plate, Gel'!AB18*'03-Labour_Subs_Travel'!$I$44)+('02-Flat Plate, Gel'!AM18*'03-Labour_Subs_Travel'!$I$46)+('02-Flat Plate, Gel'!AX18*'03-Labour_Subs_Travel'!$I$48),('02-Flat Plate, Gel'!Q18*'03-Labour_Subs_Travel'!$I$43)+('02-Flat Plate, Gel'!AB18*'03-Labour_Subs_Travel'!$I$45)+('02-Flat Plate, Gel'!AM18*'03-Labour_Subs_Travel'!$I$47)+('02-Flat Plate, Gel'!AX18*'03-Labour_Subs_Travel'!$I$49)) -> 0 | M12: 0 | N12: =IF($B12<='03-Labour_Subs_Travel'!$C$20,('02-Flat Plate, Gel'!AB18*'03-Labour_Subs_Travel'!$J$44)+('02-Flat Plate, Gel'!AM18*'03-Labour_Subs_Travel'!$J$46)+('02-Flat Plate, Gel'!AX18*'03-Labour_Subs_Travel'!$J$48),('02-Flat Plate, Gel'!AB18*'03-Labour_Subs_Travel'!$J$45)+('02-Flat Plate, Gel'!AM18*'03-Labour_Subs_Travel'!$J$47)+('02-Flat Plate, Gel'!AX18*'03-Labour_Subs_Travel'!$J$49)) -> 0 | O12: 0
A13: ='02-Flat Plate, Gel'!B19 -> 24V/13.2Ah | B13: ='02-Flat Plate, Gel'!C19 -> 0 | C13: 0 | D13: 0 | E13: 0 | F13: =IF($B13<='03-Labour_Subs_Travel'!$C$20,('02-Flat Plate, Gel'!Q19*'03-Labour_Subs_Travel'!E45)+('02-Flat Plate, Gel'!$AB19*'03-Labour_Subs_Travel'!E$44)+('02-Flat Plate, Gel'!$AM19*'03-Labour_Subs_Travel'!E$46)+('02-Flat Plate, Gel'!$AX19*'03-Labour_Subs_Travel'!E$48),('02-Flat Plate, Gel'!Q19*'03-Labour_Subs_Travel'!E46)+('02-Flat Plate, Gel'!$AB19*'03-Labour_Subs_Travel'!E$45)+('02-Flat Plate, Gel'!$AM19*'03-Labour_Subs_Travel'!E$47)+('02-Flat Plate, Gel'!$AX19*'03-Labour_Subs_Travel'!E$49)) -> 0 | G13: =IF($B13<='03-Labour_Subs_Travel'!$C$20,('02-Flat Plate, Gel'!Q19*'03-Labour_Subs_Travel'!F$42)+('02-Flat Plate, Gel'!$AB19*'03-Labour_Subs_Travel'!F$44)+('02-Flat Plate, Gel'!$AM19*'03-Labour_Subs_Travel'!F$46)+('02-Flat Plate, Gel'!$AX19*'03-Labour_Subs_Travel'!F$48),('02-Flat Plate, Gel'!Q19*'03-Labour_Subs_Travel'!F$43)+('02-Flat Plate, Gel'!$AB19*'03-Labour_Subs_Travel'!F$45)+('02-Flat Plate, Gel'!$AM19*'03-Labour_Subs_Travel'!F$47)+('02-Flat Plate, Gel'!$AX19*'03-Labour_Subs_Travel'!F$49)) -> 0 | H13: =IF($B13<='03-Labour_Subs_Travel'!$C$20,('02-Flat Plate, Gel'!$Q19*'03-Labour_Subs_Travel'!G$42)+('02-Flat Plate, Gel'!$AB19*'03-Labour_Subs_Travel'!G$44)+('02-Flat Plate, Gel'!$AM19*'03-Labour_Subs_Travel'!G$46)+('02-Flat Plate, Gel'!$AX19*'03-Labour_Subs_Travel'!G$48),('02-Flat Plate, Gel'!$Q19*'03-Labour_Subs_Travel'!G$43)+('02-Flat Plate, Gel'!$AB19*'03-Labour_Subs_Travel'!G$45)+('02-Flat Plate, Gel'!$AM19*'03-Labour_Subs_Travel'!G$47)+('02-Flat Plate, Gel'!$AX19*'03-Labour_Subs_Travel'!G$49)) -> 0 | I13: =IF($B13<='03-Labour_Subs_Travel'!$C$20,('02-Flat Plate, Gel'!$Q19*'03-Labour_Subs_Travel'!H$42)+('02-Flat Plate, Gel'!$AB19*'03-Labour_Subs_Travel'!H$44)+('02-Flat Plate, Gel'!$AM19*'03-Labour_Subs_Travel'!H$46)+('02-Flat Plate, Gel'!$AX19*'03-Labour_Subs_Travel'!H$48),('02-Flat Plate, Gel'!$Q19*'03-Labour_Subs_Travel'!H$43)+('02-Flat Plate, Gel'!$AB19*'03-Labour_Subs_Travel'!H$45)+('02-Flat Plate, Gel'!$AM19*'03-Labour_Subs_Travel'!H$47)+('02-Flat Plate, Gel'!$AX19*'03-Labour_Subs_Travel'!H$49)) -> 0 | J13: =('02-Flat Plate, Gel'!Q19*INDEX(TransportTable,MATCH(IF($N$3<100,100,$N$3),Distance,1),MATCH(IF(Num_30*VLOOKUP($A13,LP_Table,4,0)<1000,1000,Num_48*VLOOKUP($A13,LP_Table,4,0)),WeightRange,1)))+('02-Flat Plate, Gel'!AB19*INDEX(TransportTable,MATCH(IF($N$3<100,100,$N$3),Distance,1),MATCH(IF(Num_48*VLOOKUP($A13,LP_Table,4,0)<1000,1000,Num_48*VLOOKUP($A13,LP_Table,4,0)),WeightRange,1)))+('02-Flat Plate, Gel'!AM19*INDEX(TransportTable,MATCH(IF($N$3<100,100,$N$3),Distance,1),MATCH(IF(Num_110*VLOOKUP($A13,LP_Table,4,0)<1000,1000,Num_110*VLOOKUP($A13,LP_Table,4,0)),WeightRange,1)))+('02-Flat Plate, Gel'!AX19*INDEX(TransportTable,MATCH(IF($N$3<100,100,$N$3),Distance,1),MATCH(IF(Num_220*VLOOKUP($A13,LP_Table,4,0)<1000,1000,Num_220*VLOOKUP($A13,LP_Table,4,0)),WeightRange,1))) -> 0 | K13: =2*$N$3*'03-Labour_Subs_Travel'!$C$35*('02-Flat Plate, Gel'!Q19+'02-Flat Plate, Gel'!AB19+'02-Flat Plate, Gel'!AM19+'02-Flat Plate, Gel'!AX19) -> 0 | L13: =IF($B13<='03-Labour_Subs_Travel'!$C$20,('02-Flat Plate, Gel'!Q19*'03-Labour_Subs_Travel'!$I$42)+('02-Flat Plate, Gel'!AB19*'03-Labour_Subs_Travel'!$I$44)+('02-Flat Plate, Gel'!AM19*'03-Labour_Subs_Travel'!$I$46)+('02-Flat Plate, Gel'!AX19*'03-Labour_Subs_Travel'!$I$48),('02-Flat Plate, Gel'!Q19*'03-Labour_Subs_Travel'!$I$43)+('02-Flat Plate, Gel'!AB19*'03-Labour_Subs_Travel'!$I$45)+('02-Flat Plate, Gel'!AM19*'03-Labour_Subs_Travel'!$I$47)+('02-Flat Plate, Gel'!AX19*'03-Labour_Subs_Travel'!$I$49)) -> 0 | M13: 0 | N13: =IF($B13<='03-Labour_Subs_Travel'!$C$20,('02-Flat Plate, Gel'!AB19*'03-Labour_Subs_Travel'!$J$44)+('02-Flat Plate, Gel'!AM19*'03-Labour_Subs_Travel'!$J$46)+('02-Flat Plate, Gel'!AX19*'03-Labour_Subs_Travel'!$J$48),('02-Flat Plate, Gel'!AB19*'03-Labour_Subs_Travel'!$J$45)+('02-Flat Plate, Gel'!AM19*'03-Labour_Subs_Travel'!$J$47)+('02-Flat Plate, Gel'!AX19*'03-Labour_Subs_Travel'!$J$49)) -> 0 | O13: 0
A14: ='02-Flat Plate, Gel'!B20 -> 12V/18Ah | B14: ='02-Flat Plate, Gel'!C20 -> 0 | C14: 0 | D14: 0 | E14: 0 | F14: =IF($B14<='03-Labour_Subs_Travel'!$C$20,('02-Flat Plate, Gel'!Q20*'03-Labour_Subs_Travel'!E46)+('02-Flat Plate, Gel'!$AB20*'03-Labour_Subs_Travel'!E$44)+('02-Flat Plate, Gel'!$AM20*'03-Labour_Subs_Travel'!E$46)+('02-Flat Plate, Gel'!$AX20*'03-Labour_Subs_Travel'!E$48),('02-Flat Plate, Gel'!Q20*'03-Labour_Subs_Travel'!E47)+('02-Flat Plate, Gel'!$AB20*'03-Labour_Subs_Travel'!E$45)+('02-Flat Plate, Gel'!$AM20*'03-Labour_Subs_Travel'!E$47)+('02-Flat Plate, Gel'!$AX20*'03-Labour_Subs_Travel'!E$49)) -> 0 | G14: =IF($B14<='03-Labour_Subs_Travel'!$C$20,('02-Flat Plate, Gel'!Q20*'03-Labour_Subs_Travel'!F$42)+('02-Flat Plate, Gel'!$AB20*'03-Labour_Subs_Travel'!F$44)+('02-Flat Plate, Gel'!$AM20*'03-Labour_Subs_Travel'!F$46)+('02-Flat Plate, Gel'!$AX20*'03-Labour_Subs_Travel'!F$48),('02-Flat Plate, Gel'!Q20*'03-Labour_Subs_Travel'!F$43)+('02-Flat Plate, Gel'!$AB20*'03-Labour_Subs_Travel'!F$45)+('02-Flat Plate, Gel'!$AM20*'03-Labour_Subs_Travel'!F$47)+('02-Flat Plate, Gel'!$AX20*'03-Labour_Subs_Travel'!F$49)) -> 0 | H14: =IF($B14<='03-Labour_Subs_Travel'!$C$20,('02-Flat Plate, Gel'!$Q20*'03-Labour_Subs_Travel'!G$42)+('02-Flat Plate, Gel'!$AB20*'03-Labour_Subs_Travel'!G$44)+('02-Flat Plate, Gel'!$AM20*'03-Labour_Subs_Travel'!G$46)+('02-Flat Plate, Gel'!$AX20*'03-Labour_Subs_Travel'!G$48),('02-Flat Plate, Gel'!$Q20*'03-Labour_Subs_Travel'!G$43)+('02-Flat Plate, Gel'!$AB20*'03-Labour_Subs_Travel'!G$45)+('02-Flat Plate, Gel'!$AM20*'03-Labour_Subs_Travel'!G$47)+('02-Flat Plate, Gel'!$AX20*'03-Labour_Subs_Travel'!G$49)) -> 0 | I14: =IF($B14<='03-Labour_Subs_Travel'!$C$20,('02-Flat Plate, Gel'!$Q20*'03-Labour_Subs_Travel'!H$42)+('02-Flat Plate, Gel'!$AB20*'03-Labour_Subs_Travel'!H$44)+('02-Flat Plate, Gel'!$AM20*'03-Labour_Subs_Travel'!H$46)+('02-Flat Plate, Gel'!$AX20*'03-Labour_Subs_Travel'!H$48),('02-Flat Plate, Gel'!$Q20*'03-Labour_Subs_Travel'!H$43)+('02-Flat Plate, Gel'!$AB20*'03-Labour_Subs_Travel'!H$45)+('02-Flat Plate, Gel'!$AM20*'03-Labour_Subs_Travel'!H$47)+('02-Flat Plate, Gel'!$AX20*'03-Labour_Subs_Travel'!H$49)) -> 0 | J14: =('02-Flat Plate, Gel'!Q20*INDEX(TransportTable,MATCH(IF($N$3<100,100,$N$3),Distance,1),MATCH(IF(Num_30*VLOOKUP($A14,LP_Table,4,0)<1000,1000,Num_48*VLOOKUP($A14,LP_Table,4,0)),WeightRange,1)))+('02-Flat Plate, Gel'!AB20*INDEX(TransportTable,MATCH(IF($N$3<100,100,$N$3),Distance,1),MATCH(IF(Num_48*VLOOKUP($A14,LP_Table,4,0)<1000,1000,Num_48*VLOOKUP($A14,LP_Table,4,0)),WeightRange,1)))+('02-Flat Plate, Gel'!AM20*INDEX(TransportTable,MATCH(IF($N$3<100,100,$N$3),Distance,1),MATCH(IF(Num_110*VLOOKUP($A14,LP_Table,4,0)<1000,1000,Num_110*VLOOKUP($A14,LP_Table,4,0)),WeightRange,1)))+('02-Flat Plate, Gel'!AX20*INDEX(TransportTable,MATCH(IF($N$3<100,100,$N$3),Distance,1),MATCH(IF(Num_220*VLOOKUP($A14,LP_Table,4,0)<1000,1000,Num_220*VLOOKUP($A14,LP_Table,4,0)),WeightRange,1))) -> 0 | K14: =2*$N$3*'03-Labour_Subs_Travel'!$C$35*('02-Flat Plate, Gel'!Q20+'02-Flat Plate, Gel'!AB20+'02-Flat Plate, Gel'!AM20+'02-Flat Plate, Gel'!AX20) -> 0 | L14: =IF($B14<='03-Labour_Subs_Travel'!$C$20,('02-Flat Plate, Gel'!Q20*'03-Labour_Subs_Travel'!$I$42)+('02-Flat Plate, Gel'!AB20*'03-Labour_Subs_Travel'!$I$44)+('02-Flat Plate, Gel'!AM20*'03-Labour_Subs_Travel'!$I$46)+('02-Flat Plate, Gel'!AX20*'03-Labour_Subs_Travel'!$I$48),('02-Flat Plate, Gel'!Q20*'03-Labour_Subs_Travel'!$I$43)+('02-Flat Plate, Gel'!AB20*'03-Labour_Subs_Travel'!$I$45)+('02-Flat Plate, Gel'!AM20*'03-Labour_Subs_Travel'!$I$47)+('02-Flat Plate, Gel'!AX20*'03-Labour_Subs_Travel'!$I$49)) -> 0 | M14: 0 | N14: =IF($B14<='03-Labour_Subs_Travel'!$C$20,('02-Flat Plate, Gel'!AB20*'03-Labour_Subs_Travel'!$J$44)+('02-Flat Plate, Gel'!AM20*'03-Labour_Subs_Travel'!$J$46)+('02-Flat Plate, Gel'!AX20*'03-Labour_Subs_Travel'!$J$48),('02-Flat Plate, Gel'!AB20*'03-Labour_Subs_Travel'!$J$45)+('02-Flat Plate, Gel'!AM20*'03-Labour_Subs_Travel'!$J$47)+('02-Flat Plate, Gel'!AX20*'03-Labour_Subs_Travel'!$J$49)) -> 0 | O14: 0
A15: ='02-Flat Plate, Gel'!B21 -> 24V/18Ah | B15: ='02-Flat Plate, Gel'!C21 -> 0 | C15: 0 | D15: 0 | E15: 0 | F15: =IF($B15<='03-Labour_Subs_Travel'!$C$20,('02-Flat Plate, Gel'!Q21*'03-Labour_Subs_Travel'!E47)+('02-Flat Plate, Gel'!$AB21*'03-Labour_Subs_Travel'!E$44)+('02-Flat Plate, Gel'!$AM21*'03-Labour_Subs_Travel'!E$46)+('02-Flat Plate, Gel'!$AX21*'03-Labour_Subs_Travel'!E$48),('02-Flat Plate, Gel'!Q21*'03-Labour_Subs_Travel'!E48)+('02-Flat Plate, Gel'!$AB21*'03-Labour_Subs_Travel'!E$45)+('02-Flat Plate, Gel'!$AM21*'03-Labour_Subs_Travel'!E$47)+('02-Flat Plate, Gel'!$AX21*'03-Labour_Subs_Travel'!E$49)) -> 0 | G15: =IF($B15<='03-Labour_Subs_Travel'!$C$20,('02-Flat Plate, Gel'!Q21*'03-Labour_Subs_Travel'!F$42)+('02-Flat Plate, Gel'!$AB21*'03-Labour_Subs_Travel'!F$44)+('02-Flat Plate, Gel'!$AM21*'03-Labour_Subs_Travel'!F$46)+('02-Flat Plate, Gel'!$AX21*'03-Labour_Subs_Travel'!F$48),('02-Flat Plate, Gel'!Q21*'03-Labour_Subs_Travel'!F$43)+('02-Flat Plate, Gel'!$AB21*'03-Labour_Subs_Travel'!F$45)+('02-Flat Plate, Gel'!$AM21*'03-Labour_Subs_Travel'!F$47)+('02-Flat Plate, Gel'!$AX21*'03-Labour_Subs_Travel'!F$49)) -> 0 | H15: =IF($B15<='03-Labour_Subs_Travel'!$C$20,('02-Flat Plate, Gel'!$Q21*'03-Labour_Subs_Travel'!G$42)+('02-Flat Plate, Gel'!$AB21*'03-Labour_Subs_Travel'!G$44)+('02-Flat Plate, Gel'!$AM21*'03-Labour_Subs_Travel'!G$46)+('02-Flat Plate, Gel'!$AX21*'03-Labour_Subs_Travel'!G$48),('02-Flat Plate, Gel'!$Q21*'03-Labour_Subs_Travel'!G$43)+('02-Flat Plate, Gel'!$AB21*'03-Labour_Subs_Travel'!G$45)+('02-Flat Plate, Gel'!$AM21*'03-Labour_Subs_Travel'!G$47)+('02-Flat Plate, Gel'!$AX21*'03-Labour_Subs_Travel'!G$49)) -> 0 | I15: =IF($B15<='03-Labour_Subs_Travel'!$C$20,('02-Flat Plate, Gel'!$Q21*'03-Labour_Subs_Travel'!H$42)+('02-Flat Plate, Gel'!$AB21*'03-Labour_Subs_Travel'!H$44)+('02-Flat Plate, Gel'!$AM21*'03-Labour_Subs_Travel'!H$46)+('02-Flat Plate, Gel'!$AX21*'03-Labour_Subs_Travel'!H$48),('02-Flat Plate, Gel'!$Q21*'03-Labour_Subs_Travel'!H$43)+('02-Flat Plate, Gel'!$AB21*'03-Labour_Subs_Travel'!H$45)+('02-Flat Plate, Gel'!$AM21*'03-Labour_Subs_Travel'!H$47)+('02-Flat Plate, Gel'!$AX21*'03-Labour_Subs_Travel'!H$49)) -> 0 | J15: =('02-Flat Plate, Gel'!Q21*INDEX(TransportTable,MATCH(IF($N$3<100,100,$N$3),Distance,1),MATCH(IF(Num_30*VLOOKUP($A15,LP_Table,4,0)<1000,1000,Num_48*VLOOKUP($A15,LP_Table,4,0)),WeightRange,1)))+('02-Flat Plate, Gel'!AB21*INDEX(TransportTable,MATCH(IF($N$3<100,100,$N$3),Distance,1),MATCH(IF(Num_48*VLOOKUP($A15,LP_Table,4,0)<1000,1000,Num_48*VLOOKUP($A15,LP_Table,4,0)),WeightRange,1)))+('02-Flat Plate, Gel'!AM21*INDEX(TransportTable,MATCH(IF($N$3<100,100,$N$3),Distance,1),MATCH(IF(Num_110*VLOOKUP($A15,LP_Table,4,0)<1000,1000,Num_110*VLOOKUP($A15,LP_Table,4,0)),WeightRange,1)))+('02-Flat Plate, Gel'!AX21*INDEX(TransportTable,MATCH(IF($N$3<100,100,$N$3),Distance,1),MATCH(IF(Num_220*VLOOKUP($A15,LP_Table,4,0)<1000,1000,Num_220*VLOOKUP($A15,LP_Table,4,0)),WeightRange,1))) -> 0 | K15: =2*$N$3*'03-Labour_Subs_Travel'!$C$35*('02-Flat Plate, Gel'!Q21+'02-Flat Plate, Gel'!AB21+'02-Flat Plate, Gel'!AM21+'02-Flat Plate, Gel'!AX21) -> 0 | L15: =IF($B15<='03-Labour_Subs_Travel'!$C$20,('02-Flat Plate, Gel'!Q21*'03-Labour_Subs_Travel'!$I$42)+('02-Flat Plate, Gel'!AB21*'03-Labour_Subs_Travel'!$I$44)+('02-Flat Plate, Gel'!AM21*'03-Labour_Subs_Travel'!$I$46)+('02-Flat Plate, Gel'!AX21*'03-Labour_Subs_Travel'!$I$48),('02-Flat Plate, Gel'!Q21*'03-Labour_Subs_Travel'!$I$43)+('02-Flat Plate, Gel'!AB21*'03-Labour_Subs_Travel'!$I$45)+('02-Flat Plate, Gel'!AM21*'03-Labour_Subs_Travel'!$I$47)+('02-Flat Plate, Gel'!AX21*'03-Labour_Subs_Travel'!$I$49)) -> 0 | M15: 0 | N15: =IF($B15<='03-Labour_Subs_Travel'!$C$20,('02-Flat Plate, Gel'!AB21*'03-Labour_Subs_Travel'!$J$44)+('02-Flat Plate, Gel'!AM21*'03-Labour_Subs_Travel'!$J$46)+('02-Flat Plate, Gel'!AX21*'03-Labour_Subs_Travel'!$J$48),('02-Flat Plate, Gel'!AB21*'03-Labour_Subs_Travel'!$J$45)+('02-Flat Plate, Gel'!AM21*'03-Labour_Subs_Travel'!$J$47)+('02-Flat Plate, Gel'!AX21*'03-Labour_Subs_Travel'!$J$49)) -> 0 | O15: 0
A16: ='02-Flat Plate, Gel'!B22 -> 12V/26Ah | B16: ='02-Flat Plate, Gel'!C22 -> 0 | C16: 0 | D16: 0 | E16: 0 | F16: =IF($B16<='03-Labour_Subs_Travel'!$C$20,('02-Flat Plate, Gel'!Q22*'03-Labour_Subs_Travel'!E48)+('02-Flat Plate, Gel'!$AB22*'03-Labour_Subs_Travel'!E$44)+('02-Flat Plate, Gel'!$AM22*'03-Labour_Subs_Travel'!E$46)+('02-Flat Plate, Gel'!$AX22*'03-Labour_Subs_Travel'!E$48),('02-Flat Plate, Gel'!Q22*'03-Labour_Subs_Travel'!E49)+('02-Flat Plate, Gel'!$AB22*'03-Labour_Subs_Travel'!E$45)+('02-Flat Plate, Gel'!$AM22*'03-Labour_Subs_Travel'!E$47)+('02-Flat Plate, Gel'!$AX22*'03-Labour_Subs_Travel'!E$49)) -> 0 | G16: =IF($B16<='03-Labour_Subs_Travel'!$C$20,('02-Flat Plate, Gel'!Q22*'03-Labour_Subs_Travel'!F$42)+('02-Flat Plate, Gel'!$AB22*'03-Labour_Subs_Travel'!F$44)+('02-Flat Plate, Gel'!$AM22*'03-Labour_Subs_Travel'!F$46)+('02-Flat Plate, Gel'!$AX22*'03-Labour_Subs_Travel'!F$48),('02-Flat Plate, Gel'!Q22*'03-Labour_Subs_Travel'!F$43)+('02-Flat Plate, Gel'!$AB22*'03-Labour_Subs_Travel'!F$45)+('02-Flat Plate, Gel'!$AM22*'03-Labour_Subs_Travel'!F$47)+('02-Flat Plate, Gel'!$AX22*'03-Labour_Subs_Travel'!F$49)) -> 0 | H16: =IF($B16<='03-Labour_Subs_Travel'!$C$20,('02-Flat Plate, Gel'!$Q22*'03-Labour_Subs_Travel'!G$42)+('02-Flat Plate, Gel'!$AB22*'03-Labour_Subs_Travel'!G$44)+('02-Flat Plate, Gel'!$AM22*'03-Labour_Subs_Travel'!G$46)+('02-Flat Plate, Gel'!$AX22*'03-Labour_Subs_Travel'!G$48),('02-Flat Plate, Gel'!$Q22*'03-Labour_Subs_Travel'!G$43)+('02-Flat Plate, Gel'!$AB22*'03-Labour_Subs_Travel'!G$45)+('02-Flat Plate, Gel'!$AM22*'03-Labour_Subs_Travel'!G$47)+('02-Flat Plate, Gel'!$AX22*'03-Labour_Subs_Travel'!G$49)) -> 0 | I16: =IF($B16<='03-Labour_Subs_Travel'!$C$20,('02-Flat Plate, Gel'!$Q22*'03-Labour_Subs_Travel'!H$42)+('02-Flat Plate, Gel'!$AB22*'03-Labour_Subs_Travel'!H$44)+('02-Flat Plate, Gel'!$AM22*'03-Labour_Subs_Travel'!H$46)+('02-Flat Plate, Gel'!$AX22*'03-Labour_Subs_Travel'!H$48),('02-Flat Plate, Gel'!$Q22*'03-Labour_Subs_Travel'!H$43)+('02-Flat Plate, Gel'!$AB22*'03-Labour_Subs_Travel'!H$45)+('02-Flat Plate, Gel'!$AM22*'03-Labour_Subs_Travel'!H$47)+('02-Flat Plate, Gel'!$AX22*'03-Labour_Subs_Travel'!H$49)) -> 0 | J16: =('02-Flat Plate, Gel'!Q22*INDEX(TransportTable,MATCH(IF($N$3<100,100,$N$3),Distance,1),MATCH(IF(Num_30*VLOOKUP($A16,LP_Table,4,0)<1000,1000,Num_48*VLOOKUP($A16,LP_Table,4,0)),WeightRange,1)))+('02-Flat Plate, Gel'!AB22*INDEX(TransportTable,MATCH(IF($N$3<100,100,$N$3),Distance,1),MATCH(IF(Num_48*VLOOKUP($A16,LP_Table,4,0)<1000,1000,Num_48*VLOOKUP($A16,LP_Table,4,0)),WeightRange,1)))+('02-Flat Plate, Gel'!AM22*INDEX(TransportTable,MATCH(IF($N$3<100,100,$N$3),Distance,1),MATCH(IF(Num_110*VLOOKUP($A16,LP_Table,4,0)<1000,1000,Num_110*VLOOKUP($A16,LP_Table,4,0)),WeightRange,1)))+('02-Flat Plate, Gel'!AX22*INDEX(TransportTable,MATCH(IF($N$3<100,100,$N$3),Distance,1),MATCH(IF(Num_220*VLOOKUP($A16,LP_Table,4,0)<1000,1000,Num_220*VLOOKUP($A16,LP_Table,4,0)),WeightRange,1))) -> 0 | K16: =2*$N$3*'03-Labour_Subs_Travel'!$C$35*('02-Flat Plate, Gel'!Q22+'02-Flat Plate, Gel'!AB22+'02-Flat Plate, Gel'!AM22+'02-Flat Plate, Gel'!AX22) -> 0 | L16: =IF($B16<='03-Labour_Subs_Travel'!$C$20,('02-Flat Plate, Gel'!Q22*'03-Labour_Subs_Travel'!$I$42)+('02-Flat Plate, Gel'!AB22*'03-Labour_Subs_Travel'!$I$44)+('02-Flat Plate, Gel'!AM22*'03-Labour_Subs_Travel'!$I$46)+('02-Flat Plate, Gel'!AX22*'03-Labour_Subs_Travel'!$I$48),('02-Flat Plate, Gel'!Q22*'03-Labour_Subs_Travel'!$I$43)+('02-Flat Plate, Gel'!AB22*'03-Labour_Subs_Travel'!$I$45)+('02-Flat Plate, Gel'!AM22*'03-Labour_Subs_Travel'!$I$47)+('02-Flat Plate, Gel'!AX22*'03-Labour_Subs_Travel'!$I$49)) -> 0 | M16: 0 | N16: =IF($B16<='03-Labour_Subs_Travel'!$C$20,('02-Flat Plate, Gel'!AB22*'03-Labour_Subs_Travel'!$J$44)+('02-Flat Plate, Gel'!AM22*'03-Labour_Subs_Travel'!$J$46)+('02-Flat Plate, Gel'!AX22*'03-Labour_Subs_Travel'!$J$48),('02-Flat Plate, Gel'!AB22*'03-Labour_Subs_Travel'!$J$45)+('02-Flat Plate, Gel'!AM22*'03-Labour_Subs_Travel'!$J$47)+('02-Flat Plate, Gel'!AX22*'03-Labour_Subs_Travel'!$J$49)) -> 0 | O16: 0
A17: ='02-Flat Plate, Gel'!B23 -> 50 | B17: ='02-Flat Plate, Gel'!C23 -> 0 | C17: 0 | D17: 0 | E17: 0 | F17: =IF($B17<='03-Labour_Subs_Travel'!$C$20,('02-Flat Plate, Gel'!Q23*'03-Labour_Subs_Travel'!E49)+('02-Flat Plate, Gel'!$AB23*'03-Labour_Subs_Travel'!E$44)+('02-Flat Plate, Gel'!$AM23*'03-Labour_Subs_Travel'!E$46)+('02-Flat Plate, Gel'!$AX23*'03-Labour_Subs_Travel'!E$48),('02-Flat Plate, Gel'!Q23*'03-Labour_Subs_Travel'!E50)+('02-Flat Plate, Gel'!$AB23*'03-Labour_Subs_Travel'!E$45)+('02-Flat Plate, Gel'!$AM23*'03-Labour_Subs_Travel'!E$47)+('02-Flat Plate, Gel'!$AX23*'03-Labour_Subs_Travel'!E$49)) -> 0 | G17: =IF($B17<='03-Labour_Subs_Travel'!$C$20,('02-Flat Plate, Gel'!Q23*'03-Labour_Subs_Travel'!F$42)+('02-Flat Plate, Gel'!$AB23*'03-Labour_Subs_Travel'!F$44)+('02-Flat Plate, Gel'!$AM23*'03-Labour_Subs_Travel'!F$46)+('02-Flat Plate, Gel'!$AX23*'03-Labour_Subs_Travel'!F$48),('02-Flat Plate, Gel'!Q23*'03-Labour_Subs_Travel'!F$43)+('02-Flat Plate, Gel'!$AB23*'03-Labour_Subs_Travel'!F$45)+('02-Flat Plate, Gel'!$AM23*'03-Labour_Subs_Travel'!F$47)+('02-Flat Plate, Gel'!$AX23*'03-Labour_Subs_Travel'!F$49)) -> 0 | H17: =IF($B17<='03-Labour_Subs_Travel'!$C$20,('02-Flat Plate, Gel'!$Q23*'03-Labour_Subs_Travel'!G$42)+('02-Flat Plate, Gel'!$AB23*'03-Labour_Subs_Travel'!G$44)+('02-Flat Plate, Gel'!$AM23*'03-Labour_Subs_Travel'!G$46)+('02-Flat Plate, Gel'!$AX23*'03-Labour_Subs_Travel'!G$48),('02-Flat Plate, Gel'!$Q23*'03-Labour_Subs_Travel'!G$43)+('02-Flat Plate, Gel'!$AB23*'03-Labour_Subs_Travel'!G$45)+('02-Flat Plate, Gel'!$AM23*'03-Labour_Subs_Travel'!G$47)+('02-Flat Plate, Gel'!$AX23*'03-Labour_Subs_Travel'!G$49)) -> 0 | I17: =IF($B17<='03-Labour_Subs_Travel'!$C$20,('02-Flat Plate, Gel'!$Q23*'03-Labour_Subs_Travel'!H$42)+('02-Flat Plate, Gel'!$AB23*'03-Labour_Subs_Travel'!H$44)+('02-Flat Plate, Gel'!$AM23*'03-Labour_Subs_Travel'!H$46)+('02-Flat Plate, Gel'!$AX23*'03-Labour_Subs_Travel'!H$48),('02-Flat Plate, Gel'!$Q23*'03-Labour_Subs_Travel'!H$43)+('02-Flat Plate, Gel'!$AB23*'03-Labour_Subs_Travel'!H$45)+('02-Flat Plate, Gel'!$AM23*'03-Labour_Subs_Travel'!H$47)+('02-Flat Plate, Gel'!$AX23*'03-Labour_Subs_Travel'!H$49)) -> 0 | J17: =('02-Flat Plate, Gel'!Q23*INDEX(TransportTable,MATCH(IF($N$3<100,100,$N$3),Distance,1),MATCH(IF(Num_30*VLOOKUP($A17,LP_Table,4,0)<1000,1000,Num_48*VLOOKUP($A17,LP_Table,4,0)),WeightRange,1)))+('02-Flat Plate, Gel'!AB23*INDEX(TransportTable,MATCH(IF($N$3<100,100,$N$3),Distance,1),MATCH(IF(Num_48*VLOOKUP($A17,LP_Table,4,0)<1000,1000,Num_48*VLOOKUP($A17,LP_Table,4,0)),WeightRange,1)))+('02-Flat Plate, Gel'!AM23*INDEX(TransportTable,MATCH(IF($N$3<100,100,$N$3),Distance,1),MATCH(IF(Num_110*VLOOKUP($A17,LP_Table,4,0)<1000,1000,Num_110*VLOOKUP($A17,LP_Table,4,0)),WeightRange,1)))+('02-Flat Plate, Gel'!AX23*INDEX(TransportTable,MATCH(IF($N$3<100,100,$N$3),Distance,1),MATCH(IF(Num_220*VLOOKUP($A17,LP_Table,4,0)<1000,1000,Num_220*VLOOKUP($A17,LP_Table,4,0)),WeightRange,1))) -> 0 | K17: =2*$N$3*'03-Labour_Subs_Travel'!$C$35*('02-Flat Plate, Gel'!Q23+'02-Flat Plate, Gel'!AB23+'02-Flat Plate, Gel'!AM23+'02-Flat Plate, Gel'!AX23) -> 0 | L17: =IF($B17<='03-Labour_Subs_Travel'!$C$20,('02-Flat Plate, Gel'!Q23*'03-Labour_Subs_Travel'!$I$42)+('02-Flat Plate, Gel'!AB23*'03-Labour_Subs_Travel'!$I$44)+('02-Flat Plate, Gel'!AM23*'03-Labour_Subs_Travel'!$I$46)+('02-Flat Plate, Gel'!AX23*'03-Labour_Subs_Travel'!$I$48),('02-Flat Plate, Gel'!Q23*'03-Labour_Subs_Travel'!$I$43)+('02-Flat Plate, Gel'!AB23*'03-Labour_Subs_Travel'!$I$45)+('02-Flat Plate, Gel'!AM23*'03-Labour_Subs_Travel'!$I$47)+('02-Flat Plate, Gel'!AX23*'03-Labour_Subs_Travel'!$I$49)) -> 0 | M17: 0 | N17: =IF($B17<='03-Labour_Subs_Travel'!$C$20,('02-Flat Plate, Gel'!AB23*'03-Labour_Subs_Travel'!$J$44)+('02-Flat Plate, Gel'!AM23*'03-Labour_Subs_Travel'!$J$46)+('02-Flat Plate, Gel'!AX23*'03-Labour_Subs_Travel'!$J$48),('02-Flat Plate, Gel'!AB23*'03-Labour_Subs_Travel'!$J$45)+('02-Flat Plate, Gel'!AM23*'03-Labour_Subs_Travel'!$J$47)+('02-Flat Plate, Gel'!AX23*'03-Labour_Subs_Travel'!$J$49)) -> 0 | O17: 0
A18: ='02-Flat Plate, Gel'!B24 -> 100 | B18: ='02-Flat Plate, Gel'!C24 -> 0 | C18: 0 | D18: 0 | E18: 0 | F18: =IF($B18<='03-Labour_Subs_Travel'!$C$20,('02-Flat Plate, Gel'!Q24*'03-Labour_Subs_Travel'!E50)+('02-Flat Plate, Gel'!$AB24*'03-Labour_Subs_Travel'!E$44)+('02-Flat Plate, Gel'!$AM24*'03-Labour_Subs_Travel'!E$46)+('02-Flat Plate, Gel'!$AX24*'03-Labour_Subs_Travel'!E$48),('02-Flat Plate, Gel'!Q24*'03-Labour_Subs_Travel'!E51)+('02-Flat Plate, Gel'!$AB24*'03-Labour_Subs_Travel'!E$45)+('02-Flat Plate, Gel'!$AM24*'03-Labour_Subs_Travel'!E$47)+('02-Flat Plate, Gel'!$AX24*'03-Labour_Subs_Travel'!E$49)) -> 0 | G18: =IF($B18<='03-Labour_Subs_Travel'!$C$20,('02-Flat Plate, Gel'!Q24*'03-Labour_Subs_Travel'!F$42)+('02-Flat Plate, Gel'!$AB24*'03-Labour_Subs_Travel'!F$44)+('02-Flat Plate, Gel'!$AM24*'03-Labour_Subs_Travel'!F$46)+('02-Flat Plate, Gel'!$AX24*'03-Labour_Subs_Travel'!F$48),('02-Flat Plate, Gel'!Q24*'03-Labour_Subs_Travel'!F$43)+('02-Flat Plate, Gel'!$AB24*'03-Labour_Subs_Travel'!F$45)+('02-Flat Plate, Gel'!$AM24*'03-Labour_Subs_Travel'!F$47)+('02-Flat Plate, Gel'!$AX24*'03-Labour_Subs_Travel'!F$49)) -> 0 | H18: =IF($B18<='03-Labour_Subs_Travel'!$C$20,('02-Flat Plate, Gel'!$Q24*'03-Labour_Subs_Travel'!G$42)+('02-Flat Plate, Gel'!$AB24*'03-Labour_Subs_Travel'!G$44)+('02-Flat Plate, Gel'!$AM24*'03-Labour_Subs_Travel'!G$46)+('02-Flat Plate, Gel'!$AX24*'03-Labour_Subs_Travel'!G$48),('02-Flat Plate, Gel'!$Q24*'03-Labour_Subs_Travel'!G$43)+('02-Flat Plate, Gel'!$AB24*'03-Labour_Subs_Travel'!G$45)+('02-Flat Plate, Gel'!$AM24*'03-Labour_Subs_Travel'!G$47)+('02-Flat Plate, Gel'!$AX24*'03-Labour_Subs_Travel'!G$49)) -> 0 | I18: =IF($B18<='03-Labour_Subs_Travel'!$C$20,('02-Flat Plate, Gel'!$Q24*'03-Labour_Subs_Travel'!H$42)+('02-Flat Plate, Gel'!$AB24*'03-Labour_Subs_Travel'!H$44)+('02-Flat Plate, Gel'!$AM24*'03-Labour_Subs_Travel'!H$46)+('02-Flat Plate, Gel'!$AX24*'03-Labour_Subs_Travel'!H$48),('02-Flat Plate, Gel'!$Q24*'03-Labour_Subs_Travel'!H$43)+('02-Flat Plate, Gel'!$AB24*'03-Labour_Subs_Travel'!H$45)+('02-Flat Plate, Gel'!$AM24*'03-Labour_Subs_Travel'!H$47)+('02-Flat Plate, Gel'!$AX24*'03-Labour_Subs_Travel'!H$49)) -> 0 | J18: =('02-Flat Plate, Gel'!Q24*INDEX(TransportTable,MATCH(IF($N$3<100,100,$N$3),Distance,1),MATCH(IF(Num_30*VLOOKUP($A18,LP_Table,4,0)<1000,1000,Num_48*VLOOKUP($A18,LP_Table,4,0)),WeightRange,1)))+('02-Flat Plate, Gel'!AB24*INDEX(TransportTable,MATCH(IF($N$3<100,100,$N$3),Distance,1),MATCH(IF(Num_48*VLOOKUP($A18,LP_Table,4,0)<1000,1000,Num_48*VLOOKUP($A18,LP_Table,4,0)),WeightRange,1)))+('02-Flat Plate, Gel'!AM24*INDEX(TransportTable,MATCH(IF($N$3<100,100,$N$3),Distance,1),MATCH(IF(Num_110*VLOOKUP($A18,LP_Table,4,0)<1000,1000,Num_110*VLOOKUP($A18,LP_Table,4,0)),WeightRange,1)))+('02-Flat Plate, Gel'!AX24*INDEX(TransportTable,MATCH(IF($N$3<100,100,$N$3),Distance,1),MATCH(IF(Num_220*VLOOKUP($A18,LP_Table,4,0)<1000,1000,Num_220*VLOOKUP($A18,LP_Table,4,0)),WeightRange,1))) -> 0 | K18: =2*$N$3*'03-Labour_Subs_Travel'!$C$35*('02-Flat Plate, Gel'!Q24+'02-Flat Plate, Gel'!AB24+'02-Flat Plate, Gel'!AM24+'02-Flat Plate, Gel'!AX24) -> 0 | L18: =IF($B18<='03-Labour_Subs_Travel'!$C$20,('02-Flat Plate, Gel'!Q24*'03-Labour_Subs_Travel'!$I$42)+('02-Flat Plate, Gel'!AB24*'03-Labour_Subs_Travel'!$I$44)+('02-Flat Plate, Gel'!AM24*'03-Labour_Subs_Travel'!$I$46)+('02-Flat Plate, Gel'!AX24*'03-Labour_Subs_Travel'!$I$48),('02-Flat Plate, Gel'!Q24*'03-Labour_Subs_Travel'!$I$43)+('02-Flat Plate, Gel'!AB24*'03-Labour_Subs_Travel'!$I$45)+('02-Flat Plate, Gel'!AM24*'03-Labour_Subs_Travel'!$I$47)+('02-Flat Plate, Gel'!AX24*'03-Labour_Subs_Travel'!$I$49)) -> 0 | M18: 0 | N18: =IF($B18<='03-Labour_Subs_Travel'!$C$20,('02-Flat Plate, Gel'!AB24*'03-Labour_Subs_Travel'!$J$44)+('02-Flat Plate, Gel'!AM24*'03-Labour_Subs_Travel'!$J$46)+('02-Flat Plate, Gel'!AX24*'03-Labour_Subs_Travel'!$J$48),('02-Flat Plate, Gel'!AB24*'03-Labour_Subs_Travel'!$J$45)+('02-Flat Plate, Gel'!AM24*'03-Labour_Subs_Travel'!$J$47)+('02-Flat Plate, Gel'!AX24*'03-Labour_Subs_Travel'!$J$49)) -> 0 | O18: 0
A19: ='02-Flat Plate, Gel'!B25 -> 150 | B19: ='02-Flat Plate, Gel'!C25 -> 0 | C19: 0 | D19: 0 | E19: 0 | F19: =IF($B19<='03-Labour_Subs_Travel'!$C$20,('02-Flat Plate, Gel'!Q25*'03-Labour_Subs_Travel'!E51)+('02-Flat Plate, Gel'!$AB25*'03-Labour_Subs_Travel'!E$44)+('02-Flat Plate, Gel'!$AM25*'03-Labour_Subs_Travel'!E$46)+('02-Flat Plate, Gel'!$AX25*'03-Labour_Subs_Travel'!E$48),('02-Flat Plate, Gel'!Q25*'03-Labour_Subs_Travel'!E52)+('02-Flat Plate, Gel'!$AB25*'03-Labour_Subs_Travel'!E$45)+('02-Flat Plate, Gel'!$AM25*'03-Labour_Subs_Travel'!E$47)+('02-Flat Plate, Gel'!$AX25*'03-Labour_Subs_Travel'!E$49)) -> 0 | G19: =IF($B19<='03-Labour_Subs_Travel'!$C$20,('02-Flat Plate, Gel'!Q25*'03-Labour_Subs_Travel'!F$42)+('02-Flat Plate, Gel'!$AB25*'03-Labour_Subs_Travel'!F$44)+('02-Flat Plate, Gel'!$AM25*'03-Labour_Subs_Travel'!F$46)+('02-Flat Plate, Gel'!$AX25*'03-Labour_Subs_Travel'!F$48),('02-Flat Plate, Gel'!Q25*'03-Labour_Subs_Travel'!F$43)+('02-Flat Plate, Gel'!$AB25*'03-Labour_Subs_Travel'!F$45)+('02-Flat Plate, Gel'!$AM25*'03-Labour_Subs_Travel'!F$47)+('02-Flat Plate, Gel'!$AX25*'03-Labour_Subs_Travel'!F$49)) -> 0 | H19: =IF($B19<='03-Labour_Subs_Travel'!$C$20,('02-Flat Plate, Gel'!$Q25*'03-Labour_Subs_Travel'!G$42)+('02-Flat Plate, Gel'!$AB25*'03-Labour_Subs_Travel'!G$44)+('02-Flat Plate, Gel'!$AM25*'03-Labour_Subs_Travel'!G$46)+('02-Flat Plate, Gel'!$AX25*'03-Labour_Subs_Travel'!G$48),('02-Flat Plate, Gel'!$Q25*'03-Labour_Subs_Travel'!G$43)+('02-Flat Plate, Gel'!$AB25*'03-Labour_Subs_Travel'!G$45)+('02-Flat Plate, Gel'!$AM25*'03-Labour_Subs_Travel'!G$47)+('02-Flat Plate, Gel'!$AX25*'03-Labour_Subs_Travel'!G$49)) -> 0 | I19: =IF($B19<='03-Labour_Subs_Travel'!$C$20,('02-Flat Plate, Gel'!$Q25*'03-Labour_Subs_Travel'!H$42)+('02-Flat Plate, Gel'!$AB25*'03-Labour_Subs_Travel'!H$44)+('02-Flat Plate, Gel'!$AM25*'03-Labour_Subs_Travel'!H$46)+('02-Flat Plate, Gel'!$AX25*'03-Labour_Subs_Travel'!H$48),('02-Flat Plate, Gel'!$Q25*'03-Labour_Subs_Travel'!H$43)+('02-Flat Plate, Gel'!$AB25*'03-Labour_Subs_Travel'!H$45)+('02-Flat Plate, Gel'!$AM25*'03-Labour_Subs_Travel'!H$47)+('02-Flat Plate, Gel'!$AX25*'03-Labour_Subs_Travel'!H$49)) -> 0 | J19: =('02-Flat Plate, Gel'!Q25*INDEX(TransportTable,MATCH(IF($N$3<100,100,$N$3),Distance,1),MATCH(IF(Num_30*VLOOKUP($A19,LP_Table,4,0)<1000,1000,Num_48*VLOOKUP($A19,LP_Table,4,0)),WeightRange,1)))+('02-Flat Plate, Gel'!AB25*INDEX(TransportTable,MATCH(IF($N$3<100,100,$N$3),Distance,1),MATCH(IF(Num_48*VLOOKUP($A19,LP_Table,4,0)<1000,1000,Num_48*VLOOKUP($A19,LP_Table,4,0)),WeightRange,1)))+('02-Flat Plate, Gel'!AM25*INDEX(TransportTable,MATCH(IF($N$3<100,100,$N$3),Distance,1),MATCH(IF(Num_110*VLOOKUP($A19,LP_Table,4,0)<1000,1000,Num_110*VLOOKUP($A19,LP_Table,4,0)),WeightRange,1)))+('02-Flat Plate, Gel'!AX25*INDEX(TransportTable,MATCH(IF($N$3<100,100,$N$3),Distance,1),MATCH(IF(Num_220*VLOOKUP($A19,LP_Table,4,0)<1000,1000,Num_220*VLOOKUP($A19,LP_Table,4,0)),WeightRange,1))) -> 0 | K19: =2*$N$3*'03-Labour_Subs_Travel'!$C$35*('02-Flat Plate, Gel'!Q25+'02-Flat Plate, Gel'!AB25+'02-Flat Plate, Gel'!AM25+'02-Flat Plate, Gel'!AX25) -> 0 | L19: =IF($B19<='03-Labour_Subs_Travel'!$C$20,('02-Flat Plate, Gel'!Q25*'03-Labour_Subs_Travel'!$I$42)+('02-Flat Plate, Gel'!AB25*'03-Labour_Subs_Travel'!$I$44)+('02-Flat Plate, Gel'!AM25*'03-Labour_Subs_Travel'!$I$46)+('02-Flat Plate, Gel'!AX25*'03-Labour_Subs_Travel'!$I$48),('02-Flat Plate, Gel'!Q25*'03-Labour_Subs_Travel'!$I$43)+('02-Flat Plate, Gel'!AB25*'03-Labour_Subs_Travel'!$I$45)+('02-Flat Plate, Gel'!AM25*'03-Labour_Subs_Travel'!$I$47)+('02-Flat Plate, Gel'!AX25*'03-Labour_Subs_Travel'!$I$49)) -> 0 | M19: 0 | N19: =IF($B19<='03-Labour_Subs_Travel'!$C$20,('02-Flat Plate, Gel'!AB25*'03-Labour_Subs_Travel'!$J$44)+('02-Flat Plate, Gel'!AM25*'03-Labour_Subs_Travel'!$J$46)+('02-Flat Plate, Gel'!AX25*'03-Labour_Subs_Travel'!$J$48),('02-Flat Plate, Gel'!AB25*'03-Labour_Subs_Travel'!$J$45)+('02-Flat Plate, Gel'!AM25*'03-Labour_Subs_Travel'!$J$47)+('02-Flat Plate, Gel'!AX25*'03-Labour_Subs_Travel'!$J$49)) -> 0 | O19: 0
A20: ='02-Flat Plate, Gel'!B26 -> 200 | B20: ='02-Flat Plate, Gel'!C26 -> 0 | C20: 0 | D20: 0 | E20: 0 | F20: =IF($B20<='03-Labour_Subs_Travel'!$C$20,('02-Flat Plate, Gel'!Q26*'03-Labour_Subs_Travel'!E52)+('02-Flat Plate, Gel'!$AB26*'03-Labour_Subs_Travel'!E$44)+('02-Flat Plate, Gel'!$AM26*'03-Labour_Subs_Travel'!E$46)+('02-Flat Plate, Gel'!$AX26*'03-Labour_Subs_Travel'!E$48),('02-Flat Plate, Gel'!Q26*'03-Labour_Subs_Travel'!E53)+('02-Flat Plate, Gel'!$AB26*'03-Labour_Subs_Travel'!E$45)+('02-Flat Plate, Gel'!$AM26*'03-Labour_Subs_Travel'!E$47)+('02-Flat Plate, Gel'!$AX26*'03-Labour_Subs_Travel'!E$49)) -> 0 | G20: =IF($B20<='03-Labour_Subs_Travel'!$C$20,('02-Flat Plate, Gel'!Q26*'03-Labour_Subs_Travel'!F$42)+('02-Flat Plate, Gel'!$AB26*'03-Labour_Subs_Travel'!F$44)+('02-Flat Plate, Gel'!$AM26*'03-Labour_Subs_Travel'!F$46)+('02-Flat Plate, Gel'!$AX26*'03-Labour_Subs_Travel'!F$48),('02-Flat Plate, Gel'!Q26*'03-Labour_Subs_Travel'!F$43)+('02-Flat Plate, Gel'!$AB26*'03-Labour_Subs_Travel'!F$45)+('02-Flat Plate, Gel'!$AM26*'03-Labour_Subs_Travel'!F$47)+('02-Flat Plate, Gel'!$AX26*'03-Labour_Subs_Travel'!F$49)) -> 0 | H20: =IF($B20<='03-Labour_Subs_Travel'!$C$20,('02-Flat Plate, Gel'!$Q26*'03-Labour_Subs_Travel'!G$42)+('02-Flat Plate, Gel'!$AB26*'03-Labour_Subs_Travel'!G$44)+('02-Flat Plate, Gel'!$AM26*'03-Labour_Subs_Travel'!G$46)+('02-Flat Plate, Gel'!$AX26*'03-Labour_Subs_Travel'!G$48),('02-Flat Plate, Gel'!$Q26*'03-Labour_Subs_Travel'!G$43)+('02-Flat Plate, Gel'!$AB26*'03-Labour_Subs_Travel'!G$45)+('02-Flat Plate, Gel'!$AM26*'03-Labour_Subs_Travel'!G$47)+('02-Flat Plate, Gel'!$AX26*'03-Labour_Subs_Travel'!G$49)) -> 0 | I20: =IF($B20<='03-Labour_Subs_Travel'!$C$20,('02-Flat Plate, Gel'!$Q26*'03-Labour_Subs_Travel'!H$42)+('02-Flat Plate, Gel'!$AB26*'03-Labour_Subs_Travel'!H$44)+('02-Flat Plate, Gel'!$AM26*'03-Labour_Subs_Travel'!H$46)+('02-Flat Plate, Gel'!$AX26*'03-Labour_Subs_Travel'!H$48),('02-Flat Plate, Gel'!$Q26*'03-Labour_Subs_Travel'!H$43)+('02-Flat Plate, Gel'!$AB26*'03-Labour_Subs_Travel'!H$45)+('02-Flat Plate, Gel'!$AM26*'03-Labour_Subs_Travel'!H$47)+('02-Flat Plate, Gel'!$AX26*'03-Labour_Subs_Travel'!H$49)) -> 0 | J20: =('02-Flat Plate, Gel'!Q26*INDEX(TransportTable,MATCH(IF($N$3<100,100,$N$3),Distance,1),MATCH(IF(Num_30*VLOOKUP($A20,LP_Table,4,0)<1000,1000,Num_48*VLOOKUP($A20,LP_Table,4,0)),WeightRange,1)))+('02-Flat Plate, Gel'!AB26*INDEX(TransportTable,MATCH(IF($N$3<100,100,$N$3),Distance,1),MATCH(IF(Num_48*VLOOKUP($A20,LP_Table,4,0)<1000,1000,Num_48*VLOOKUP($A20,LP_Table,4,0)),WeightRange,1)))+('02-Flat Plate, Gel'!AM26*INDEX(TransportTable,MATCH(IF($N$3<100,100,$N$3),Distance,1),MATCH(IF(Num_110*VLOOKUP($A20,LP_Table,4,0)<1000,1000,Num_110*VLOOKUP($A20,LP_Table,4,0)),WeightRange,1)))+('02-Flat Plate, Gel'!AX26*INDEX(TransportTable,MATCH(IF($N$3<100,100,$N$3),Distance,1),MATCH(IF(Num_220*VLOOKUP($A20,LP_Table,4,0)<1000,1000,Num_220*VLOOKUP($A20,LP_Table,4,0)),WeightRange,1))) -> 0 | K20: =2*$N$3*'03-Labour_Subs_Travel'!$C$35*('02-Flat Plate, Gel'!Q26+'02-Flat Plate, Gel'!AB26+'02-Flat Plate, Gel'!AM26+'02-Flat Plate, Gel'!AX26) -> 0 | L20: =IF($B20<='03-Labour_Subs_Travel'!$C$20,('02-Flat Plate, Gel'!Q26*'03-Labour_Subs_Travel'!$I$42)+('02-Flat Plate, Gel'!AB26*'03-Labour_Subs_Travel'!$I$44)+('02-Flat Plate, Gel'!AM26*'03-Labour_Subs_Travel'!$I$46)+('02-Flat Plate, Gel'!AX26*'03-Labour_Subs_Travel'!$I$48),('02-Flat Plate, Gel'!Q26*'03-Labour_Subs_Travel'!$I$43)+('02-Flat Plate, Gel'!AB26*'03-Labour_Subs_Travel'!$I$45)+('02-Flat Plate, Gel'!AM26*'03-Labour_Subs_Travel'!$I$47)+('02-Flat Plate, Gel'!AX26*'03-Labour_Subs_Travel'!$I$49)) -> 0 | M20: 0 | N20: =IF($B20<='03-Labour_Subs_Travel'!$C$20,('02-Flat Plate, Gel'!AB26*'03-Labour_Subs_Travel'!$J$44)+('02-Flat Plate, Gel'!AM26*'03-Labour_Subs_Travel'!$J$46)+('02-Flat Plate, Gel'!AX26*'03-Labour_Subs_Travel'!$J$48),('02-Flat Plate, Gel'!AB26*'03-Labour_Subs_Travel'!$J$45)+('02-Flat Plate, Gel'!AM26*'03-Labour_Subs_Travel'!$J$47)+('02-Flat Plate, Gel'!AX26*'03-Labour_Subs_Travel'!$J$49)) -> 0 | O20: 0
A21: ='02-Flat Plate, Gel'!B27 -> 250 | B21: ='02-Flat Plate, Gel'!C27 -> 0 | C21: 0 | D21: 0 | E21: 0 | F21: =IF($B21<='03-Labour_Subs_Travel'!$C$20,('02-Flat Plate, Gel'!Q27*'03-Labour_Subs_Travel'!E53)+('02-Flat Plate, Gel'!$AB27*'03-Labour_Subs_Travel'!E$44)+('02-Flat Plate, Gel'!$AM27*'03-Labour_Subs_Travel'!E$46)+('02-Flat Plate, Gel'!$AX27*'03-Labour_Subs_Travel'!E$48),('02-Flat Plate, Gel'!Q27*'03-Labour_Subs_Travel'!E54)+('02-Flat Plate, Gel'!$AB27*'03-Labour_Subs_Travel'!E$45)+('02-Flat Plate, Gel'!$AM27*'03-Labour_Subs_Travel'!E$47)+('02-Flat Plate, Gel'!$AX27*'03-Labour_Subs_Travel'!E$49)) -> 0 | G21: =IF($B21<='03-Labour_Subs_Travel'!$C$20,('02-Flat Plate, Gel'!Q27*'03-Labour_Subs_Travel'!F$42)+('02-Flat Plate, Gel'!$AB27*'03-Labour_Subs_Travel'!F$44)+('02-Flat Plate, Gel'!$AM27*'03-Labour_Subs_Travel'!F$46)+('02-Flat Plate, Gel'!$AX27*'03-Labour_Subs_Travel'!F$48),('02-Flat Plate, Gel'!Q27*'03-Labour_Subs_Travel'!F$43)+('02-Flat Plate, Gel'!$AB27*'03-Labour_Subs_Travel'!F$45)+('02-Flat Plate, Gel'!$AM27*'03-Labour_Subs_Travel'!F$47)+('02-Flat Plate, Gel'!$AX27*'03-Labour_Subs_Travel'!F$49)) -> 0 | H21: =IF($B21<='03-Labour_Subs_Travel'!$C$20,('02-Flat Plate, Gel'!$Q27*'03-Labour_Subs_Travel'!G$42)+('02-Flat Plate, Gel'!$AB27*'03-Labour_Subs_Travel'!G$44)+('02-Flat Plate, Gel'!$AM27*'03-Labour_Subs_Travel'!G$46)+('02-Flat Plate, Gel'!$AX27*'03-Labour_Subs_Travel'!G$48),('02-Flat Plate, Gel'!$Q27*'03-Labour_Subs_Travel'!G$43)+('02-Flat Plate, Gel'!$AB27*'03-Labour_Subs_Travel'!G$45)+('02-Flat Plate, Gel'!$AM27*'03-Labour_Subs_Travel'!G$47)+('02-Flat Plate, Gel'!$AX27*'03-Labour_Subs_Travel'!G$49)) -> 0 | I21: =IF($B21<='03-Labour_Subs_Travel'!$C$20,('02-Flat Plate, Gel'!$Q27*'03-Labour_Subs_Travel'!H$42)+('02-Flat Plate, Gel'!$AB27*'03-Labour_Subs_Travel'!H$44)+('02-Flat Plate, Gel'!$AM27*'03-Labour_Subs_Travel'!H$46)+('02-Flat Plate, Gel'!$AX27*'03-Labour_Subs_Travel'!H$48),('02-Flat Plate, Gel'!$Q27*'03-Labour_Subs_Travel'!H$43)+('02-Flat Plate, Gel'!$AB27*'03-Labour_Subs_Travel'!H$45)+('02-Flat Plate, Gel'!$AM27*'03-Labour_Subs_Travel'!H$47)+('02-Flat Plate, Gel'!$AX27*'03-Labour_Subs_Travel'!H$49)) -> 0 | J21: =('02-Flat Plate, Gel'!Q27*INDEX(TransportTable,MATCH(IF($N$3<100,100,$N$3),Distance,1),MATCH(IF(Num_30*VLOOKUP($A21,LP_Table,4,0)<1000,1000,Num_48*VLOOKUP($A21,LP_Table,4,0)),WeightRange,1)))+('02-Flat Plate, Gel'!AB27*INDEX(TransportTable,MATCH(IF($N$3<100,100,$N$3),Distance,1),MATCH(IF(Num_48*VLOOKUP($A21,LP_Table,4,0)<1000,1000,Num_48*VLOOKUP($A21,LP_Table,4,0)),WeightRange,1)))+('02-Flat Plate, Gel'!AM27*INDEX(TransportTable,MATCH(IF($N$3<100,100,$N$3),Distance,1),MATCH(IF(Num_110*VLOOKUP($A21,LP_Table,4,0)<1000,1000,Num_110*VLOOKUP($A21,LP_Table,4,0)),WeightRange,1)))+('02-Flat Plate, Gel'!AX27*INDEX(TransportTable,MATCH(IF($N$3<100,100,$N$3),Distance,1),MATCH(IF(Num_220*VLOOKUP($A21,LP_Table,4,0)<1000,1000,Num_220*VLOOKUP($A21,LP_Table,4,0)),WeightRange,1))) -> 0 | K21: =2*$N$3*'03-Labour_Subs_Travel'!$C$35*('02-Flat Plate, Gel'!Q27+'02-Flat Plate, Gel'!AB27+'02-Flat Plate, Gel'!AM27+'02-Flat Plate, Gel'!AX27) -> 0 | L21: =IF($B21<='03-Labour_Subs_Travel'!$C$20,('02-Flat Plate, Gel'!Q27*'03-Labour_Subs_Travel'!$I$42)+('02-Flat Plate, Gel'!AB27*'03-Labour_Subs_Travel'!$I$44)+('02-Flat Plate, Gel'!AM27*'03-Labour_Subs_Travel'!$I$46)+('02-Flat Plate, Gel'!AX27*'03-Labour_Subs_Travel'!$I$48),('02-Flat Plate, Gel'!Q27*'03-Labour_Subs_Travel'!$I$43)+('02-Flat Plate, Gel'!AB27*'03-Labour_Subs_Travel'!$I$45)+('02-Flat Plate, Gel'!AM27*'03-Labour_Subs_Travel'!$I$47)+('02-Flat Plate, Gel'!AX27*'03-Labour_Subs_Travel'!$I$49)) -> 0 | M21: 0 | N21: =IF($B21<='03-Labour_Subs_Travel'!$C$20,('02-Flat Plate, Gel'!AB27*'03-Labour_Subs_Travel'!$J$44)+('02-Flat Plate, Gel'!AM27*'03-Labour_Subs_Travel'!$J$46)+('02-Flat Plate, Gel'!AX27*'03-Labour_Subs_Travel'!$J$48),('02-Flat Plate, Gel'!AB27*'03-Labour_Subs_Travel'!$J$45)+('02-Flat Plate, Gel'!AM27*'03-Labour_Subs_Travel'!$J$47)+('02-Flat Plate, Gel'!AX27*'03-Labour_Subs_Travel'!$J$49)) -> 0 | O21: 0
A22: ='02-Flat Plate, Gel'!B28 -> 300 | B22: ='02-Flat Plate, Gel'!C28 -> 0 | C22: 0 | D22: 0 | E22: 0 | F22: =IF($B22<='03-Labour_Subs_Travel'!$C$20,('02-Flat Plate, Gel'!Q28*'03-Labour_Subs_Travel'!E54)+('02-Flat Plate, Gel'!$AB28*'03-Labour_Subs_Travel'!E$44)+('02-Flat Plate, Gel'!$AM28*'03-Labour_Subs_Travel'!E$46)+('02-Flat Plate, Gel'!$AX28*'03-Labour_Subs_Travel'!E$48),('02-Flat Plate, Gel'!Q28*'03-Labour_Subs_Travel'!E55)+('02-Flat Plate, Gel'!$AB28*'03-Labour_Subs_Travel'!E$45)+('02-Flat Plate, Gel'!$AM28*'03-Labour_Subs_Travel'!E$47)+('02-Flat Plate, Gel'!$AX28*'03-Labour_Subs_Travel'!E$49)) -> 0 | G22: =IF($B22<='03-Labour_Subs_Travel'!$C$20,('02-Flat Plate, Gel'!Q28*'03-Labour_Subs_Travel'!F$42)+('02-Flat Plate, Gel'!$AB28*'03-Labour_Subs_Travel'!F$44)+('02-Flat Plate, Gel'!$AM28*'03-Labour_Subs_Travel'!F$46)+('02-Flat Plate, Gel'!$AX28*'03-Labour_Subs_Travel'!F$48),('02-Flat Plate, Gel'!Q28*'03-Labour_Subs_Travel'!F$43)+('02-Flat Plate, Gel'!$AB28*'03-Labour_Subs_Travel'!F$45)+('02-Flat Plate, Gel'!$AM28*'03-Labour_Subs_Travel'!F$47)+('02-Flat Plate, Gel'!$AX28*'03-Labour_Subs_Travel'!F$49)) -> 0 | H22: =IF($B22<='03-Labour_Subs_Travel'!$C$20,('02-Flat Plate, Gel'!$Q28*'03-Labour_Subs_Travel'!G$42)+('02-Flat Plate, Gel'!$AB28*'03-Labour_Subs_Travel'!G$44)+('02-Flat Plate, Gel'!$AM28*'03-Labour_Subs_Travel'!G$46)+('02-Flat Plate, Gel'!$AX28*'03-Labour_Subs_Travel'!G$48),('02-Flat Plate, Gel'!$Q28*'03-Labour_Subs_Travel'!G$43)+('02-Flat Plate, Gel'!$AB28*'03-Labour_Subs_Travel'!G$45)+('02-Flat Plate, Gel'!$AM28*'03-Labour_Subs_Travel'!G$47)+('02-Flat Plate, Gel'!$AX28*'03-Labour_Subs_Travel'!G$49)) -> 0 | I22: =IF($B22<='03-Labour_Subs_Travel'!$C$20,('02-Flat Plate, Gel'!$Q28*'03-Labour_Subs_Travel'!H$42)+('02-Flat Plate, Gel'!$AB28*'03-Labour_Subs_Travel'!H$44)+('02-Flat Plate, Gel'!$AM28*'03-Labour_Subs_Travel'!H$46)+('02-Flat Plate, Gel'!$AX28*'03-Labour_Subs_Travel'!H$48),('02-Flat Plate, Gel'!$Q28*'03-Labour_Subs_Travel'!H$43)+('02-Flat Plate, Gel'!$AB28*'03-Labour_Subs_Travel'!H$45)+('02-Flat Plate, Gel'!$AM28*'03-Labour_Subs_Travel'!H$47)+('02-Flat Plate, Gel'!$AX28*'03-Labour_Subs_Travel'!H$49)) -> 0 | J22: =('02-Flat Plate, Gel'!Q28*INDEX(TransportTable,MATCH(IF($N$3<100,100,$N$3),Distance,1),MATCH(IF(Num_30*VLOOKUP($A22,LP_Table,4,0)<1000,1000,Num_48*VLOOKUP($A22,LP_Table,4,0)),WeightRange,1)))+('02-Flat Plate, Gel'!AB28*INDEX(TransportTable,MATCH(IF($N$3<100,100,$N$3),Distance,1),MATCH(IF(Num_48*VLOOKUP($A22,LP_Table,4,0)<1000,1000,Num_48*VLOOKUP($A22,LP_Table,4,0)),WeightRange,1)))+('02-Flat Plate, Gel'!AM28*INDEX(TransportTable,MATCH(IF($N$3<100,100,$N$3),Distance,1),MATCH(IF(Num_110*VLOOKUP($A22,LP_Table,4,0)<1000,1000,Num_110*VLOOKUP($A22,LP_Table,4,0)),WeightRange,1)))+('02-Flat Plate, Gel'!AX28*INDEX(TransportTable,MATCH(IF($N$3<100,100,$N$3),Distance,1),MATCH(IF(Num_220*VLOOKUP($A22,LP_Table,4,0)<1000,1000,Num_220*VLOOKUP($A22,LP_Table,4,0)),WeightRange,1))) -> 0 | K22: =2*$N$3*'03-Labour_Subs_Travel'!$C$35*('02-Flat Plate, Gel'!Q28+'02-Flat Plate, Gel'!AB28+'02-Flat Plate, Gel'!AM28+'02-Flat Plate, Gel'!AX28) -> 0 | L22: =IF($B22<='03-Labour_Subs_Travel'!$C$20,('02-Flat Plate, Gel'!Q28*'03-Labour_Subs_Travel'!$I$42)+('02-Flat Plate, Gel'!AB28*'03-Labour_Subs_Travel'!$I$44)+('02-Flat Plate, Gel'!AM28*'03-Labour_Subs_Travel'!$I$46)+('02-Flat Plate, Gel'!AX28*'03-Labour_Subs_Travel'!$I$48),('02-Flat Plate, Gel'!Q28*'03-Labour_Subs_Travel'!$I$43)+('02-Flat Plate, Gel'!AB28*'03-Labour_Subs_Travel'!$I$45)+('02-Flat Plate, Gel'!AM28*'03-Labour_Subs_Travel'!$I$47)+('02-Flat Plate, Gel'!AX28*'03-Labour_Subs_Travel'!$I$49)) -> 0 | M22: 0 | N22: =IF($B22<='03-Labour_Subs_Travel'!$C$20,('02-Flat Plate, Gel'!AB28*'03-Labour_Subs_Travel'!$J$44)+('02-Flat Plate, Gel'!AM28*'03-Labour_Subs_Travel'!$J$46)+('02-Flat Plate, Gel'!AX28*'03-Labour_Subs_Travel'!$J$48),('02-Flat Plate, Gel'!AB28*'03-Labour_Subs_Travel'!$J$45)+('02-Flat Plate, Gel'!AM28*'03-Labour_Subs_Travel'!$J$47)+('02-Flat Plate, Gel'!AX28*'03-Labour_Subs_Travel'!$J$49)) -> 0 | O22: 0
A23: ='02-Flat Plate, Gel'!B29 -> 350 | B23: ='02-Flat Plate, Gel'!C29 -> 0 | C23: 0 | D23: 0 | E23: 0 | F23: =IF($B23<='03-Labour_Subs_Travel'!$C$20,('02-Flat Plate, Gel'!Q29*'03-Labour_Subs_Travel'!E55)+('02-Flat Plate, Gel'!$AB29*'03-Labour_Subs_Travel'!E$44)+('02-Flat Plate, Gel'!$AM29*'03-Labour_Subs_Travel'!E$46)+('02-Flat Plate, Gel'!$AX29*'03-Labour_Subs_Travel'!E$48),('02-Flat Plate, Gel'!Q29*'03-Labour_Subs_Travel'!E56)+('02-Flat Plate, Gel'!$AB29*'03-Labour_Subs_Travel'!E$45)+('02-Flat Plate, Gel'!$AM29*'03-Labour_Subs_Travel'!E$47)+('02-Flat Plate, Gel'!$AX29*'03-Labour_Subs_Travel'!E$49)) -> 0 | G23: =IF($B23<='03-Labour_Subs_Travel'!$C$20,('02-Flat Plate, Gel'!Q29*'03-Labour_Subs_Travel'!F$42)+('02-Flat Plate, Gel'!$AB29*'03-Labour_Subs_Travel'!F$44)+('02-Flat Plate, Gel'!$AM29*'03-Labour_Subs_Travel'!F$46)+('02-Flat Plate, Gel'!$AX29*'03-Labour_Subs_Travel'!F$48),('02-Flat Plate, Gel'!Q29*'03-Labour_Subs_Travel'!F$43)+('02-Flat Plate, Gel'!$AB29*'03-Labour_Subs_Travel'!F$45)+('02-Flat Plate, Gel'!$AM29*'03-Labour_Subs_Travel'!F$47)+('02-Flat Plate, Gel'!$AX29*'03-Labour_Subs_Travel'!F$49)) -> 0 | H23: =IF($B23<='03-Labour_Subs_Travel'!$C$20,('02-Flat Plate, Gel'!$Q29*'03-Labour_Subs_Travel'!G$42)+('02-Flat Plate, Gel'!$AB29*'03-Labour_Subs_Travel'!G$44)+('02-Flat Plate, Gel'!$AM29*'03-Labour_Subs_Travel'!G$46)+('02-Flat Plate, Gel'!$AX29*'03-Labour_Subs_Travel'!G$48),('02-Flat Plate, Gel'!$Q29*'03-Labour_Subs_Travel'!G$43)+('02-Flat Plate, Gel'!$AB29*'03-Labour_Subs_Travel'!G$45)+('02-Flat Plate, Gel'!$AM29*'03-Labour_Subs_Travel'!G$47)+('02-Flat Plate, Gel'!$AX29*'03-Labour_Subs_Travel'!G$49)) -> 0 | I23: =IF($B23<='03-Labour_Subs_Travel'!$C$20,('02-Flat Plate, Gel'!$Q29*'03-Labour_Subs_Travel'!H$42)+('02-Flat Plate, Gel'!$AB29*'03-Labour_Subs_Travel'!H$44)+('02-Flat Plate, Gel'!$AM29*'03-Labour_Subs_Travel'!H$46)+('02-Flat Plate, Gel'!$AX29*'03-Labour_Subs_Travel'!H$48),('02-Flat Plate, Gel'!$Q29*'03-Labour_Subs_Travel'!H$43)+('02-Flat Plate, Gel'!$AB29*'03-Labour_Subs_Travel'!H$45)+('02-Flat Plate, Gel'!$AM29*'03-Labour_Subs_Travel'!H$47)+('02-Flat Plate, Gel'!$AX29*'03-Labour_Subs_Travel'!H$49)) -> 0 | J23: =('02-Flat Plate, Gel'!Q29*INDEX(TransportTable,MATCH(IF($N$3<100,100,$N$3),Distance,1),MATCH(IF(Num_30*VLOOKUP($A23,LP_Table,4,0)<1000,1000,Num_48*VLOOKUP($A23,LP_Table,4,0)),WeightRange,1)))+('02-Flat Plate, Gel'!AB29*INDEX(TransportTable,MATCH(IF($N$3<100,100,$N$3),Distance,1),MATCH(IF(Num_48*VLOOKUP($A23,LP_Table,4,0)<1000,1000,Num_48*VLOOKUP($A23,LP_Table,4,0)),WeightRange,1)))+('02-Flat Plate, Gel'!AM29*INDEX(TransportTable,MATCH(IF($N$3<100,100,$N$3),Distance,1),MATCH(IF(Num_110*VLOOKUP($A23,LP_Table,4,0)<1000,1000,Num_110*VLOOKUP($A23,LP_Table,4,0)),WeightRange,1)))+('02-Flat Plate, Gel'!AX29*INDEX(TransportTable,MATCH(IF($N$3<100,100,$N$3),Distance,1),MATCH(IF(Num_220*VLOOKUP($A23,LP_Table,4,0)<1000,1000,Num_220*VLOOKUP($A23,LP_Table,4,0)),WeightRange,1))) -> 0 | K23: =2*$N$3*'03-Labour_Subs_Travel'!$C$35*('02-Flat Plate, Gel'!Q29+'02-Flat Plate, Gel'!AB29+'02-Flat Plate, Gel'!AM29+'02-Flat Plate, Gel'!AX29) -> 0 | L23: =IF($B23<='03-Labour_Subs_Travel'!$C$20,('02-Flat Plate, Gel'!Q29*'03-Labour_Subs_Travel'!$I$42)+('02-Flat Plate, Gel'!AB29*'03-Labour_Subs_Travel'!$I$44)+('02-Flat Plate, Gel'!AM29*'03-Labour_Subs_Travel'!$I$46)+('02-Flat Plate, Gel'!AX29*'03-Labour_Subs_Travel'!$I$48),('02-Flat Plate, Gel'!Q29*'03-Labour_Subs_Travel'!$I$43)+('02-Flat Plate, Gel'!AB29*'03-Labour_Subs_Travel'!$I$45)+('02-Flat Plate, Gel'!AM29*'03-Labour_Subs_Travel'!$I$47)+('02-Flat Plate, Gel'!AX29*'03-Labour_Subs_Travel'!$I$49)) -> 0 | M23: 0 | N23: =IF($B23<='03-Labour_Subs_Travel'!$C$20,('02-Flat Plate, Gel'!AB29*'03-Labour_Subs_Travel'!$J$44)+('02-Flat Plate, Gel'!AM29*'03-Labour_Subs_Travel'!$J$46)+('02-Flat Plate, Gel'!AX29*'03-Labour_Subs_Travel'!$J$48),('02-Flat Plate, Gel'!AB29*'03-Labour_Subs_Travel'!$J$45)+('02-Flat Plate, Gel'!AM29*'03-Labour_Subs_Travel'!$J$47)+('02-Flat Plate, Gel'!AX29*'03-Labour_Subs_Travel'!$J$49)) -> 0 | O23: 0
A24: ='02-Flat Plate, Gel'!B30 -> 400 | B24: ='02-Flat Plate, Gel'!C30 -> 0 | C24: 0 | D24: 0 | E24: 0 | F24: =IF($B24<='03-Labour_Subs_Travel'!$C$20,('02-Flat Plate, Gel'!Q30*'03-Labour_Subs_Travel'!E56)+('02-Flat Plate, Gel'!$AB30*'03-Labour_Subs_Travel'!E$44)+('02-Flat Plate, Gel'!$AM30*'03-Labour_Subs_Travel'!E$46)+('02-Flat Plate, Gel'!$AX30*'03-Labour_Subs_Travel'!E$48),('02-Flat Plate, Gel'!Q30*'03-Labour_Subs_Travel'!E57)+('02-Flat Plate, Gel'!$AB30*'03-Labour_Subs_Travel'!E$45)+('02-Flat Plate, Gel'!$AM30*'03-Labour_Subs_Travel'!E$47)+('02-Flat Plate, Gel'!$AX30*'03-Labour_Subs_Travel'!E$49)) -> 0 | G24: =IF($B24<='03-Labour_Subs_Travel'!$C$20,('02-Flat Plate, Gel'!Q30*'03-Labour_Subs_Travel'!F$42)+('02-Flat Plate, Gel'!$AB30*'03-Labour_Subs_Travel'!F$44)+('02-Flat Plate, Gel'!$AM30*'03-Labour_Subs_Travel'!F$46)+('02-Flat Plate, Gel'!$AX30*'03-Labour_Subs_Travel'!F$48),('02-Flat Plate, Gel'!Q30*'03-Labour_Subs_Travel'!F$43)+('02-Flat Plate, Gel'!$AB30*'03-Labour_Subs_Travel'!F$45)+('02-Flat Plate, Gel'!$AM30*'03-Labour_Subs_Travel'!F$47)+('02-Flat Plate, Gel'!$AX30*'03-Labour_Subs_Travel'!F$49)) -> 0 | H24: =IF($B24<='03-Labour_Subs_Travel'!$C$20,('02-Flat Plate, Gel'!$Q30*'03-Labour_Subs_Travel'!G$42)+('02-Flat Plate, Gel'!$AB30*'03-Labour_Subs_Travel'!G$44)+('02-Flat Plate, Gel'!$AM30*'03-Labour_Subs_Travel'!G$46)+('02-Flat Plate, Gel'!$AX30*'03-Labour_Subs_Travel'!G$48),('02-Flat Plate, Gel'!$Q30*'03-Labour_Subs_Travel'!G$43)+('02-Flat Plate, Gel'!$AB30*'03-Labour_Subs_Travel'!G$45)+('02-Flat Plate, Gel'!$AM30*'03-Labour_Subs_Travel'!G$47)+('02-Flat Plate, Gel'!$AX30*'03-Labour_Subs_Travel'!G$49)) -> 0 | I24: =IF($B24<='03-Labour_Subs_Travel'!$C$20,('02-Flat Plate, Gel'!$Q30*'03-Labour_Subs_Travel'!H$42)+('02-Flat Plate, Gel'!$AB30*'03-Labour_Subs_Travel'!H$44)+('02-Flat Plate, Gel'!$AM30*'03-Labour_Subs_Travel'!H$46)+('02-Flat Plate, Gel'!$AX30*'03-Labour_Subs_Travel'!H$48),('02-Flat Plate, Gel'!$Q30*'03-Labour_Subs_Travel'!H$43)+('02-Flat Plate, Gel'!$AB30*'03-Labour_Subs_Travel'!H$45)+('02-Flat Plate, Gel'!$AM30*'03-Labour_Subs_Travel'!H$47)+('02-Flat Plate, Gel'!$AX30*'03-Labour_Subs_Travel'!H$49)) -> 0 | J24: =('02-Flat Plate, Gel'!Q30*INDEX(TransportTable,MATCH(IF($N$3<100,100,$N$3),Distance,1),MATCH(IF(Num_30*VLOOKUP($A24,LP_Table,4,0)<1000,1000,Num_48*VLOOKUP($A24,LP_Table,4,0)),WeightRange,1)))+('02-Flat Plate, Gel'!AB30*INDEX(TransportTable,MATCH(IF($N$3<100,100,$N$3),Distance,1),MATCH(IF(Num_48*VLOOKUP($A24,LP_Table,4,0)<1000,1000,Num_48*VLOOKUP($A24,LP_Table,4,0)),WeightRange,1)))+('02-Flat Plate, Gel'!AM30*INDEX(TransportTable,MATCH(IF($N$3<100,100,$N$3),Distance,1),MATCH(IF(Num_110*VLOOKUP($A24,LP_Table,4,0)<1000,1000,Num_110*VLOOKUP($A24,LP_Table,4,0)),WeightRange,1)))+('02-Flat Plate, Gel'!AX30*INDEX(TransportTable,MATCH(IF($N$3<100,100,$N$3),Distance,1),MATCH(IF(Num_220*VLOOKUP($A24,LP_Table,4,0)<1000,1000,Num_220*VLOOKUP($A24,LP_Table,4,0)),WeightRange,1))) -> 0 | K24: =2*$N$3*'03-Labour_Subs_Travel'!$C$35*('02-Flat Plate, Gel'!Q30+'02-Flat Plate, Gel'!AB30+'02-Flat Plate, Gel'!AM30+'02-Flat Plate, Gel'!AX30) -> 0 | L24: =IF($B24<='03-Labour_Subs_Travel'!$C$20,('02-Flat Plate, Gel'!Q30*'03-Labour_Subs_Travel'!$I$42)+('02-Flat Plate, Gel'!AB30*'03-Labour_Subs_Travel'!$I$44)+('02-Flat Plate, Gel'!AM30*'03-Labour_Subs_Travel'!$I$46)+('02-Flat Plate, Gel'!AX30*'03-Labour_Subs_Travel'!$I$48),('02-Flat Plate, Gel'!Q30*'03-Labour_Subs_Travel'!$I$43)+('02-Flat Plate, Gel'!AB30*'03-Labour_Subs_Travel'!$I$45)+('02-Flat Plate, Gel'!AM30*'03-Labour_Subs_Travel'!$I$47)+('02-Flat Plate, Gel'!AX30*'03-Labour_Subs_Travel'!$I$49)) -> 0 | M24: 0 | N24: =IF($B24<='03-Labour_Subs_Travel'!$C$20,('02-Flat Plate, Gel'!AB30*'03-Labour_Subs_Travel'!$J$44)+('02-Flat Plate, Gel'!AM30*'03-Labour_Subs_Travel'!$J$46)+('02-Flat Plate, Gel'!AX30*'03-Labour_Subs_Travel'!$J$48),('02-Flat Plate, Gel'!AB30*'03-Labour_Subs_Travel'!$J$45)+('02-Flat Plate, Gel'!AM30*'03-Labour_Subs_Travel'!$J$47)+('02-Flat Plate, Gel'!AX30*'03-Labour_Subs_Travel'!$J$49)) -> 0 | O24: 0
A25: ='02-Flat Plate, Gel'!B31 -> 450 | B25: ='02-Flat Plate, Gel'!C31 -> 0 | C25: 0 | D25: 0 | E25: 0 | F25: =IF($B25<='03-Labour_Subs_Travel'!$C$20,('02-Flat Plate, Gel'!Q31*'03-Labour_Subs_Travel'!E57)+('02-Flat Plate, Gel'!$AB31*'03-Labour_Subs_Travel'!E$44)+('02-Flat Plate, Gel'!$AM31*'03-Labour_Subs_Travel'!E$46)+('02-Flat Plate, Gel'!$AX31*'03-Labour_Subs_Travel'!E$48),('02-Flat Plate, Gel'!Q31*'03-Labour_Subs_Travel'!E58)+('02-Flat Plate, Gel'!$AB31*'03-Labour_Subs_Travel'!E$45)+('02-Flat Plate, Gel'!$AM31*'03-Labour_Subs_Travel'!E$47)+('02-Flat Plate, Gel'!$AX31*'03-Labour_Subs_Travel'!E$49)) -> 0 | G25: =IF($B25<='03-Labour_Subs_Travel'!$C$20,('02-Flat Plate, Gel'!Q31*'03-Labour_Subs_Travel'!F$42)+('02-Flat Plate, Gel'!$AB31*'03-Labour_Subs_Travel'!F$44)+('02-Flat Plate, Gel'!$AM31*'03-Labour_Subs_Travel'!F$46)+('02-Flat Plate, Gel'!$AX31*'03-Labour_Subs_Travel'!F$48),('02-Flat Plate, Gel'!Q31*'03-Labour_Subs_Travel'!F$43)+('02-Flat Plate, Gel'!$AB31*'03-Labour_Subs_Travel'!F$45)+('02-Flat Plate, Gel'!$AM31*'03-Labour_Subs_Travel'!F$47)+('02-Flat Plate, Gel'!$AX31*'03-Labour_Subs_Travel'!F$49)) -> 0 | H25: =IF($B25<='03-Labour_Subs_Travel'!$C$20,('02-Flat Plate, Gel'!$Q31*'03-Labour_Subs_Travel'!G$42)+('02-Flat Plate, Gel'!$AB31*'03-Labour_Subs_Travel'!G$44)+('02-Flat Plate, Gel'!$AM31*'03-Labour_Subs_Travel'!G$46)+('02-Flat Plate, Gel'!$AX31*'03-Labour_Subs_Travel'!G$48),('02-Flat Plate, Gel'!$Q31*'03-Labour_Subs_Travel'!G$43)+('02-Flat Plate, Gel'!$AB31*'03-Labour_Subs_Travel'!G$45)+('02-Flat Plate, Gel'!$AM31*'03-Labour_Subs_Travel'!G$47)+('02-Flat Plate, Gel'!$AX31*'03-Labour_Subs_Travel'!G$49)) -> 0 | I25: =IF($B25<='03-Labour_Subs_Travel'!$C$20,('02-Flat Plate, Gel'!$Q31*'03-Labour_Subs_Travel'!H$42)+('02-Flat Plate, Gel'!$AB31*'03-Labour_Subs_Travel'!H$44)+('02-Flat Plate, Gel'!$AM31*'03-Labour_Subs_Travel'!H$46)+('02-Flat Plate, Gel'!$AX31*'03-Labour_Subs_Travel'!H$48),('02-Flat Plate, Gel'!$Q31*'03-Labour_Subs_Travel'!H$43)+('02-Flat Plate, Gel'!$AB31*'03-Labour_Subs_Travel'!H$45)+('02-Flat Plate, Gel'!$AM31*'03-Labour_Subs_Travel'!H$47)+('02-Flat Plate, Gel'!$AX31*'03-Labour_Subs_Travel'!H$49)) -> 0 | J25: =('02-Flat Plate, Gel'!Q31*INDEX(TransportTable,MATCH(IF($N$3<100,100,$N$3),Distance,1),MATCH(IF(Num_30*VLOOKUP($A25,LP_Table,4,0)<1000,1000,Num_48*VLOOKUP($A25,LP_Table,4,0)),WeightRange,1)))+('02-Flat Plate, Gel'!AB31*INDEX(TransportTable,MATCH(IF($N$3<100,100,$N$3),Distance,1),MATCH(IF(Num_48*VLOOKUP($A25,LP_Table,4,0)<1000,1000,Num_48*VLOOKUP($A25,LP_Table,4,0)),WeightRange,1)))+('02-Flat Plate, Gel'!AM31*INDEX(TransportTable,MATCH(IF($N$3<100,100,$N$3),Distance,1),MATCH(IF(Num_110*VLOOKUP($A25,LP_Table,4,0)<1000,1000,Num_110*VLOOKUP($A25,LP_Table,4,0)),WeightRange,1)))+('02-Flat Plate, Gel'!AX31*INDEX(TransportTable,MATCH(IF($N$3<100,100,$N$3),Distance,1),MATCH(IF(Num_220*VLOOKUP($A25,LP_Table,4,0)<1000,1000,Num_220*VLOOKUP($A25,LP_Table,4,0)),WeightRange,1))) -> 0 | K25: =2*$N$3*'03-Labour_Subs_Travel'!$C$35*('02-Flat Plate, Gel'!Q31+'02-Flat Plate, Gel'!AB31+'02-Flat Plate, Gel'!AM31+'02-Flat Plate, Gel'!AX31) -> 0 | L25: =IF($B25<='03-Labour_Subs_Travel'!$C$20,('02-Flat Plate, Gel'!Q31*'03-Labour_Subs_Travel'!$I$42)+('02-Flat Plate, Gel'!AB31*'03-Labour_Subs_Travel'!$I$44)+('02-Flat Plate, Gel'!AM31*'03-Labour_Subs_Travel'!$I$46)+('02-Flat Plate, Gel'!AX31*'03-Labour_Subs_Travel'!$I$48),('02-Flat Plate, Gel'!Q31*'03-Labour_Subs_Travel'!$I$43)+('02-Flat Plate, Gel'!AB31*'03-Labour_Subs_Travel'!$I$45)+('02-Flat Plate, Gel'!AM31*'03-Labour_Subs_Travel'!$I$47)+('02-Flat Plate, Gel'!AX31*'03-Labour_Subs_Travel'!$I$49)) -> 0 | M25: 0 | N25: =IF($B25<='03-Labour_Subs_Travel'!$C$20,('02-Flat Plate, Gel'!AB31*'03-Labour_Subs_Travel'!$J$44)+('02-Flat Plate, Gel'!AM31*'03-Labour_Subs_Travel'!$J$46)+('02-Flat Plate, Gel'!AX31*'03-Labour_Subs_Travel'!$J$48),('02-Flat Plate, Gel'!AB31*'03-Labour_Subs_Travel'!$J$45)+('02-Flat Plate, Gel'!AM31*'03-Labour_Subs_Travel'!$J$47)+('02-Flat Plate, Gel'!AX31*'03-Labour_Subs_Travel'!$J$49)) -> 0 | O25: 0
A26: ='02-Flat Plate, Gel'!B32 -> 500 | B26: ='02-Flat Plate, Gel'!C32 -> 0 | C26: 0 | D26: 0 | E26: 0 | F26: =IF($B26<='03-Labour_Subs_Travel'!$C$20,('02-Flat Plate, Gel'!Q32*'03-Labour_Subs_Travel'!E58)+('02-Flat Plate, Gel'!$AB32*'03-Labour_Subs_Travel'!E$44)+('02-Flat Plate, Gel'!$AM32*'03-Labour_Subs_Travel'!E$46)+('02-Flat Plate, Gel'!$AX32*'03-Labour_Subs_Travel'!E$48),('02-Flat Plate, Gel'!Q32*'03-Labour_Subs_Travel'!E59)+('02-Flat Plate, Gel'!$AB32*'03-Labour_Subs_Travel'!E$45)+('02-Flat Plate, Gel'!$AM32*'03-Labour_Subs_Travel'!E$47)+('02-Flat Plate, Gel'!$AX32*'03-Labour_Subs_Travel'!E$49)) -> 0 | G26: =IF($B26<='03-Labour_Subs_Travel'!$C$20,('02-Flat Plate, Gel'!Q32*'03-Labour_Subs_Travel'!F$42)+('02-Flat Plate, Gel'!$AB32*'03-Labour_Subs_Travel'!F$44)+('02-Flat Plate, Gel'!$AM32*'03-Labour_Subs_Travel'!F$46)+('02-Flat Plate, Gel'!$AX32*'03-Labour_Subs_Travel'!F$48),('02-Flat Plate, Gel'!Q32*'03-Labour_Subs_Travel'!F$43)+('02-Flat Plate, Gel'!$AB32*'03-Labour_Subs_Travel'!F$45)+('02-Flat Plate, Gel'!$AM32*'03-Labour_Subs_Travel'!F$47)+('02-Flat Plate, Gel'!$AX32*'03-Labour_Subs_Travel'!F$49)) -> 0 | H26: =IF($B26<='03-Labour_Subs_Travel'!$C$20,('02-Flat Plate, Gel'!$Q32*'03-Labour_Subs_Travel'!G$42)+('02-Flat Plate, Gel'!$AB32*'03-Labour_Subs_Travel'!G$44)+('02-Flat Plate, Gel'!$AM32*'03-Labour_Subs_Travel'!G$46)+('02-Flat Plate, Gel'!$AX32*'03-Labour_Subs_Travel'!G$48),('02-Flat Plate, Gel'!$Q32*'03-Labour_Subs_Travel'!G$43)+('02-Flat Plate, Gel'!$AB32*'03-Labour_Subs_Travel'!G$45)+('02-Flat Plate, Gel'!$AM32*'03-Labour_Subs_Travel'!G$47)+('02-Flat Plate, Gel'!$AX32*'03-Labour_Subs_Travel'!G$49)) -> 0 | I26: =IF($B26<='03-Labour_Subs_Travel'!$C$20,('02-Flat Plate, Gel'!$Q32*'03-Labour_Subs_Travel'!H$42)+('02-Flat Plate, Gel'!$AB32*'03-Labour_Subs_Travel'!H$44)+('02-Flat Plate, Gel'!$AM32*'03-Labour_Subs_Travel'!H$46)+('02-Flat Plate, Gel'!$AX32*'03-Labour_Subs_Travel'!H$48),('02-Flat Plate, Gel'!$Q32*'03-Labour_Subs_Travel'!H$43)+('02-Flat Plate, Gel'!$AB32*'03-Labour_Subs_Travel'!H$45)+('02-Flat Plate, Gel'!$AM32*'03-Labour_Subs_Travel'!H$47)+('02-Flat Plate, Gel'!$AX32*'03-Labour_Subs_Travel'!H$49)) -> 0 | J26: =('02-Flat Plate, Gel'!Q32*INDEX(TransportTable,MATCH(IF($N$3<100,100,$N$3),Distance,1),MATCH(IF(Num_30*VLOOKUP($A26,LP_Table,4,0)<1000,1000,Num_48*VLOOKUP($A26,LP_Table,4,0)),WeightRange,1)))+('02-Flat Plate, Gel'!AB32*INDEX(TransportTable,MATCH(IF($N$3<100,100,$N$3),Distance,1),MATCH(IF(Num_48*VLOOKUP($A26,LP_Table,4,0)<1000,1000,Num_48*VLOOKUP($A26,LP_Table,4,0)),WeightRange,1)))+('02-Flat Plate, Gel'!AM32*INDEX(TransportTable,MATCH(IF($N$3<100,100,$N$3),Distance,1),MATCH(IF(Num_110*VLOOKUP($A26,LP_Table,4,0)<1000,1000,Num_110*VLOOKUP($A26,LP_Table,4,0)),WeightRange,1)))+('02-Flat Plate, Gel'!AX32*INDEX(TransportTable,MATCH(IF($N$3<100,100,$N$3),Distance,1),MATCH(IF(Num_220*VLOOKUP($A26,LP_Table,4,0)<1000,1000,Num_220*VLOOKUP($A26,LP_Table,4,0)),WeightRange,1))) -> 0 | K26: =2*$N$3*'03-Labour_Subs_Travel'!$C$35*('02-Flat Plate, Gel'!Q32+'02-Flat Plate, Gel'!AB32+'02-Flat Plate, Gel'!AM32+'02-Flat Plate, Gel'!AX32) -> 0 | L26: =IF($B26<='03-Labour_Subs_Travel'!$C$20,('02-Flat Plate, Gel'!Q32*'03-Labour_Subs_Travel'!$I$42)+('02-Flat Plate, Gel'!AB32*'03-Labour_Subs_Travel'!$I$44)+('02-Flat Plate, Gel'!AM32*'03-Labour_Subs_Travel'!$I$46)+('02-Flat Plate, Gel'!AX32*'03-Labour_Subs_Travel'!$I$48),('02-Flat Plate, Gel'!Q32*'03-Labour_Subs_Travel'!$I$43)+('02-Flat Plate, Gel'!AB32*'03-Labour_Subs_Travel'!$I$45)+('02-Flat Plate, Gel'!AM32*'03-Labour_Subs_Travel'!$I$47)+('02-Flat Plate, Gel'!AX32*'03-Labour_Subs_Travel'!$I$49)) -> 0 | M26: 0 | N26: =IF($B26<='03-Labour_Subs_Travel'!$C$20,('02-Flat Plate, Gel'!AB32*'03-Labour_Subs_Travel'!$J$44)+('02-Flat Plate, Gel'!AM32*'03-Labour_Subs_Travel'!$J$46)+('02-Flat Plate, Gel'!AX32*'03-Labour_Subs_Travel'!$J$48),('02-Flat Plate, Gel'!AB32*'03-Labour_Subs_Travel'!$J$45)+('02-Flat Plate, Gel'!AM32*'03-Labour_Subs_Travel'!$J$47)+('02-Flat Plate, Gel'!AX32*'03-Labour_Subs_Travel'!$J$49)) -> 0 | O26: 0
C27: =SUM(C10:C26) -> 0 | D27: 0 | E27: 0 | F27: 0 | G27: 0 | H27: 0 | I27: 0 | J27: 0 | K27: 0 | L27: 0 | M27: 0 | N27: 0 | O27: 0
B30: Decommissioning Costs = Sum of Y=48,110,220 (No. of YV Banks x Hourly Labour Rate x No. of Hours)
B31: Tripper pack will be installed by Eskom

Sheet Forecasts
A1: DC : Valve Regulated Lead Acid Batteries | E1: Rate = | F1: R | G1: 12 | H1: /Ah
E2: Item Quantity/OU
A3: Item No | B3: Item Description | C3: C10 Rating [Ah] | D3: SAP Number | E3: ECOU | F3: FSOU | G3: GOU | H3: KZNOU | I3: LOU | J3: MOU | K3: NCOU | L3: NWOU | M3: WCOU | N3: 48V | O3: 110V | P3: 220V
A4: ='[12]1.VLA Total'!A4 -> 1 | B4: ="2V, Flat Plate, Valve Regulated, Lead Acid, Gel Cell, C10 = "&C4&"Ah" -> 2V, Flat Plate, Valve Regulated, Lead Acid, Gel Cell, C10 = 50Ah | C4: 50 | E4: 0 | F4: 0 | G4: 0 | H4: 600 | I4: 0 | J4: 0 | K4: 0 | L4: 0 | M4: 0 | N4: =SUM(E4:M4)/24 -> 25
A5: ='[12]1.VLA Total'!A5 -> 2 | B5: ="2V, Flat Plate, Valve Regulated, Lead Acid, Gel Cell, C10 = "&C5&"Ah" -> 2V, Flat Plate, Valve Regulated, Lead Acid, Gel Cell, C10 = 100Ah | C5: 100 | E5: 0 | F5: 0 | G5: 0 | H5: =2100-1587 -> 513 | I5: 0 | J5: 0 | K5: 0 | L5: 0 | M5: 0 | O5: =H5/60 -> 8.55
A6: ='[12]1.VLA Total'!A6 -> 3 | B6: 2V, Flat Plate, Valve Regulated, Lead Acid, Gel Cell, C10 = 150Ah | C6: 150 | E6: 448 | F6: 0 | G6: 0 | H6: =2100-1587 -> 513 | I6: 0 | J6: 0 | K6: 0 | L6: 0 | M6: 0 | N6: =E6/28 -> 16 | O6: =H6/60 -> 8.55
A7: ='[12]1.VLA Total'!A7 -> 4 | B7: 2V, Flat Plate, Valve Regulated, Lead Acid, Gel Cell, C10 = 200Ah | C7: 200 | E7: 0 | F7: 0 | G7: 0 | H7: 0 | I7: 0 | J7: 0 | K7: 12 | L7: 0 | M7: 0 | N7: 3
A8: ='[12]1.VLA Total'!A8 -> 5 | B8: 2V, Flat Plate, Valve Regulated, Lead Acid, Gel Cell, C10 = 250Ah | C8: 250 | E8: 24 | F8: 0 | G8: 0 | H8: 0 | I8: 0 | J8: 0 | K8: 0 | L8: 0 | M8: 0 | N8: 1
A9: ='[12]1.VLA Total'!A9 -> 6 | B9: 2V, Flat Plate, Valve Regulated, Lead Acid, Gel Cell, C10 = 300Ah | C9: 300 | E9: 510 | F9: 0 | G9: 0 | H9: 0 | I9: 150 | J9: 0 | K9: 0 | L9: 630 | M9: 0 | N9: =SUM(E14:M14)/25 -> 262
A10: ='[12]1.VLA Total'!A10 -> 7 | B10: 2V, Flat Plate, Valve Regulated, Lead Acid, Gel Cell, C10 = 350Ah | C10: 350 | E10: 24 | F10: 0 | G10: 0 | H10: 0 | I10: 0 | J10: 0 | K10: 0 | L10: 0 | M10: 0 | N10: 1
A11: ='[12]1.VLA Total'!A11 -> 8 | B11: 2V, Flat Plate, Valve Regulated, Lead Acid, Gel Cell, C10 = 400Ah | C11: 400 | E11: 24 | F11: 0 | G11: 0 | H11: 0 | I11: 0 | J11: 0 | K11: 0 | L11: 0 | M11: 0 | N11: 1
A12: ='[12]1.VLA Total'!A12 -> 9 | B12: 2V, Flat Plate, Valve Regulated, Lead Acid, Gel Cell, C10 = 450Ah | C12: 450 | E12: 24 | F12: 0 | G12: 0 | H12: 0 | I12: 0 | J12: 0 | K12: 0 | L12: 0 | M12: 0 | N12: 1
A13: ='[12]1.VLA Total'!A13 -> 10 | B13: 2V, Flat Plate, Valve Regulated, Lead Acid, Gel Cell, C10 = 500Ah | C13: 500 | E13: 24 | F13: 0 | G13: 0 | H13: 0 | I13: 0 | J13: 0 | K13: 0 | L13: 0 | M13: 0 | N13: 1
E14: 958 | F14: 0 | G14: 0 | H14: 4800 | I14: 150 | J14: 0 | K14: 12 | L14: 630 | M14: 0
B16: 12V/7.8Ah | C16: 2760
B17: 24V/7.8Ah | C17: 11928
B18: 12V/12Ah | C18: 1920
B19: 24V/13.2Ah | C19: 3725
B20: 12V/18Ah | C20: 3532
B21: 24V/18Ah | C21: =1284+54 -> 1338
B22: 12V/26Ah | C22: 2072
C23: =SUM(C16:C22) -> 27275
